Workbook

Sheet Табель
D1: 2025 | E1: =IF(E2=TODAY(),МЕТКА,"") ->  | AJ1: ❶ | AK1: ИТОГИ | AL1: ИТОГО за месяц | AP1: ❷ | AQ1: ОТЧЁТ за месяц | AR1: =M$306 -> В | AS1: =N$306 -> ОТ | AT1: ДО | AU1: Б | AV1: НН | AW1: ПР | AX1: К | AY1: НОД | AZ1: У | BA1: =V$306 -> ОЗ | BB1: =W$306 -> Г | BC1: ⓿ | BD1: Метка: | BE1: ↓
B2: График | C2: 1 | D2: =DATE(ГОД,C2,1) -> 2025-01-01 | E2: =DATE(ГОД,C2,DAY(D2)) -> 2025-01-01 | F2: =IF(N(E2),IF(MONTH(E2+1)=$C2,E2+1,""),"") -> 2025-01-02 | G2: 2025-01-03 | H2: 2025-01-04 | I2: 2025-01-05 | J2: 2025-01-06 | K2: 2025-01-07 | L2: 2025-01-08 | M2: 2025-01-09 | N2: 2025-01-10 | O2: 2025-01-11 | P2: 2025-01-12 | Q2: 2025-01-13 | R2: 2025-01-14 | S2: 2025-01-15 | T2: 2025-01-16 | U2: 2025-01-17 | V2: 2025-01-18 | W2: 2025-01-19 | X2: 2025-01-20 | Y2: 2025-01-21 | Z2: 2025-01-22 | AA2: 2025-01-23 | AB2: 2025-01-24 | AC2: 2025-01-25 | AD2: 2025-01-26 | AE2: 2025-01-27 | AF2: 2025-01-28 | AG2: 2025-01-29 | AH2: 2025-01-30 | AI2: =IF(N(AH2),IF(MONTH(AH2+1)=$C2,AH2+1,""),"") -> 2025-01-31 | AK2: Не раб. дней | AL2: Раб. дней | AM2: Раб. час | AN2: Отпуск ПЛАН | AO2: Отгуляно на СЕГОДНЯ | AQ2: =$AQ$1 -> ОТЧЁТ за месяц
A3: =DATE(ГОД,C2,1) -> 2025-01-01 | E3: =E2 -> 2025-01-01 | F3: 2025-01-02 | G3: 2025-01-03 | H3: 2025-01-04 | I3: 2025-01-05 | J3: 2025-01-06 | K3: 2025-01-07 | L3: 2025-01-08 | M3: 2025-01-09 | N3: 2025-01-10 | O3: 2025-01-11 | P3: 2025-01-12 | Q3: 2025-01-13 | R3: 2025-01-14 | S3: 2025-01-15 | T3: 2025-01-16 | U3: 2025-01-17 | V3: 2025-01-18 | W3: 2025-01-19 | X3: 2025-01-20 | Y3: 2025-01-21 | Z3: 2025-01-22 | AA3: 2025-01-23 | AB3: 2025-01-24 | AC3: 2025-01-25 | AD3: 2025-01-26 | AE3: 2025-01-27 | AF3: 2025-01-28 | AG3: =AG2 -> 2025-01-29 | AH3: =AH2 -> 2025-01-30 | AI3: =AI2 -> 2025-01-31 | AQ3: =DATE(ГОД,C2,1) -> 2025-01-01 | AR3: =M$306 -> В | AS3: ОТ | AT3: ДО | AU3: Б | AV3: НН | AW3: ПР | AX3: К | AY3: НОД | AZ3: У | BA3: ОЗ | BB3: Г
A4: =OFFSET(A4,-1,0) -> 2025-01-01 | B4: 4А | C4: =N(OFFSET(C4,-1,0))+1 -> 1 | D4: Алёхин А.А. | E4: 8 | F4: В | G4: В | H4: 13.5 | I4: 8 | J4: В | K4: В | L4: 13.5 | M4: 8 | N4: В | O4: В | P4: 13.5 | Q4: 8 | R4: В | S4: В | T4: 13.5 | U4: 8 | V4: В | W4: В | X4: 13.5 | Y4: 8 | Z4: В | AA4: В | AB4: 13.5 | AC4: 8 | AD4: В | AE4: В | AF4: 13.5 | AG4: 8 | AH4: В | AI4: В | AK4: =SUM(- - ISTEXT(E4:AI4)) -> 16 | AL4: =COUNT(E4:AI4) -> 15 | AM4: =SUM(E4:AI4) -> 158.5 | AN4: =COUNTIF(E4:AI4,"ОТ") -> 0 | AO4: =IF(ГОД=YEAR(TODAY()),IF(MONTH(TODAY())<$C$2,0,IF(MONTH(TODAY())>$C$2,AN4,COUNTIF(OFFSET(E4,0,0,,DAY(TODAY())),"ОТ"))),0) -> 0 | AQ4: =D4 -> Алёхин А.А. | AR4: =COUNTIF($E4:$AI4,M$306) -> 16 | AS4: 0 | AT4: 0 | AU4: 0 | AV4: 0 | AW4: 0 | AX4: 0 | AY4: 0 | AZ4: 0 | BA4: 0 | BB4: 0
A5: =OFFSET(A5,-1,0) -> 2025-01-01 | B5: 4А | C5: =N(OFFSET(C5,-1,0))+1 -> 2 | D5: Борисов В.В. | E5: 8 | F5: В | G5: В | H5: 13.5 | I5: 8 | J5: В | K5: В | L5: 13.5 | M5: 8 | N5: В | O5: В | P5: 13.5 | Q5: 8 | R5: В | S5: В | T5: 13.5 | U5: 8 | V5: В | W5: В | X5: 13.5 | Y5: 8 | Z5: В | AA5: В | AB5: 13.5 | AC5: 8 | AD5: В | AE5: В | AF5: 13.5 | AG5: 8 | AH5: В | AI5: В | AK5: =SUM(- - ISTEXT(E5:AI5)) -> 16 | AL5: =COUNT(E5:AI5) -> 15 | AM5: =SUM(E5:AI5) -> 158.5 | AN5: =COUNTIF(E5:AI5,"ОТ") -> 0 | AO5: 0 | AQ5: =D5 -> Борисов В.В. | AR5: 16 | AS5: 0 | AT5: 0 | AU5: 0 | AV5: 0 | AW5: 0 | AX5: 0 | AY5: 0 | AZ5: 0 | BA5: 0 | BB5: 0
A6: 2025-01-01 | B6: 4Б | C6: 3 | D6: Володин В.В. | E6: 13.5 | F6: 8 | G6: В | H6: В | I6: 13.5 | J6: 8 | K6: В | L6: В | M6: 13.5 | N6: 8 | O6: В | P6: В | Q6: 13.5 | R6: 8 | S6: В | T6: В | U6: 13.5 | V6: 8 | W6: В | X6: В | Y6: 13.5 | Z6: 8 | AA6: В | AB6: В | AC6: 13.5 | AD6: 8 | AE6: В | AF6: В | AG6: 13.5 | AH6: 8 | AI6: В | AK6: =SUM(- - ISTEXT(E6:AI6)) -> 15 | AL6: 16 | AM6: 172 | AN6: =COUNTIF(E6:AI6,"ОТ") -> 0 | AO6: 0 | AQ6: Володин В.В. | AR6: 15 | AS6: 0 | AT6: 0 | AU6: 0 | AV6: 0 | AW6: 0 | AX6: 0 | AY6: 0 | AZ6: 0 | BA6: 0 | BB6: 0
A7: 2025-01-01 | B7: 4Б | C7: 4 | D7: Гаврилов Г.Г. | E7: 13.5 | F7: 8 | G7: В | H7: В | I7: 13.5 | J7: 8 | K7: В | L7: В | M7: 13.5 | N7: 8 | O7: В | P7: В | Q7: 13.5 | R7: 8 | S7: В | T7: В | U7: 13.5 | V7: 8 | W7: В | X7: В | Y7: 13.5 | Z7: 8 | AA7: В | AB7: В | AC7: 13.5 | AD7: 8 | AE7: В | AF7: В | AG7: 13.5 | AH7: 8 | AI7: В | AK7: =SUM(- - ISTEXT(E7:AI7)) -> 15 | AL7: 16 | AM7: 172 | AN7: =COUNTIF(E7:AI7,"ОТ") -> 0 | AO7: 0 | AQ7: Гаврилов Г.Г. | AR7: 15 | AS7: 0 | AT7: 0 | AU7: 0 | AV7: 0 | AW7: 0 | AX7: 0 | AY7: 0 | AZ7: 0 | BA7: 0 | BB7: 0
A8: 2025-01-01 | B8: 4В | C8: 5 | D8: Данилов Д.Д. | E8: В | F8: 13.5 | G8: 8 | H8: В | I8: В | J8: 13.5 | K8: 8 | L8: В | M8: В | N8: 13.5 | O8: 8 | P8: В | Q8: В | R8: 13.5 | S8: 8 | T8: В | U8: В | V8: 13.5 | W8: 8 | X8: В | Y8: В | Z8: 13.5 | AA8: 8 | AB8: В | AC8: В | AD8: 13.5 | AE8: 8 | AF8: В | AG8: В | AH8: 13.5 | AI8: 8 | AK8: =SUM(- - ISTEXT(E8:AI8)) -> 15 | AL8: 16 | AM8: 172 | AN8: =COUNTIF(E8:AI8,"ОТ") -> 0 | AO8: 0 | AQ8: Данилов Д.Д. | AR8: 15 | AS8: 0 | AT8: 0 | AU8: 0 | AV8: 0 | AW8: 0 | AX8: 0 | AY8: 0 | AZ8: 0 | BA8: 0 | BB8: 0
A9: 2025-01-01 | B9: 4В | C9: 6 | D9: Ежов Е.Е. | E9: В | F9: 13.5 | G9: 8 | H9: В | I9: В | J9: 13.5 | K9: 8 | L9: В | M9: В | N9: 13.5 | O9: 8 | P9: В | Q9: В | R9: 13.5 | S9: 8 | T9: В | U9: В | V9: 13.5 | W9: 8 | X9: В | Y9: В | Z9: 13.5 | AA9: 8 | AB9: В | AC9: В | AD9: 13.5 | AE9: 8 | AF9: В | AG9: В | AH9: 13.5 | AI9: 8 | AK9: =SUM(- - ISTEXT(E9:AI9)) -> 15 | AL9: 16 | AM9: 172 | AN9: 0 | AO9: 0 | AQ9: Ежов Е.Е. | AR9: 15 | AS9: 0 | AT9: 0 | AU9: 0 | AV9: 0 | AW9: 0 | AX9: 0 | AY9: 0 | AZ9: 0 | BA9: 0 | BB9: 0
A10: 2025-01-01 | B10: 4Г | C10: 7 | D10: Зуев З.З. | E10: В | F10: В | G10: 13.5 | H10: 8 | I10: В | J10: В | K10: 13.5 | L10: 8 | M10: В | N10: В | O10: 13.5 | P10: 8 | Q10: В | R10: В | S10: 13.5 | T10: 8 | U10: В | V10: В | W10: 13.5 | X10: 8 | Y10: В | Z10: В | AA10: 13.5 | AB10: 8 | AC10: В | AD10: В | AE10: 13.5 | AF10: 8 | AG10: В | AH10: В | AI10: 13.5 | AK10: =SUM(- - ISTEXT(E10:AI10)) -> 16 | AL10: 15 | AM10: 164 | AN10: 0 | AO10: 0 | AQ10: Зуев З.З. | AR10: 16 | AS10: 0 | AT10: 0 | AU10: 0 | AV10: 0 | AW10: 0 | AX10: 0 | AY10: 0 | AZ10: 0 | BA10: 0 | BB10: 0
A11: 2025-01-01 | B11: 4Г | C11: 8 | D11: Иванов И.И. | E11: В | F11: В | G11: 13.5 | H11: 8 | I11: В | J11: В | K11: 13.5 | L11: 8 | M11: В | N11: В | O11: 13.5 | P11: 8 | Q11: В | R11: В | S11: 13.5 | T11: 8 | U11: В | V11: В | W11: 13.5 | X11: 8 | Y11: В | Z11: В | AA11: 13.5 | AB11: 8 | AC11: В | AD11: В | AE11: 13.5 | AF11: 8 | AG11: В | AH11: В | AI11: 13.5 | AK11: =SUM(- - ISTEXT(E11:AI11)) -> 16 | AL11: 15 | AM11: 164 | AN11: 0 | AO11: 0 | AQ11: Иванов И.И. | AR11: 16 | AS11: 0 | AT11: 0 | AU11: 0 | AV11: 0 | AW11: 0 | AX11: 0 | AY11: 0 | AZ11: 0 | BA11: 0 | BB11: 0
A12: 2025-01-01 | B12: 1 | C12: 9 | D12: Козлов К.К. | E12: В | F12: В | G12: В | H12: В | I12: В | J12: В | K12: В | L12: В | M12: 8.25 | N12: 7 | O12: В | P12: В | Q12: 8.25 | R12: 8.25 | S12: 8.25 | T12: 8.25 | U12: 7 | V12: В | W12: В | X12: 8.25 | Y12: 8.25 | Z12: 8.25 | AA12: 8.25 | AB12: 7 | AC12: В | AD12: В | AE12: 8.25 | AF12: 8.25 | AG12: 8.25 | AH12: 8.25 | AI12: 7 | AK12: =SUM(- - ISTEXT(E12:AI12)) -> 14 | AL12: 17 | AM12: 135.25 | AN12: 0 | AO12: 0 | AQ12: Козлов К.К. | AR12: 14 | AS12: 0 | AT12: 0 | AU12: 0 | AV12: 0 | AW12: 0 | AX12: 0 | AY12: 0 | AZ12: 0 | BA12: 0 | BB12: 0
A13: 2025-01-01 | B13: 1 | C13: 10 | D13: Львов Л.Л. | E13: В | F13: В | G13: В | H13: В | I13: В | J13: В | K13: В | L13: В | M13: 8.25 | N13: 7 | O13: В | P13: В | Q13: 8.25 | R13: 8.25 | S13: 8.25 | T13: 8.25 | U13: 7 | V13: В | W13: В | X13: 8.25 | Y13: 8.25 | Z13: 8.25 | AA13: 8.25 | AB13: 7 | AC13: В | AD13: В | AE13: 8.25 | AF13: 8.25 | AG13: 8.25 | AH13: 8.25 | AI13: 7 | AK13: =SUM(- - ISTEXT(E13:AI13)) -> 14 | AL13: 17 | AM13: 135.25 | AN13: 0 | AO13: 0 | AQ13: Львов Л.Л. | AR13: 14 | AS13: 0 | AT13: 0 | AU13: 0 | AV13: 0 | AW13: 0 | AX13: 0 | AY13: 0 | AZ13: 0 | BA13: 0 | BB13: 0
A14: 2025-01-01 | B14: 1 | C14: 11 | D14: Мишин М.М. | E14: В | F14: В | G14: В | H14: В | I14: В | J14: В | K14: В | L14: В | M14: 8.25 | N14: 7 | O14: В | P14: В | Q14: 8.25 | R14: 8.25 | S14: 8.25 | T14: 8.25 | U14: 7 | V14: В | W14: В | X14: 8.25 | Y14: 8.25 | Z14: 8.25 | AA14: 8.25 | AB14: 7 | AC14: В | AD14: В | AE14: 8.25 | AF14: 8.25 | AG14: 8.25 | AH14: 8.25 | AI14: 7 | AK14: =SUM(- - ISTEXT(E14:AI14)) -> 14 | AL14: 17 | AM14: 135.25 | AN14: 0 | AO14: 0 | AQ14: Мишин М.М. | AR14: 14 | AS14: 0 | AT14: 0 | AU14: 0 | AV14: 0 | AW14: 0 | AX14: 0 | AY14: 0 | AZ14: 0 | BA14: 0 | BB14: 0
A15: 2025-01-01 | B15: 1 | C15: 12 | D15: Носов Н.Н. | E15: В | F15: В | G15: В | H15: В | I15: В | J15: В | K15: В | L15: В | M15: 8.25 | N15: 7 | O15: В | P15: В | Q15: 8.25 | R15: 8.25 | S15: 8.25 | T15: 8.25 | U15: 7 | V15: В | W15: В | X15: 8.25 | Y15: 8.25 | Z15: 8.25 | AA15: 8.25 | AB15: 7 | AC15: В | AD15: В | AE15: 8.25 | AF15: 8.25 | AG15: 8.25 | AH15: 8.25 | AI15: 7 | AK15: =SUM(- - ISTEXT(E15:AI15)) -> 14 | AL15: =COUNT(E15:AI15) -> 17 | AM15: 135.25 | AN15: 0 | AO15: 0 | AQ15: Носов Н.Н. | AR15: 14 | AS15: 0 | AT15: 0 | AU15: 0 | AV15: 0 | AW15: 0 | AX15: 0 | AY15: 0 | AZ15: 0 | BA15: 0 | BB15: 0
A16: 2025-01-01 | B16: 1 | C16: 13 | D16: Осин О.О. | E16: В | F16: В | G16: В | H16: В | I16: В | J16: В | K16: В | L16: В | M16: 8.25 | N16: 7 | O16: В | P16: В | Q16: 8.25 | R16: 8.25 | S16: 8.25 | T16: 8.25 | U16: 7 | V16: В | W16: В | X16: 8.25 | Y16: 8.25 | Z16: 8.25 | AA16: 8.25 | AB16: 7 | AC16: В | AD16: В | AE16: 8.25 | AF16: 8.25 | AG16: 8.25 | AH16: 8.25 | AI16: 7 | AK16: =SUM(- - ISTEXT(E16:AI16)) -> 14 | AL16: 17 | AM16: 135.25 | AN16: 0 | AO16: 0 | AQ16: Осин О.О. | AR16: 14 | AS16: 0 | AT16: 0 | AU16: 0 | AV16: 0 | AW16: 0 | AX16: 0 | AY16: 0 | AZ16: 0 | BA16: 0 | BB16: 0
A17: 2025-01-01 | B17: 1 | C17: 14 | D17: Попов П.П. | E17: В | F17: В | G17: В | H17: В | I17: В | J17: В | K17: В | L17: В | M17: 8.25 | N17: 7 | O17: В | P17: В | Q17: 8.25 | R17: 8.25 | S17: 8.25 | T17: 8.25 | U17: 7 | V17: В | W17: В | X17: 8.25 | Y17: 8.25 | Z17: 8.25 | AA17: 8.25 | AB17: 7 | AC17: В | AD17: В | AE17: 8.25 | AF17: 8.25 | AG17: 8.25 | AH17: 8.25 | AI17: 7 | AK17: =SUM(- - ISTEXT(E17:AI17)) -> 14 | AL17: 17 | AM17: 135.25 | AN17: 0 | AO17: 0 | AQ17: Попов П.П. | AR17: 14 | AS17: 0 | AT17: 0 | AU17: 0 | AV17: 0 | AW17: 0 | AX17: 0 | AY17: 0 | AZ17: 0 | BA17: 0 | BB17: 0
A18: 2025-01-01 | B18: 1 | C18: 15 | AK18: =SUM(- - ISTEXT(E18:AI18)) -> 0 | AL18: 0 | AM18: 0 | AN18: 0 | AO18: 0 | AQ18: 0 | AR18: 0 | AS18: 0 | AT18: 0 | AU18: 0 | AV18: 0 | AW18: 0 | AX18: 0 | AY18: 0 | AZ18: 0 | BA18: 0 | BB18: 0
A19: 2025-01-01 | B19: 1 | C19: 16 | AK19: =SUM(- - ISTEXT(E19:AI19)) -> 0 | AL19: 0 | AM19: =SUM(E19:AI19) -> 0 | AN19: =COUNTIF(E19:AI19,"ОТ") -> 0 | AO19: 0 | AQ19: =D19 -> 0 | AR19: 0 | AS19: 0 | AT19: 0 | AU19: 0 | AV19: 0 | AW19: 0 | AX19: 0 | AY19: 0 | AZ19: 0 | BA19: 0 | BB19: 0
A20: 2025-01-01 | B20: 1 | C20: 17 | AK20: =SUM(- - ISTEXT(E20:AI20)) -> 0 | AL20: 0 | AM20: =SUM(E20:AI20) -> 0 | AN20: =COUNTIF(E20:AI20,"ОТ") -> 0 | AO20: 0 | AQ20: =D20 -> 0 | AR20: 0 | AS20: 0 | AT20: 0 | AU20: 0 | AV20: 0 | AW20: 0 | AX20: 0 | AY20: 0 | AZ20: 0 | BA20: 0 | BB20: 0
A21: 2025-01-01 | B21: 1 | C21: 18 | AK21: =SUM(- - ISTEXT(E21:AI21)) -> 0 | AL21: 0 | AM21: =SUM(E21:AI21) -> 0 | AN21: =COUNTIF(E21:AI21,"ОТ") -> 0 | AO21: 0 | AQ21: =D21 -> 0 | AR21: 0 | AS21: 0 | AT21: 0 | AU21: 0 | AV21: 0 | AW21: 0 | AX21: 0 | AY21: 0 | AZ21: 0 | BA21: 0 | BB21: 0
A22: 2025-01-01 | B22: 1 | C22: 19 | AK22: =SUM(- - ISTEXT(E22:AI22)) -> 0 | AL22: 0 | AM22: =SUM(E22:AI22) -> 0 | AN22: =COUNTIF(E22:AI22,"ОТ") -> 0 | AO22: 0 | AQ22: =D22 -> 0 | AR22: 0 | AS22: 0 | AT22: 0 | AU22: 0 | AV22: 0 | AW22: 0 | AX22: 0 | AY22: 0 | AZ22: 0 | BA22: 0 | BB22: 0
A23: 2025-01-01 | B23: 1 | C23: 20 | AK23: =SUM(- - ISTEXT(E23:AI23)) -> 0 | AL23: 0 | AM23: =SUM(E23:AI23) -> 0 | AN23: =COUNTIF(E23:AI23,"ОТ") -> 0 | AO23: 0 | AQ23: =D23 -> 0 | AR23: 0 | AS23: 0 | AT23: 0 | AU23: 0 | AV23: 0 | AW23: 0 | AX23: 0 | AY23: 0 | AZ23: 0 | BA23: 0 | BB23: 0
E24: =IF(E25=TODAY(),МЕТКА,"") -> 
B25: График | C25: 2 | D25: =DATE(ГОД,C25,1) -> 2025-02-01 | E25: =DATE(ГОД,C25,DAY(D25)) -> 2025-02-01 | F25: =IF(N(E25),IF(MONTH(E25+1)=$C25,E25+1,""),"") -> 2025-02-02 | G25: 2025-02-03 | H25: 2025-02-04 | I25: 2025-02-05 | J25: 2025-02-06 | K25: 2025-02-07 | L25: 2025-02-08 | M25: 2025-02-09 | N25: 2025-02-10 | O25: 2025-02-11 | P25: 2025-02-12 | Q25: 2025-02-13 | R25: 2025-02-14 | S25: 2025-02-15 | T25: 2025-02-16 | U25: 2025-02-17 | V25: 2025-02-18 | W25: 2025-02-19 | X25: 2025-02-20 | Y25: 2025-02-21 | Z25: 2025-02-22 | AA25: 2025-02-23 | AB25: 2025-02-24 | AC25: 2025-02-25 | AD25: 2025-02-26 | AE25: 2025-02-27 | AF25: 2025-02-28 | AI25: =IF(N(AH25),IF(MONTH(AH25+1)=$C25,AH25+1,""),"") ->  | AK25: =AK$2 -> Не раб. дней | AL25: =AL$2 -> Раб. дней | AM25: =AM$2 -> Раб. час | AN25: =AN$2 -> Отпуск ПЛАН | AO25: =AO$2 -> Отгуляно на СЕГОДНЯ | AQ25: =$AQ$1 -> ОТЧЁТ за месяц
A26: =DATE(ГОД,C25,1) -> 2025-02-01 | E26: =E25 -> 2025-02-01 | F26: =F25 -> 2025-02-02 | G26: 2025-02-03 | H26: 2025-02-04 | I26: 2025-02-05 | J26: 2025-02-06 | K26: 2025-02-07 | L26: 2025-02-08 | M26: 2025-02-09 | N26: 2025-02-10 | O26: 2025-02-11 | P26: 2025-02-12 | Q26: 2025-02-13 | R26: 2025-02-14 | S26: 2025-02-15 | T26: 2025-02-16 | U26: 2025-02-17 | V26: 2025-02-18 | W26: 2025-02-19 | X26: 2025-02-20 | Y26: 2025-02-21 | Z26: 2025-02-22 | AA26: 2025-02-23 | AB26: 2025-02-24 | AC26: 2025-02-25 | AD26: 2025-02-26 | AE26: 2025-02-27 | AF26: =AF25 -> 2025-02-28 | AG26: =AG25 ->  | AH26: =AH25 ->  | AI26: =AI25 ->  | AQ26: =DATE(ГОД,C25,1) -> 2025-02-01 | AR26: =M$306 -> В | AS26: ОТ | AT26: ДО | AU26: Б | AV26: НН | AW26: ПР | AX26: К | AY26: НОД | AZ26: У | BA26: ОЗ | BB26: Г
A27: =OFFSET(A27,-1,0) -> 2025-02-01 | B27: 4А | C27: =N(OFFSET(C27,-1,0))+1 -> 1 | D27: Алёхин А.А. | E27: 13.5 | F27: 8 | G27: В | H27: В | I27: 13.5 | J27: 8 | K27: В | L27: В | M27: 13.5 | N27: 8 | O27: В | P27: В | Q27: 13.5 | R27: 8 | S27: В | T27: В | U27: 13.5 | V27: 8 | W27: В | X27: В | Y27: 13.5 | Z27: 8 | AA27: В | AB27: В | AC27: 13.5 | AD27: 8 | AE27: В | AF27: В | AK27: =SUM(- - ISTEXT(E27:AI27)) -> 14 | AL27: =COUNT(E27:AI27) -> 14 | AM27: =SUM(E27:AI27) -> 150.5 | AN27: =COUNTIF(E27:AI27,"ОТ") -> 0 | AO27: =IF(ГОД=YEAR(TODAY()),IF(MONTH(TODAY())<$C$25,0,IF(MONTH(TODAY())>$C$25,AN27,COUNTIF(OFFSET(E27,0,0,,DAY(TODAY())),"ОТ"))),0) -> 0 | AQ27: =D27 -> Алёхин А.А. | AR27: =COUNTIF($E27:$AI27,M$306) -> 14 | AS27: 0 | AT27: 0 | AU27: 0 | AV27: 0 | AW27: 0 | AX27: 0 | AY27: 0 | AZ27: 0 | BA27: 0 | BB27: 0
A28: =OFFSET(A28,-1,0) -> 2025-02-01 | B28: 4А | C28: =N(OFFSET(C28,-1,0))+1 -> 2 | D28: Борисов В.В. | E28: 13.5 | F28: 8 | G28: В | H28: В | I28: 13.5 | J28: 8 | K28: В | L28: В | M28: 13.5 | N28: 8 | O28: В | P28: В | Q28: 13.5 | R28: 8 | S28: В | T28: В | U28: 13.5 | V28: 8 | W28: В | X28: В | Y28: 13.5 | Z28: 8 | AA28: В | AB28: В | AC28: 13.5 | AD28: 8 | AE28: В | AF28: В | AK28: =SUM(- - ISTEXT(E28:AI28)) -> 14 | AL28: =COUNT(E28:AI28) -> 14 | AM28: =SUM(E28:AI28) -> 150.5 | AN28: =COUNTIF(E28:AI28,"ОТ") -> 0 | AO28: 0 | AQ28: =D28 -> Борисов В.В. | AR28: 14 | AS28: 0 | AT28: 0 | AU28: 0 | AV28: 0 | AW28: 0 | AX28: 0 | AY28: 0 | AZ28: 0 | BA28: 0 | BB28: 0
A29: 2025-02-01 | B29: 4Б | C29: 3 | D29: Володин В.В. | E29: В | F29: 13.5 | G29: 8 | H29: В | I29: В | J29: 13.5 | K29: 8 | L29: В | M29: В | N29: 13.5 | O29: 8 | P29: В | Q29: В | R29: 13.5 | S29: 8 | T29: В | U29: В | V29: 13.5 | W29: 8 | X29: В | Y29: В | Z29: 13.5 | AA29: 8 | AB29: В | AC29: В | AD29: 13.5 | AE29: 8 | AF29: В | AK29: =SUM(- - ISTEXT(E29:AI29)) -> 14 | AL29: =COUNT(E29:AI29) -> 14 | AM29: =SUM(E29:AI29) -> 150.5 | AN29: =COUNTIF(E29:AI29,"ОТ") -> 0 | AO29: 0 | AQ29: =D29 -> Володин В.В. | AR29: 14 | AS29: 0 | AT29: 0 | AU29: 0 | AV29: 0 | AW29: 0 | AX29: 0 | AY29: 0 | AZ29: 0 | BA29: 0 | BB29: 0
A30: 2025-02-01 | B30: 4Б | C30: 4 | D30: Гаврилов Г.Г. | E30: В | F30: 13.5 | G30: 8 | H30: В | I30: В | J30: 13.5 | K30: 8 | L30: В | M30: В | N30: 13.5 | O30: 8 | P30: В | Q30: В | R30: 13.5 | S30: 8 | T30: В | U30: В | V30: 13.5 | W30: 8 | X30: В | Y30: В | Z30: 13.5 | AA30: 8 | AB30: В | AC30: В | AD30: 13.5 | AE30: 8 | AF30: В | AK30: =SUM(- - ISTEXT(E30:AI30)) -> 14 | AL30: =COUNT(E30:AI30) -> 14 | AM30: =SUM(E30:AI30) -> 150.5 | AN30: =COUNTIF(E30:AI30,"ОТ") -> 0 | AO30: 0 | AQ30: =D30 -> Гаврилов Г.Г. | AR30: 14 | AS30: 0 | AT30: 0 | AU30: 0 | AV30: 0 | AW30: 0 | AX30: 0 | AY30: 0 | AZ30: 0 | BA30: 0 | BB30: 0
A31: 2025-02-01 | B31: 4Б | C31: 5 | D31: Данилов Д.Д. | E31: В | F31: В | G31: 13.5 | H31: 8 | I31: В | J31: В | K31: 13.5 | L31: 8 | M31: В | N31: В | O31: 13.5 | P31: 8 | Q31: В | R31: В | S31: 13.5 | T31: 8 | U31: В | V31: В | W31: 13.5 | X31: 8 | Y31: В | Z31: В | AA31: 13.5 | AB31: 8 | AC31: В | AD31: В | AE31: 13.5 | AF31: 8 | AK31: =SUM(- - ISTEXT(E31:AI31)) -> 14 | AL31: 14 | AM31: 150.5 | AN31: 0 | AO31: 0 | AQ31: Данилов Д.Д. | AR31: 14 | AS31: 0 | AT31: 0 | AU31: 0 | AV31: 0 | AW31: 0 | AX31: 0 | AY31: 0 | AZ31: 0 | BA31: 0 | BB31: 0
A32: 2025-02-01 | B32: 4В | C32: 6 | D32: Ежов Е.Е. | E32: В | F32: В | G32: 13.5 | H32: 8 | I32: В | J32: В | K32: 13.5 | L32: 8 | M32: В | N32: В | O32: 13.5 | P32: 8 | Q32: В | R32: В | S32: 13.5 | T32: 8 | U32: В | V32: В | W32: 13.5 | X32: 8 | Y32: В | Z32: В | AA32: 13.5 | AB32: 8 | AC32: В | AD32: В | AE32: 13.5 | AF32: 8 | AK32: =SUM(- - ISTEXT(E32:AI32)) -> 14 | AL32: 14 | AM32: 150.5 | AN32: 0 | AO32: 0 | AQ32: Ежов Е.Е. | AR32: 14 | AS32: 0 | AT32: 0 | AU32: 0 | AV32: 0 | AW32: 0 | AX32: 0 | AY32: 0 | AZ32: 0 | BA32: 0 | BB32: 0
A33: 2025-02-01 | B33: 4В | C33: 7 | D33: Зуев З.З. | E33: 8 | F33: В | G33: В | H33: 13.5 | I33: 8 | J33: В | K33: В | L33: 13.5 | M33: 8 | N33: В | O33: В | P33: 13.5 | Q33: 8 | R33: В | S33: В | T33: 13.5 | U33: 8 | V33: В | W33: В | X33: 13.5 | Y33: 8 | Z33: В | AA33: В | AB33: 13.5 | AC33: 8 | AD33: В | AE33: В | AF33: 13.5 | AK33: =SUM(- - ISTEXT(E33:AI33)) -> 14 | AL33: 14 | AM33: 150.5 | AN33: 0 | AO33: 0 | AQ33: Зуев З.З. | AR33: 14 | AS33: 0 | AT33: 0 | AU33: 0 | AV33: 0 | AW33: 0 | AX33: 0 | AY33: 0 | AZ33: 0 | BA33: 0 | BB33: 0
A34: 2025-02-01 | B34: 4Г | C34: 8 | D34: Иванов И.И. | E34: 8 | F34: В | G34: В | H34: 13.5 | I34: 8 | J34: В | K34: В | L34: 13.5 | M34: 8 | N34: В | O34: В | P34: 13.5 | Q34: 8 | R34: В | S34: В | T34: 13.5 | U34: 8 | V34: В | W34: В | X34: 13.5 | Y34: 8 | Z34: В | AA34: В | AB34: 13.5 | AC34: 8 | AD34: В | AE34: В | AF34: 13.5 | AK34: =SUM(- - ISTEXT(E34:AI34)) -> 14 | AL34: 14 | AM34: 150.5 | AN34: 0 | AO34: 0 | AQ34: Иванов И.И. | AR34: 14 | AS34: 0 | AT34: 0 | AU34: 0 | AV34: 0 | AW34: 0 | AX34: 0 | AY34: 0 | AZ34: 0 | BA34: 0 | BB34: 0
A35: 2025-02-01 | B35: 4Г | C35: 9 | D35: Козлов К.К. | E35: В | F35: В | G35: 8.25 | H35: 8.25 | I35: 8.25 | J35: 8.25 | K35: 7 | L35: В | M35: В | N35: 8.25 | O35: 8.25 | P35: 8.25 | Q35: 8.25 | R35: 7 | S35: В | T35: В | U35: 8.25 | V35: 8.25 | W35: 8.25 | X35: 8.25 | Y35: 7 | Z35: В | AA35: В | AB35: 8.25 | AC35: 8.25 | AD35: 8.25 | AE35: 8.25 | AF35: 7 | AK35: =SUM(- - ISTEXT(E35:AI35)) -> 8 | AL35: 20 | AM35: 160 | AN35: 0 | AO35: 0 | AQ35: Козлов К.К. | AR35: 8 | AS35: 0 | AT35: 0 | AU35: 0 | AV35: 0 | AW35: 0 | AX35: 0 | AY35: 0 | AZ35: 0 | BA35: 0 | BB35: 0
A36: 2025-02-01 | B36: 1 | C36: 10 | D36: Львов Л.Л. | E36: В | F36: В | G36: 8.25 | H36: 8.25 | I36: 8.25 | J36: 8.25 | K36: 7 | L36: В | M36: В | N36: 8.25 | O36: 8.25 | P36: 8.25 | Q36: 8.25 | R36: 7 | S36: В | T36: В | U36: 8.25 | V36: 8.25 | W36: 8.25 | X36: 8.25 | Y36: 7 | Z36: В | AA36: В | AB36: 8.25 | AC36: 8.25 | AD36: 8.25 | AE36: 8.25 | AF36: 7 | AK36: =SUM(- - ISTEXT(E36:AI36)) -> 8 | AL36: 20 | AM36: 160 | AN36: 0 | AO36: 0 | AQ36: Львов Л.Л. | AR36: 8 | AS36: 0 | AT36: 0 | AU36: 0 | AV36: 0 | AW36: 0 | AX36: 0 | AY36: 0 | AZ36: 0 | BA36: 0 | BB36: 0
A37: 2025-02-01 | B37: 1 | C37: 11 | D37: Мишин М.М. | E37: В | F37: В | G37: 8.25 | H37: 8.25 | I37: 8.25 | J37: 8.25 | K37: 7 | L37: В | M37: В | N37: 8.25 | O37: 8.25 | P37: 8.25 | Q37: 8.25 | R37: 7 | S37: В | T37: В | U37: 8.25 | V37: 8.25 | W37: 8.25 | X37: 8.25 | Y37: 7 | Z37: В | AA37: В | AB37: 8.25 | AC37: 8.25 | AD37: 8.25 | AE37: 8.25 | AF37: 7 | AK37: =SUM(- - ISTEXT(E37:AI37)) -> 8 | AL37: 20 | AM37: 160 | AN37: 0 | AO37: 0 | AQ37: Мишин М.М. | AR37: 8 | AS37: 0 | AT37: 0 | AU37: 0 | AV37: 0 | AW37: 0 | AX37: 0 | AY37: 0 | AZ37: 0 | BA37: 0 | BB37: 0
A38: 2025-02-01 | B38: 1 | C38: 12 | D38: Носов Н.Н. | E38: В | F38: В | G38: 8.25 | H38: 8.25 | I38: 8.25 | J38: 8.25 | K38: 7 | L38: В | M38: В | N38: 8.25 | O38: 8.25 | P38: 8.25 | Q38: 8.25 | R38: 7 | S38: В | T38: В | U38: 8.25 | V38: 8.25 | W38: 8.25 | X38: 8.25 | Y38: 7 | Z38: В | AA38: В | AB38: 8.25 | AC38: 8.25 | AD38: 8.25 | AE38: 8.25 | AF38: 7 | AK38: =SUM(- - ISTEXT(E38:AI38)) -> 8 | AL38: 20 | AM38: 160 | AN38: 0 | AO38: 0 | AQ38: Носов Н.Н. | AR38: 8 | AS38: 0 | AT38: 0 | AU38: 0 | AV38: 0 | AW38: 0 | AX38: 0 | AY38: 0 | AZ38: 0 | BA38: 0 | BB38: 0
A39: 2025-02-01 | B39: 1 | C39: 13 | D39: Осин О.О. | E39: В | F39: В | G39: 8.25 | H39: 8.25 | I39: 8.25 | J39: 8.25 | K39: 7 | L39: В | M39: В | N39: 8.25 | O39: 8.25 | P39: 8.25 | Q39: 8.25 | R39: 7 | S39: В | T39: В | U39: 8.25 | V39: 8.25 | W39: 8.25 | X39: 8.25 | Y39: 7 | Z39: В | AA39: В | AB39: 8.25 | AC39: 8.25 | AD39: 8.25 | AE39: 8.25 | AF39: 7 | AK39: =SUM(- - ISTEXT(E39:AI39)) -> 8 | AL39: 20 | AM39: 160 | AN39: 0 | AO39: 0 | AQ39: Осин О.О. | AR39: 8 | AS39: 0 | AT39: 0 | AU39: 0 | AV39: 0 | AW39: 0 | AX39: 0 | AY39: 0 | AZ39: 0 | BA39: 0 | BB39: 0
A40: 2025-02-01 | B40: 1 | C40: 14 | D40: Попов П.П. | E40: В | F40: В | G40: 8.25 | H40: 8.25 | I40: 8.25 | J40: 8.25 | K40: 7 | L40: В | M40: В | N40: 8.25 | O40: 8.25 | P40: 8.25 | Q40: 8.25 | R40: 7 | S40: В | T40: В | U40: 8.25 | V40: 8.25 | W40: 8.25 | X40: 8.25 | Y40: 7 | Z40: В | AA40: В | AB40: 8.25 | AC40: 8.25 | AD40: 8.25 | AE40: 8.25 | AF40: 7 | AK40: =SUM(- - ISTEXT(E40:AI40)) -> 8 | AL40: 20 | AM40: 160 | AN40: 0 | AO40: 0 | AQ40: Попов П.П. | AR40: 8 | AS40: 0 | AT40: 0 | AU40: 0 | AV40: 0 | AW40: 0 | AX40: 0 | AY40: 0 | AZ40: 0 | BA40: 0 | BB40: 0
A41: 2025-02-01 | B41: 1 | C41: 15 | AK41: =SUM(- - ISTEXT(E41:AI41)) -> 0 | AL41: 0 | AM41: 0 | AN41: 0 | AO41: 0 | AQ41: 0 | AR41: 0 | AS41: 0 | AT41: 0 | AU41: 0 | AV41: 0 | AW41: 0 | AX41: 0 | AY41: 0 | AZ41: 0 | BA41: 0 | BB41: 0
A42: 2025-02-01 | B42: 1 | C42: 16 | AK42: =SUM(- - ISTEXT(E42:AI42)) -> 0 | AL42: =COUNT(E42:AI42) -> 0 | AM42: =SUM(E42:AI42) -> 0 | AN42: =COUNTIF(E42:AI42,"ОТ") -> 0 | AO42: 0 | AQ42: =D42 -> 0 | AR42: 0 | AS42: 0 | AT42: 0 | AU42: 0 | AV42: 0 | AW42: 0 | AX42: 0 | AY42: 0 | AZ42: 0 | BA42: 0 | BB42: 0
A43: 2025-02-01 | B43: 1 | C43: 17 | AK43: =SUM(- - ISTEXT(E43:AI43)) -> 0 | AL43: =COUNT(E43:AI43) -> 0 | AM43: =SUM(E43:AI43) -> 0 | AN43: =COUNTIF(E43:AI43,"ОТ") -> 0 | AO43: 0 | AQ43: =D43 -> 0 | AR43: 0 | AS43: 0 | AT43: 0 | AU43: 0 | AV43: 0 | AW43: 0 | AX43: 0 | AY43: 0 | AZ43: 0 | BA43: 0 | BB43: 0
A44: 2025-02-01 | B44: 1 | C44: 18 | AK44: =SUM(- - ISTEXT(E44:AI44)) -> 0 | AL44: =COUNT(E44:AI44) -> 0 | AM44: =SUM(E44:AI44) -> 0 | AN44: =COUNTIF(E44:AI44,"ОТ") -> 0 | AO44: 0 | AQ44: =D44 -> 0 | AR44: 0 | AS44: 0 | AT44: 0 | AU44: 0 | AV44: 0 | AW44: 0 | AX44: 0 | AY44: 0 | AZ44: 0 | BA44: 0 | BB44: 0
A45: 2025-02-01 | B45: 1 | C45: 19 | AK45: =SUM(- - ISTEXT(E45:AI45)) -> 0 | AL45: =COUNT(E45:AI45) -> 0 | AM45: =SUM(E45:AI45) -> 0 | AN45: =COUNTIF(E45:AI45,"ОТ") -> 0 | AO45: 0 | AQ45: =D45 -> 0 | AR45: 0 | AS45: 0 | AT45: 0 | AU45: 0 | AV45: 0 | AW45: 0 | AX45: 0 | AY45: 0 | AZ45: 0 | BA45: 0 | BB45: 0
A46: 2025-02-01 | B46: 1 | C46: 20 | AK46: =SUM(- - ISTEXT(E46:AI46)) -> 0 | AL46: =COUNT(E46:AI46) -> 0 | AM46: =SUM(E46:AI46) -> 0 | AN46: =COUNTIF(E46:AI46,"ОТ") -> 0 | AO46: 0 | AQ46: =D46 -> 0 | AR46: 0 | AS46: 0 | AT46: 0 | AU46: 0 | AV46: 0 | AW46: 0 | AX46: 0 | AY46: 0 | AZ46: 0 | BA46: 0 | BB46: 0
E47: =IF(E48=TODAY(),МЕТКА,"") -> 
B48: График | C48: 3 | D48: =DATE(ГОД,C48,1) -> 2025-03-01 | E48: =DATE(ГОД,C48,DAY(D48)) -> 2025-03-01 | F48: =IF(N(E48),IF(MONTH(E48+1)=$C48,E48+1,""),"") -> 2025-03-02 | G48: 2025-03-03 | H48: 2025-03-04 | I48: 2025-03-05 | J48: 2025-03-06 | K48: 2025-03-07 | L48: 2025-03-08 | M48: 2025-03-09 | N48: 2025-03-10 | O48: 2025-03-11 | P48: 2025-03-12 | Q48: 2025-03-13 | R48: 2025-03-14 | S48: 2025-03-15 | T48: 2025-03-16 | U48: 2025-03-17 | V48: 2025-03-18 | W48: 2025-03-19 | X48: 2025-03-20 | Y48: 2025-03-21 | Z48: 2025-03-22 | AA48: 2025-03-23 | AB48: 2025-03-24 | AC48: 2025-03-25 | AD48: 2025-03-26 | AE48: 2025-03-27 | AF48: 2025-03-28 | AG48: 2025-03-29 | AH48: 2025-03-30 | AI48: =IF(N(AH48),IF(MONTH(AH48+1)=$C48,AH48+1,""),"") -> 2025-03-31 | AK48: =AK$2 -> Не раб. дней | AL48: =AL$2 -> Раб. дней | AM48: =AM$2 -> Раб. час | AN48: =AN$2 -> Отпуск ПЛАН | AO48: =AO$2 -> Отгуляно на СЕГОДНЯ | AQ48: =$AQ$1 -> ОТЧЁТ за месяц
A49: =DATE(ГОД,C48,1) -> 2025-03-01 | E49: =E48 -> 2025-03-01 | F49: 2025-03-02 | G49: 2025-03-03 | H49: 2025-03-04 | I49: 2025-03-05 | J49: 2025-03-06 | K49: 2025-03-07 | L49: 2025-03-08 | M49: 2025-03-09 | N49: 2025-03-10 | O49: 2025-03-11 | P49: 2025-03-12 | Q49: 2025-03-13 | R49: 2025-03-14 | S49: 2025-03-15 | T49: 2025-03-16 | U49: 2025-03-17 | V49: 2025-03-18 | W49: 2025-03-19 | X49: 2025-03-20 | Y49: 2025-03-21 | Z49: 2025-03-22 | AA49: 2025-03-23 | AB49: 2025-03-24 | AC49: 2025-03-25 | AD49: 2025-03-26 | AE49: 2025-03-27 | AF49: 2025-03-28 | AG49: =AG48 -> 2025-03-29 | AH49: =AH48 -> 2025-03-30 | AI49: =AI48 -> 2025-03-31 | AQ49: =DATE(ГОД,C48,1) -> 2025-03-01 | AR49: =M$306 -> В | AS49: ОТ | AT49: ДО | AU49: Б | AV49: НН | AW49: ПР | AX49: К | AY49: НОД | AZ49: У | BA49: ОЗ | BB49: Г
A50: =OFFSET(A50,-1,0) -> 2025-03-01 | B50: 4А | C50: =N(OFFSET(C50,-1,0))+1 -> 1 | D50: Алёхин А.А. | E50: 13.5 | F50: 8 | G50: В | H50: В | I50: 13.5 | J50: 8 | K50: В | L50: В | M50: 13.5 | N50: 8 | O50: В | P50: В | Q50: 13.5 | R50: 8 | S50: В | T50: В | U50: 13.5 | V50: 8 | W50: В | X50: В | Y50: 13.5 | Z50: 8 | AA50: В | AB50: В | AC50: 13.5 | AD50: 8 | AE50: В | AF50: В | AG50: 13.5 | AH50: 8 | AI50: В | AK50: =SUM(- - ISTEXT(E50:AH50)) -> 14 | AL50: =COUNT(E50:AH50) -> 16 | AM50: =SUM(E50:AH50) -> 172 | AN50: =COUNTIF(E50:AI50,"ОТ") -> 0 | AO50: =IF(ГОД=YEAR(TODAY()),IF(MONTH(TODAY())<$C$48,0,IF(MONTH(TODAY())>$C$48,AN50,COUNTIF(OFFSET(E50,0,0,,DAY(TODAY())),"ОТ"))),0) -> 0 | AQ50: =D50 -> Алёхин А.А. | AR50: =COUNTIF($E50:$AI50,M$306) -> 15 | AS50: 0 | AT50: 0 | AU50: 0 | AV50: 0 | AW50: 0 | AX50: 0 | AY50: 0 | AZ50: 0 | BA50: 0 | BB50: 0
A51: =OFFSET(A51,-1,0) -> 2025-03-01 | B51: 4А | C51: =N(OFFSET(C51,-1,0))+1 -> 2 | D51: Борисов В.В. | E51: 13.5 | F51: 8 | G51: В | H51: В | I51: 13.5 | J51: 8 | K51: В | L51: В | M51: 13.5 | N51: 8 | O51: В | P51: В | Q51: 13.5 | R51: 8 | S51: В | T51: В | U51: 13.5 | V51: 8 | W51: В | X51: В | Y51: 13.5 | Z51: 8 | AA51: В | AB51: В | AC51: 13.5 | AD51: 8 | AE51: В | AF51: В | AG51: 13.5 | AH51: 8 | AI51: В | AK51: =SUM(- - ISTEXT(E51:AH51)) -> 14 | AL51: 16 | AM51: 172 | AN51: 0 | AO51: 0 | AQ51: =D51 -> Борисов В.В. | AR51: 15 | AS51: 0 | AT51: 0 | AU51: 0 | AV51: 0 | AW51: 0 | AX51: 0 | AY51: 0 | AZ51: 0 | BA51: 0 | BB51: 0
A52: 2025-03-01 | B52: 4Б | C52: 3 | D52: Володин В.В. | E52: В | F52: 13.5 | G52: 8 | H52: В | I52: В | J52: 13.5 | K52: 8 | L52: В | M52: В | N52: 13.5 | O52: 8 | P52: В | Q52: В | R52: 13.5 | S52: 8 | T52: В | U52: В | V52: 13.5 | W52: 8 | X52: В | Y52: В | Z52: 13.5 | AA52: 8 | AB52: В | AC52: В | AD52: 13.5 | AE52: 8 | AF52: В | AG52: В | AH52: 13.5 | AI52: 8 | AK52: =SUM(- - ISTEXT(E52:AH52)) -> 15 | AL52: 15 | AM52: 164 | AN52: 0 | AO52: 0 | AQ52: Володин В.В. | AR52: 15 | AS52: 0 | AT52: 0 | AU52: 0 | AV52: 0 | AW52: 0 | AX52: 0 | AY52: 0 | AZ52: 0 | BA52: 0 | BB52: 0
A53: 2025-03-01 | B53: 4Б | C53: 4 | D53: Гаврилов Г.Г. | E53: В | F53: 13.5 | G53: 8 | H53: В | I53: В | J53: 13.5 | K53: 8 | L53: В | M53: В | N53: 13.5 | O53: 8 | P53: В | Q53: В | R53: 13.5 | S53: 8 | T53: В | U53: В | V53: 13.5 | W53: 8 | X53: В | Y53: В | Z53: 13.5 | AA53: 8 | AB53: В | AC53: В | AD53: 13.5 | AE53: 8 | AF53: В | AG53: В | AH53: 13.5 | AI53: 8 | AK53: =SUM(- - ISTEXT(E53:AH53)) -> 15 | AL53: 15 | AM53: 164 | AN53: 0 | AO53: 0 | AQ53: Гаврилов Г.Г. | AR53: 15 | AS53: 0 | AT53: 0 | AU53: 0 | AV53: 0 | AW53: 0 | AX53: 0 | AY53: 0 | AZ53: 0 | BA53: 0 | BB53: 0
A54: 2025-03-01 | B54: 4В | C54: 5 | D54: Данилов Д.Д. | E54: В | F54: В | G54: 13.5 | H54: 8 | I54: В | J54: В | K54: 13.5 | L54: 8 | M54: В | N54: В | O54: 13.5 | P54: 8 | Q54: В | R54: В | S54: 13.5 | T54: 8 | U54: В | V54: В | W54: 13.5 | X54: 8 | Y54: В | Z54: В | AA54: 13.5 | AB54: 8 | AC54: В | AD54: В | AE54: 13.5 | AF54: 8 | AG54: В | AH54: В | AI54: 13.5 | AK54: =SUM(- - ISTEXT(E54:AH54)) -> 16 | AL54: 14 | AM54: 150.5 | AN54: 0 | AO54: 0 | AQ54: Данилов Д.Д. | AR54: 16 | AS54: 0 | AT54: 0 | AU54: 0 | AV54: 0 | AW54: 0 | AX54: 0 | AY54: 0 | AZ54: 0 | BA54: 0 | BB54: 0
A55: 2025-03-01 | B55: 4В | C55: 6 | D55: Ежов Е.Е. | E55: В | F55: В | G55: 13.5 | H55: 8 | I55: В | J55: В | K55: 13.5 | L55: 8 | M55: В | N55: В | O55: 13.5 | P55: 8 | Q55: В | R55: В | S55: 13.5 | T55: 8 | U55: В | V55: В | W55: 13.5 | X55: 8 | Y55: В | Z55: В | AA55: 13.5 | AB55: 8 | AC55: В | AD55: В | AE55: 13.5 | AF55: 8 | AG55: В | AH55: В | AI55: 13.5 | AK55: =SUM(- - ISTEXT(E55:AH55)) -> 16 | AL55: 14 | AM55: 150.5 | AN55: 0 | AO55: 0 | AQ55: Ежов Е.Е. | AR55: 16 | AS55: 0 | AT55: 0 | AU55: 0 | AV55: 0 | AW55: 0 | AX55: 0 | AY55: 0 | AZ55: 0 | BA55: 0 | BB55: 0
A56: 2025-03-01 | B56: 4Г | C56: 7 | D56: Зуев З.З. | E56: 8 | F56: В | G56: В | H56: 13.5 | I56: 8 | J56: В | K56: В | L56: 13.5 | M56: 8 | N56: В | O56: В | P56: 13.5 | Q56: 8 | R56: В | S56: В | T56: 13.5 | U56: 8 | V56: В | W56: В | X56: 13.5 | Y56: 8 | Z56: В | AA56: В | AB56: 13.5 | AC56: 8 | AD56: В | AE56: В | AF56: 13.5 | AG56: 8 | AH56: В | AI56: В | AK56: =SUM(- - ISTEXT(E56:AH56)) -> 15 | AL56: =COUNT(E56:AH56) -> 15 | AM56: =SUM(E56:AH56) -> 158.5 | AN56: =COUNTIF(E56:AI56,"ОТ") -> 0 | AO56: 0 | AQ56: Зуев З.З. | AR56: 16 | AS56: 0 | AT56: 0 | AU56: 0 | AV56: 0 | AW56: 0 | AX56: 0 | AY56: 0 | AZ56: 0 | BA56: 0 | BB56: 0
A57: 2025-03-01 | B57: 4Г | C57: 8 | D57: Иванов И.И. | E57: 8 | F57: В | G57: В | H57: 13.5 | I57: 8 | J57: В | K57: В | L57: 13.5 | M57: 8 | N57: В | O57: В | P57: 13.5 | Q57: 8 | R57: В | S57: В | T57: 13.5 | U57: 8 | V57: В | W57: В | X57: 13.5 | Y57: 8 | Z57: В | AA57: В | AB57: 13.5 | AC57: 8 | AD57: В | AE57: В | AF57: 13.5 | AG57: 8 | AH57: В | AI57: В | AK57: =SUM(- - ISTEXT(E57:AH57)) -> 15 | AL57: =COUNT(E57:AH57) -> 15 | AM57: =SUM(E57:AH57) -> 158.5 | AN57: =COUNTIF(E57:AI57,"ОТ") -> 0 | AO57: 0 | AQ57: Иванов И.И. | AR57: 16 | AS57: 0 | AT57: 0 | AU57: 0 | AV57: 0 | AW57: 0 | AX57: 0 | AY57: 0 | AZ57: 0 | BA57: 0 | BB57: 0
A58: 2025-03-01 | B58: 1 | C58: 9 | D58: Козлов К.К. | E58: В | F58: В | G58: 8.25 | H58: 8.25 | I58: 8.25 | J58: 8.25 | K58: 6 | L58: В | M58: В | N58: 8.25 | O58: 8.25 | P58: 8.25 | Q58: 8.25 | R58: 7 | S58: В | T58: В | U58: 8.25 | V58: 8.25 | W58: 8.25 | X58: 8.25 | Y58: 7 | Z58: В | AA58: В | AB58: 8.25 | AC58: 8.25 | AD58: 8.25 | AE58: 8.25 | AF58: 7 | AG58: В | AH58: В | AI58: 8.25 | AK58: =SUM(- - ISTEXT(E58:AH58)) -> 10 | AL58: 20 | AM58: 159 | AN58: 0 | AO58: 0 | AQ58: Козлов К.К. | AR58: 10 | AS58: 0 | AT58: 0 | AU58: 0 | AV58: 0 | AW58: 0 | AX58: 0 | AY58: 0 | AZ58: 0 | BA58: 0 | BB58: 0
A59: 2025-03-01 | B59: 1 | C59: 10 | D59: Львов Л.Л. | E59: В | F59: В | G59: 8.25 | H59: 8.25 | I59: 8.25 | J59: 8.25 | K59: 6 | L59: В | M59: В | N59: 8.25 | O59: 8.25 | P59: 8.25 | Q59: 8.25 | R59: 7 | S59: В | T59: В | U59: 8.25 | V59: 8.25 | W59: 8.25 | X59: 8.25 | Y59: 7 | Z59: В | AA59: В | AB59: 8.25 | AC59: 8.25 | AD59: 8.25 | AE59: 8.25 | AF59: 7 | AG59: В | AH59: В | AI59: 8.25 | AK59: =SUM(- - ISTEXT(E59:AH59)) -> 10 | AL59: 20 | AM59: 159 | AN59: 0 | AO59: 0 | AQ59: Львов Л.Л. | AR59: 10 | AS59: 0 | AT59: 0 | AU59: 0 | AV59: 0 | AW59: 0 | AX59: 0 | AY59: 0 | AZ59: 0 | BA59: 0 | BB59: 0
A60: 2025-03-01 | B60: 1 | C60: 11 | D60: Мишин М.М. | E60: В | F60: В | G60: 8.25 | H60: 8.25 | I60: 8.25 | J60: 8.25 | K60: 6 | L60: В | M60: В | N60: 8.25 | O60: 8.25 | P60: 8.25 | Q60: 8.25 | R60: 7 | S60: В | T60: В | U60: 8.25 | V60: 8.25 | W60: 8.25 | X60: 8.25 | Y60: 7 | Z60: В | AA60: В | AB60: 8.25 | AC60: 8.25 | AD60: 8.25 | AE60: 8.25 | AF60: 7 | AG60: В | AH60: В | AI60: 8.25 | AK60: =SUM(- - ISTEXT(E60:AH60)) -> 10 | AL60: 20 | AM60: 159 | AN60: 0 | AO60: 0 | AQ60: Мишин М.М. | AR60: 10 | AS60: 0 | AT60: 0 | AU60: 0 | AV60: 0 | AW60: 0 | AX60: 0 | AY60: 0 | AZ60: 0 | BA60: 0 | BB60: 0
A61: 2025-03-01 | B61: 1 | C61: 12 | D61: Носов Н.Н. | E61: В | F61: В | G61: 8.25 | H61: 8.25 | I61: 8.25 | J61: 8.25 | K61: 6 | L61: В | M61: В | N61: 8.25 | O61: 8.25 | P61: 8.25 | Q61: 8.25 | R61: 7 | S61: В | T61: В | U61: 8.25 | V61: 8.25 | W61: 8.25 | X61: 8.25 | Y61: 7 | Z61: В | AA61: В | AB61: 8.25 | AC61: 8.25 | AD61: 8.25 | AE61: 8.25 | AF61: 7 | AG61: В | AH61: В | AI61: 8.25 | AK61: =SUM(- - ISTEXT(E61:AH61)) -> 10 | AL61: 20 | AM61: 159 | AN61: 0 | AO61: 0 | AQ61: Носов Н.Н. | AR61: 10 | AS61: 0 | AT61: 0 | AU61: 0 | AV61: 0 | AW61: 0 | AX61: 0 | AY61: 0 | AZ61: 0 | BA61: 0 | BB61: 0
A62: 2025-03-01 | B62: 1 | C62: 13 | D62: Осин О.О. | E62: В | F62: В | G62: 8.25 | H62: 8.25 | I62: 8.25 | J62: 8.25 | K62: 6 | L62: В | M62: В | N62: 8.25 | O62: 8.25 | P62: 8.25 | Q62: 8.25 | R62: 7 | S62: В | T62: В | U62: 8.25 | V62: 8.25 | W62: 8.25 | X62: 8.25 | Y62: 7 | Z62: В | AA62: В | AB62: 8.25 | AC62: 8.25 | AD62: 8.25 | AE62: 8.25 | AF62: 7 | AG62: В | AH62: В | AI62: 8.25 | AK62: =SUM(- - ISTEXT(E62:AH62)) -> 10 | AL62: 20 | AM62: 159 | AN62: 0 | AO62: 0 | AQ62: Осин О.О. | AR62: 10 | AS62: 0 | AT62: 0 | AU62: 0 | AV62: 0 | AW62: 0 | AX62: 0 | AY62: 0 | AZ62: 0 | BA62: 0 | BB62: 0
A63: 2025-03-01 | B63: 1 | C63: 14 | D63: Попов П.П. | E63: В | F63: В | G63: 8.25 | H63: 8.25 | I63: 8.25 | J63: 8.25 | K63: 6 | L63: В | M63: В | N63: 8.25 | O63: 8.25 | P63: 8.25 | Q63: 8.25 | R63: 7 | S63: В | T63: В | U63: 8.25 | V63: 8.25 | W63: 8.25 | X63: 8.25 | Y63: 7 | Z63: В | AA63: В | AB63: 8.25 | AC63: 8.25 | AD63: 8.25 | AE63: 8.25 | AF63: 7 | AG63: В | AH63: В | AI63: 8.25 | AK63: =SUM(- - ISTEXT(E63:AH63)) -> 10 | AL63: 20 | AM63: 159 | AN63: 0 | AO63: 0 | AQ63: Попов П.П. | AR63: 10 | AS63: 0 | AT63: 0 | AU63: 0 | AV63: 0 | AW63: 0 | AX63: 0 | AY63: 0 | AZ63: 0 | BA63: 0 | BB63: 0
A64: 2025-03-01 | B64: 1 | C64: 15 | AK64: =SUM(- - ISTEXT(E64:AH64)) -> 0 | AL64: =COUNT(E64:AH64) -> 0 | AM64: =SUM(E64:AH64) -> 0 | AN64: =COUNTIF(E64:AI64,"ОТ") -> 0 | AO64: 0 | AQ64: =D64 -> 0 | AR64: 0 | AS64: 0 | AT64: 0 | AU64: 0 | AV64: 0 | AW64: 0 | AX64: 0 | AY64: 0 | AZ64: 0 | BA64: 0 | BB64: 0
A65: 2025-03-01 | B65: 1 | C65: 16 | AK65: =SUM(- - ISTEXT(E65:AH65)) -> 0 | AL65: =COUNT(E65:AH65) -> 0 | AM65: =SUM(E65:AH65) -> 0 | AN65: 0 | AO65: 0 | AQ65: 0 | AR65: 0 | AS65: 0 | AT65: 0 | AU65: 0 | AV65: 0 | AW65: 0 | AX65: 0 | AY65: 0 | AZ65: 0 | BA65: 0 | BB65: 0
A66: 2025-03-01 | B66: 1 | C66: 17 | AK66: =SUM(- - ISTEXT(E66:AI66)) -> 0 | AL66: =COUNT(E66:AI66) -> 0 | AM66: =SUM(E66:AI66) -> 0 | AN66: 0 | AO66: 0 | AQ66: 0 | AR66: 0 | AS66: 0 | AT66: 0 | AU66: 0 | AV66: 0 | AW66: 0 | AX66: 0 | AY66: 0 | AZ66: 0 | BA66: 0 | BB66: 0
A67: 2025-03-01 | B67: 1 | C67: 18 | AK67: =SUM(- - ISTEXT(E67:AI67)) -> 0 | AL67: =COUNT(E67:AI67) -> 0 | AM67: =SUM(E67:AI67) -> 0 | AN67: 0 | AO67: 0 | AQ67: 0 | AR67: 0 | AS67: 0 | AT67: 0 | AU67: 0 | AV67: 0 | AW67: 0 | AX67: 0 | AY67: 0 | AZ67: 0 | BA67: 0 | BB67: 0
A68: 2025-03-01 | B68: 1 | C68: 19 | AK68: =SUM(- - ISTEXT(E68:AI68)) -> 0 | AL68: =COUNT(E68:AI68) -> 0 | AM68: =SUM(E68:AI68) -> 0 | AN68: 0 | AO68: 0 | AQ68: 0 | AR68: 0 | AS68: 0 | AT68: 0 | AU68: 0 | AV68: 0 | AW68: 0 | AX68: 0 | AY68: 0 | AZ68: 0 | BA68: 0 | BB68: 0
A69: 2025-03-01 | B69: 1 | C69: 20 | AK69: =SUM(- - ISTEXT(E69:AI69)) -> 0 | AL69: =COUNT(E69:AI69) -> 0 | AM69: =SUM(E69:AI69) -> 0 | AN69: 0 | AO69: 0 | AQ69: 0 | AR69: 0 | AS69: 0 | AT69: 0 | AU69: 0 | AV69: 0 | AW69: 0 | AX69: 0 | AY69: 0 | AZ69: 0 | BA69: 0 | BB69: 0
E70: =IF(E71=TODAY(),МЕТКА,"") -> 
B71: График | C71: 4 | D71: =DATE(ГОД,C71,1) -> 2025-04-01 | E71: =DATE(ГОД,C71,DAY(D71)) -> 2025-04-01 | F71: =IF(N(E71),IF(MONTH(E71+1)=$C71,E71+1,""),"") -> 2025-04-02 | G71: 2025-04-03 | H71: 2025-04-04 | I71: 2025-04-05 | J71: 2025-04-06 | K71: 2025-04-07 | L71: 2025-04-08 | M71: 2025-04-09 | N71: 2025-04-10 | O71: 2025-04-11 | P71: 2025-04-12 | Q71: 2025-04-13 | R71: 2025-04-14 | S71: 2025-04-15 | T71: 2025-04-16 | U71: 2025-04-17 | V71: 2025-04-18 | W71: 2025-04-19 | X71: 2025-04-20 | Y71: 2025-04-21 | Z71: 2025-04-22 | AA71: 2025-04-23 | AB71: 2025-04-24 | AC71: 2025-04-25 | AD71: 2025-04-26 | AE71: 2025-04-27 | AF71: 2025-04-28 | AG71: 2025-04-29 | AH71: 2025-04-30 | AI71: =IF(N(AH71),IF(MONTH(AH71+1)=$C71,AH71+1,""),"") ->  | AK71: =AK$2 -> Не раб. дней | AL71: =AL$2 -> Раб. дней | AM71: =AM$2 -> Раб. час | AN71: =AN$2 -> Отпуск ПЛАН | AO71: =AO$2 -> Отгуляно на СЕГОДНЯ | AQ71: =$AQ$1 -> ОТЧЁТ за месяц
A72: =DATE(ГОД,C71,1) -> 2025-04-01 | E72: =E71 -> 2025-04-01 | F72: 2025-04-02 | G72: 2025-04-03 | H72: 2025-04-04 | I72: 2025-04-05 | J72: 2025-04-06 | K72: 2025-04-07 | L72: 2025-04-08 | M72: 2025-04-09 | N72: 2025-04-10 | O72: 2025-04-11 | P72: 2025-04-12 | Q72: 2025-04-13 | R72: 2025-04-14 | S72: 2025-04-15 | T72: 2025-04-16 | U72: 2025-04-17 | V72: 2025-04-18 | W72: 2025-04-19 | X72: 2025-04-20 | Y72: 2025-04-21 | Z72: 2025-04-22 | AA72: 2025-04-23 | AB72: 2025-04-24 | AC72: 2025-04-25 | AD72: 2025-04-26 | AE72: 2025-04-27 | AF72: 2025-04-28 | AG72: =AG71 -> 2025-04-29 | AH72: =AH71 -> 2025-04-30 | AI72: =AI71 ->  | AQ72: =DATE(ГОД,C71,1) -> 2025-04-01 | AR72: =M$306 -> В | AS72: ОТ | AT72: ДО | AU72: Б | AV72: НН | AW72: ПР | AX72: К | AY72: НОД | AZ72: У | BA72: ОЗ | BB72: Г
A73: =OFFSET(A73,-1,0) -> 2025-04-01 | B73: 4А | C73: =N(OFFSET(C73,-1,0))+1 -> 1 | D73: Алёхин А.А. | E73: В | F73: 13.5 | G73: 8 | H73: В | I73: В | J73: 13.5 | K73: 8 | L73: В | M73: В | N73: 13.5 | O73: 8 | P73: В | Q73: В | R73: 13.5 | S73: 8 | T73: В | U73: В | V73: 13.5 | W73: 8 | X73: В | Y73: В | Z73: 13.5 | AA73: 8 | AB73: В | AC73: В | AD73: 13.5 | AE73: 8 | AF73: В | AG73: В | AH73: 13.5 | AK73: =SUM(- - ISTEXT(E73:AH73)) -> 15 | AL73: =COUNT(E73:AH73) -> 15 | AM73: =SUM(E73:AH73) -> 164 | AN73: =COUNTIF(E73:AI73,"ОТ") -> 0 | AO73: =IF(ГОД=YEAR(TODAY()),IF(MONTH(TODAY())<$C$48,0,IF(MONTH(TODAY())>$C$48,AN73,COUNTIF(OFFSET(E73,0,0,,DAY(TODAY())),"ОТ"))),0) -> 0 | AQ73: =D73 -> Алёхин А.А. | AR73: =COUNTIF($E73:$AI73,M$306) -> 15 | AS73: 0 | AT73: 0 | AU73: 0 | AV73: 0 | AW73: 0 | AX73: 0 | AY73: 0 | AZ73: 0 | BA73: 0 | BB73: 0
A74: =OFFSET(A74,-1,0) -> 2025-04-01 | B74: 4А | C74: =N(OFFSET(C74,-1,0))+1 -> 2 | D74: Борисов В.В. | E74: В | F74: 13.5 | G74: 8 | H74: В | I74: В | J74: 13.5 | K74: 8 | L74: В | M74: В | N74: 13.5 | O74: 8 | P74: В | Q74: В | R74: 13.5 | S74: 8 | T74: В | U74: В | V74: 13.5 | W74: 8 | X74: В | Y74: В | Z74: 13.5 | AA74: 8 | AB74: В | AC74: В | AD74: 13.5 | AE74: 8 | AF74: В | AG74: В | AH74: 13.5 | AK74: =SUM(- - ISTEXT(E74:AH74)) -> 15 | AL74: =COUNT(E74:AH74) -> 15 | AM74: =SUM(E74:AH74) -> 164 | AN74: 0 | AO74: 0 | AQ74: =D74 -> Борисов В.В. | AR74: 15 | AS74: 0 | AT74: 0 | AU74: 0 | AV74: 0 | AW74: 0 | AX74: 0 | AY74: 0 | AZ74: 0 | BA74: 0 | BB74: 0
A75: 2025-04-01 | B75: 4Б | C75: 3 | D75: Володин В.В. | E75: В | F75: В | G75: 13.5 | H75: 8 | I75: В | J75: В | K75: 13.5 | L75: 8 | M75: В | N75: В | O75: 13.5 | P75: 8 | Q75: В | R75: В | S75: 13.5 | T75: 8 | U75: В | V75: В | W75: 13.5 | X75: 8 | Y75: В | Z75: В | AA75: 13.5 | AB75: 8 | AC75: В | AD75: В | AE75: 13.5 | AF75: 8 | AG75: В | AH75: В | AK75: =SUM(- - ISTEXT(E75:AH75)) -> 16 | AL75: 14 | AM75: 150.5 | AN75: 0 | AO75: 0 | AQ75: Володин В.В. | AR75: 16 | AS75: 0 | AT75: 0 | AU75: 0 | AV75: 0 | AW75: 0 | AX75: 0 | AY75: 0 | AZ75: 0 | BA75: 0 | BB75: 0
A76: 2025-04-01 | B76: 4Б | C76: 4 | D76: Гаврилов Г.Г. | E76: В | F76: В | G76: 13.5 | H76: 8 | I76: В | J76: В | K76: 13.5 | L76: 8 | M76: В | N76: В | O76: 13.5 | P76: 8 | Q76: В | R76: В | S76: 13.5 | T76: 8 | U76: В | V76: В | W76: 13.5 | X76: 8 | Y76: В | Z76: В | AA76: 13.5 | AB76: 8 | AC76: В | AD76: В | AE76: 13.5 | AF76: 8 | AG76: В | AH76: В | AK76: =SUM(- - ISTEXT(E76:AH76)) -> 16 | AL76: 14 | AM76: 150.5 | AN76: 0 | AO76: 0 | AQ76: Гаврилов Г.Г. | AR76: 16 | AS76: 0 | AT76: 0 | AU76: 0 | AV76: 0 | AW76: 0 | AX76: 0 | AY76: 0 | AZ76: 0 | BA76: 0 | BB76: 0
A77: 2025-04-01 | B77: 4В | C77: 5 | D77: Данилов Д.Д. | E77: 8 | F77: В | G77: В | H77: 13.5 | I77: 8 | J77: В | K77: В | L77: 13.5 | M77: 8 | N77: В | O77: В | P77: 13.5 | Q77: 8 | R77: В | S77: В | T77: 13.5 | U77: 8 | V77: В | W77: В | X77: 13.5 | Y77: 8 | Z77: В | AA77: В | AB77: 13.5 | AC77: 8 | AD77: В | AE77: В | AF77: 13.5 | AG77: 8 | AH77: В | AK77: =SUM(- - ISTEXT(E77:AH77)) -> 15 | AL77: 15 | AM77: 158.5 | AN77: 0 | AO77: 0 | AQ77: Данилов Д.Д. | AR77: 15 | AS77: 0 | AT77: 0 | AU77: 0 | AV77: 0 | AW77: 0 | AX77: 0 | AY77: 0 | AZ77: 0 | BA77: 0 | BB77: 0
A78: 2025-04-01 | B78: 4В | C78: 6 | D78: Ежов Е.Е. | E78: 8 | F78: В | G78: В | H78: 13.5 | I78: 8 | J78: В | K78: В | L78: 13.5 | M78: 8 | N78: В | O78: В | P78: 13.5 | Q78: 8 | R78: В | S78: В | T78: 13.5 | U78: 8 | V78: В | W78: В | X78: 13.5 | Y78: 8 | Z78: В | AA78: В | AB78: 13.5 | AC78: 8 | AD78: В | AE78: В | AF78: 13.5 | AG78: 8 | AH78: В | AK78: =SUM(- - ISTEXT(E78:AH78)) -> 15 | AL78: 15 | AM78: 158.5 | AN78: 0 | AO78: 0 | AQ78: Ежов Е.Е. | AR78: 15 | AS78: 0 | AT78: 0 | AU78: 0 | AV78: 0 | AW78: 0 | AX78: 0 | AY78: 0 | AZ78: 0 | BA78: 0 | BB78: 0
A79: 2025-04-01 | B79: 4Г | C79: 7 | D79: Зуев З.З. | E79: 13.5 | F79: 8 | G79: В | H79: В | I79: 13.5 | J79: 8 | K79: В | L79: В | M79: 13.5 | N79: 8 | O79: В | P79: В | Q79: 13.5 | R79: 8 | S79: В | T79: В | U79: 13.5 | V79: 8 | W79: В | X79: В | Y79: 13.5 | Z79: 8 | AA79: В | AB79: В | AC79: 13.5 | AD79: 8 | AE79: В | AF79: В | AG79: 13.5 | AH79: 8 | AK79: =SUM(- - ISTEXT(E79:AH79)) -> 14 | AL79: 16 | AM79: 172 | AN79: 0 | AO79: 0 | AQ79: Зуев З.З. | AR79: 14 | AS79: 0 | AT79: 0 | AU79: 0 | AV79: 0 | AW79: 0 | AX79: 0 | AY79: 0 | AZ79: 0 | BA79: 0 | BB79: 0
A80: 2025-04-01 | B80: 4Г | C80: 8 | D80: Иванов И.И. | E80: 13.5 | F80: 8 | G80: В | H80: В | I80: 13.5 | J80: 8 | K80: В | L80: В | M80: 13.5 | N80: 8 | O80: В | P80: В | Q80: 13.5 | R80: 8 | S80: В | T80: В | U80: 13.5 | V80: 8 | W80: В | X80: В | Y80: 13.5 | Z80: 8 | AA80: В | AB80: В | AC80: 13.5 | AD80: 8 | AE80: В | AF80: В | AG80: 13.5 | AH80: 8 | AK80: =SUM(- - ISTEXT(E80:AH80)) -> 14 | AL80: 16 | AM80: 172 | AN80: 0 | AO80: 0 | AQ80: Иванов И.И. | AR80: 14 | AS80: 0 | AT80: 0 | AU80: 0 | AV80: 0 | AW80: 0 | AX80: 0 | AY80: 0 | AZ80: 0 | BA80: 0 | BB80: 0
A81: 2025-04-01 | B81: 1 | C81: 9 | D81: Козлов К.К. | E81: 8.25 | F81: 8.25 | G81: 8.25 | H81: 7 | I81: В | J81: В | K81: 8.25 | L81: 8.25 | M81: 8.25 | N81: 8.25 | O81: 7 | P81: В | Q81: В | R81: 8.25 | S81: 8.25 | T81: 8.25 | U81: 8.25 | V81: 7 | W81: В | X81: В | Y81: 8.25 | Z81: 8.25 | AA81: 8.25 | AB81: 8.25 | AC81: 7 | AD81: В | AE81: В | AF81: 8.25 | AG81: 8.25 | AH81: 7.25 | AK81: =SUM(- - ISTEXT(E81:AH81)) -> 8 | AL81: 22 | AM81: 175.5 | AN81: 0 | AO81: 0 | AQ81: Козлов К.К. | AR81: 8 | AS81: 0 | AT81: 0 | AU81: 0 | AV81: 0 | AW81: 0 | AX81: 0 | AY81: 0 | AZ81: 0 | BA81: 0 | BB81: 0
A82: 2025-04-01 | B82: 1 | C82: 10 | D82: Львов Л.Л. | E82: 8.25 | F82: 8.25 | G82: 8.25 | H82: 7 | I82: В | J82: В | K82: 8.25 | L82: 8.25 | M82: 8.25 | N82: 8.25 | O82: 7 | P82: В | Q82: В | R82: 8.25 | S82: 8.25 | T82: 8.25 | U82: 8.25 | V82: 7 | W82: В | X82: В | Y82: 8.25 | Z82: 8.25 | AA82: 8.25 | AB82: 8.25 | AC82: 7 | AD82: В | AE82: В | AF82: 8.25 | AG82: 8.25 | AH82: 7.25 | AK82: =SUM(- - ISTEXT(E82:AH82)) -> 8 | AL82: 22 | AM82: 175.5 | AN82: 0 | AO82: 0 | AQ82: Львов Л.Л. | AR82: 8 | AS82: 0 | AT82: 0 | AU82: 0 | AV82: 0 | AW82: 0 | AX82: 0 | AY82: 0 | AZ82: 0 | BA82: 0 | BB82: 0
A83: 2025-04-01 | B83: 1 | C83: 11 | D83: Мишин М.М. | E83: 8.25 | F83: 8.25 | G83: 8.25 | H83: 7 | I83: В | J83: В | K83: 8.25 | L83: 8.25 | M83: 8.25 | N83: 8.25 | O83: 7 | P83: В | Q83: В | R83: 8.25 | S83: 8.25 | T83: 8.25 | U83: 8.25 | V83: 7 | W83: В | X83: В | Y83: 8.25 | Z83: 8.25 | AA83: 8.25 | AB83: 8.25 | AC83: 7 | AD83: В | AE83: В | AF83: 8.25 | AG83: 8.25 | AH83: 7.25 | AK83: =SUM(- - ISTEXT(E83:AH83)) -> 8 | AL83: 22 | AM83: 175.5 | AN83: 0 | AO83: 0 | AQ83: Мишин М.М. | AR83: 8 | AS83: 0 | AT83: 0 | AU83: 0 | AV83: 0 | AW83: 0 | AX83: 0 | AY83: 0 | AZ83: 0 | BA83: 0 | BB83: 0
A84: 2025-04-01 | B84: 1 | C84: 12 | D84: Носов Н.Н. | E84: 8.25 | F84: 8.25 | G84: 8.25 | H84: 7 | I84: В | J84: В | K84: 8.25 | L84: 8.25 | M84: 8.25 | N84: 8.25 | O84: 7 | P84: В | Q84: В | R84: 8.25 | S84: 8.25 | T84: 8.25 | U84: 8.25 | V84: 7 | W84: В | X84: В | Y84: 8.25 | Z84: 8.25 | AA84: 8.25 | AB84: 8.25 | AC84: 7 | AD84: В | AE84: В | AF84: ОТ | AG84: ОТ | AH84: ОТ | AK84: =SUM(- - ISTEXT(E84:AH84)) -> 11 | AL84: 19 | AM84: 151.75 | AN84: 3 | AO84: 0 | AQ84: Носов Н.Н. | AR84: 8 | AS84: 3 | AT84: 0 | AU84: 0 | AV84: 0 | AW84: 0 | AX84: 0 | AY84: 0 | AZ84: 0 | BA84: 0 | BB84: 0
A85: 2025-04-01 | B85: 1 | C85: 13 | D85: Осин О.О. | E85: 8.25 | F85: 8.25 | G85: 8.25 | H85: 7 | I85: В | J85: В | K85: 8.25 | L85: 8.25 | M85: 8.25 | N85: 8.25 | O85: 7 | P85: В | Q85: В | R85: 8.25 | S85: 8.25 | T85: 8.25 | U85: 8.25 | V85: 7 | W85: В | X85: В | Y85: 8.25 | Z85: 8.25 | AA85: 8.25 | AB85: 8.25 | AC85: 7 | AD85: В | AE85: В | AF85: 8.25 | AG85: 8.25 | AH85: 7.25 | AK85: =SUM(- - ISTEXT(E85:AH85)) -> 8 | AL85: 22 | AM85: 175.5 | AN85: 0 | AO85: 0 | AQ85: Осин О.О. | AR85: 8 | AS85: 0 | AT85: 0 | AU85: 0 | AV85: 0 | AW85: 0 | AX85: 0 | AY85: 0 | AZ85: 0 | BA85: 0 | BB85: 0
A86: 2025-04-01 | B86: 1 | C86: 14 | D86: Попов П.П. | E86: 8.25 | F86: 8.25 | G86: 8.25 | H86: 7 | I86: В | J86: В | K86: 8.25 | L86: 8.25 | M86: 8.25 | N86: 8.25 | O86: 7 | P86: В | Q86: В | R86: 8.25 | S86: 8.25 | T86: 8.25 | U86: 8.25 | V86: 7 | W86: В | X86: В | Y86: 8.25 | Z86: 8.25 | AA86: 8.25 | AB86: 8.25 | AC86: 7 | AD86: В | AE86: В | AF86: 8.25 | AG86: 8.25 | AH86: 7.25 | AK86: =SUM(- - ISTEXT(E86:AH86)) -> 8 | AL86: 22 | AM86: 175.5 | AN86: 0 | AO86: 0 | AQ86: Попов П.П. | AR86: 8 | AS86: 0 | AT86: 0 | AU86: 0 | AV86: 0 | AW86: 0 | AX86: 0 | AY86: 0 | AZ86: 0 | BA86: 0 | BB86: 0
A87: 2025-04-01 | B87: 1 | C87: 15 | AK87: =SUM(- - ISTEXT(E87:AH87)) -> 0 | AL87: =COUNT(E87:AH87) -> 0 | AM87: =SUM(E87:AH87) -> 0 | AN87: =COUNTIF(E87:AI87,"ОТ") -> 0 | AO87: 0 | AQ87: =D87 -> 0 | AR87: 0 | AS87: 0 | AT87: 0 | AU87: 0 | AV87: 0 | AW87: 0 | AX87: 0 | AY87: 0 | AZ87: 0 | BA87: 0 | BB87: 0
A88: 2025-04-01 | B88: 1 | C88: 16 | AK88: =SUM(- - ISTEXT(E88:AH88)) -> 0 | AL88: 0 | AM88: 0 | AN88: 0 | AO88: 0 | AQ88: 0 | AR88: 0 | AS88: 0 | AT88: 0 | AU88: 0 | AV88: 0 | AW88: 0 | AX88: 0 | AY88: 0 | AZ88: 0 | BA88: 0 | BB88: 0
A89: 2025-04-01 | B89: 1 | C89: 17 | AK89: =SUM(- - ISTEXT(E89:AH89)) -> 0 | AL89: 0 | AM89: 0 | AN89: 0 | AO89: 0 | AQ89: 0 | AR89: 0 | AS89: 0 | AT89: 0 | AU89: 0 | AV89: 0 | AW89: 0 | AX89: 0 | AY89: 0 | AZ89: 0 | BA89: 0 | BB89: 0
A90: 2025-04-01 | B90: 1 | C90: 18 | AK90: =SUM(- - ISTEXT(E90:AH90)) -> 0 | AL90: 0 | AM90: 0 | AN90: 0 | AO90: 0 | AQ90: 0 | AR90: 0 | AS90: 0 | AT90: 0 | AU90: 0 | AV90: 0 | AW90: 0 | AX90: 0 | AY90: 0 | AZ90: 0 | BA90: 0 | BB90: 0
A91: 2025-04-01 | B91: 1 | C91: 19 | AK91: =SUM(- - ISTEXT(E91:AH91)) -> 0 | AL91: 0 | AM91: 0 | AN91: 0 | AO91: 0 | AQ91: 0 | AR91: 0 | AS91: 0 | AT91: 0 | AU91: 0 | AV91: 0 | AW91: 0 | AX91: 0 | AY91: 0 | AZ91: 0 | BA91: 0 | BB91: 0
A92: 2025-04-01 | B92: 1 | C92: 20 | AK92: =SUM(- - ISTEXT(E92:AH92)) -> 0 | AL92: 0 | AM92: 0 | AN92: 0 | AO92: 0 | AQ92: 0 | AR92: 0 | AS92: 0 | AT92: 0 | AU92: 0 | AV92: 0 | AW92: 0 | AX92: 0 | AY92: 0 | AZ92: 0 | BA92: 0 | BB92: 0
E93: =IF(E94=TODAY(),МЕТКА,"") -> 
B94: График | C94: 5 | D94: =DATE(ГОД,C94,1) -> 2025-05-01 | E94: =DATE(ГОД,C94,DAY(D94)) -> 2025-05-01 | F94: =IF(N(E94),IF(MONTH(E94+1)=$C94,E94+1,""),"") -> 2025-05-02 | G94: 2025-05-03 | H94: 2025-05-04 | I94: 2025-05-05 | J94: 2025-05-06 | K94: 2025-05-07 | L94: 2025-05-08 | M94: 2025-05-09 | N94: 2025-05-10 | O94: 2025-05-11 | P94: 2025-05-12 | Q94: 2025-05-13 | R94: 2025-05-14 | S94: 2025-05-15 | T94: 2025-05-16 | U94: 2025-05-17 | V94: 2025-05-18 | W94: 2025-05-19 | X94: 2025-05-20 | Y94: 2025-05-21 | Z94: 2025-05-22 | AA94: 2025-05-23 | AB94: 2025-05-24 | AC94: 2025-05-25 | AD94: 2025-05-26 | AE94: 2025-05-27 | AF94: 2025-05-28 | AG94: 2025-05-29 | AH94: 2025-05-30 | AI94: =IF(N(AH94),IF(MONTH(AH94+1)=$C94,AH94+1,""),"") -> 2025-05-31 | AK94: =AK$2 -> Не раб. дней | AL94: =AL$2 -> Раб. дней | AM94: =AM$2 -> Раб. час | AN94: =AN$2 -> Отпуск ПЛАН | AO94: =AO$2 -> Отгуляно на СЕГОДНЯ | AQ94: =$AQ$1 -> ОТЧЁТ за месяц
A95: =DATE(ГОД,C94,1) -> 2025-05-01 | E95: =E94 -> 2025-05-01 | F95: 2025-05-02 | G95: 2025-05-03 | H95: 2025-05-04 | I95: 2025-05-05 | J95: 2025-05-06 | K95: 2025-05-07 | L95: 2025-05-08 | M95: 2025-05-09 | N95: 2025-05-10 | O95: 2025-05-11 | P95: 2025-05-12 | Q95: 2025-05-13 | R95: 2025-05-14 | S95: 2025-05-15 | T95: 2025-05-16 | U95: 2025-05-17 | V95: 2025-05-18 | W95: 2025-05-19 | X95: 2025-05-20 | Y95: 2025-05-21 | Z95: 2025-05-22 | AA95: 2025-05-23 | AB95: 2025-05-24 | AC95: 2025-05-25 | AD95: 2025-05-26 | AE95: 2025-05-27 | AF95: 2025-05-28 | AG95: =AG94 -> 2025-05-29 | AH95: =AH94 -> 2025-05-30 | AI95: =AI94 -> 2025-05-31 | AQ95: =DATE(ГОД,C94,1) -> 2025-05-01 | AR95: =M$306 -> В | AS95: ОТ | AT95: ДО | AU95: Б | AV95: НН | AW95: ПР | AX95: К | AY95: НОД | AZ95: У | BA95: ОЗ | BB95: Г
A96: =OFFSET(A96,-1,0) -> 2025-05-01 | B96: 4А | C96: =N(OFFSET(C96,-1,0))+1 -> 1 | D96: Алёхин А.А. | E96: 8 | F96: В | G96: В | H96: 13.5 | I96: 8 | J96: В | K96: В | L96: 13.5 | M96: 8 | N96: В | O96: В | P96: 13.5 | Q96: 8 | R96: В | S96: В | T96: 13.5 | U96: 8 | V96: В | W96: В | X96: 13.5 | Y96: 8 | Z96: В | AA96: В | AB96: 13.5 | AC96: 8 | AD96: В | AE96: В | AF96: 13.5 | AG96: 8 | AH96: В | AI96: В | AK96: =SUM(- - ISTEXT(E96:AH96)) -> 15 | AL96: =COUNT(E96:AH96) -> 15 | AM96: =SUM(E96:AH96) -> 158.5 | AN96: =COUNTIF(E96:AI96,"ОТ") -> 0 | AO96: =IF(ГОД=YEAR(TODAY()),IF(MONTH(TODAY())<$C$94,0,IF(MONTH(TODAY())>$C$94,AN96,COUNTIF(OFFSET(#REF!,0,0,,DAY(TODAY())),"ОТ"))),0) -> 0 | AQ96: =D96 -> Алёхин А.А. | AR96: =COUNTIF($E96:$AI96,M$306) -> 16 | AS96: 0 | AT96: 0 | AU96: 0 | AV96: 0 | AW96: 0 | AX96: 0 | AY96: 0 | AZ96: 0 | BA96: 0 | BB96: 0
A97: =OFFSET(A97,-1,0) -> 2025-05-01 | B97: 4А | C97: =N(OFFSET(C97,-1,0))+1 -> 2 | D97: Борисов В.В. | E97: 8 | F97: В | G97: В | H97: 13.5 | I97: 8 | J97: В | K97: В | L97: 13.5 | M97: 8 | N97: В | O97: В | P97: 13.5 | Q97: 8 | R97: В | S97: В | T97: 13.5 | U97: 8 | V97: В | W97: В | X97: 13.5 | Y97: 8 | Z97: В | AA97: В | AB97: 13.5 | AC97: 8 | AD97: В | AE97: В | AF97: 13.5 | AG97: 8 | AH97: В | AI97: В | AK97: =SUM(- - ISTEXT(E97:AH97)) -> 15 | AL97: =COUNT(E97:AH97) -> 15 | AM97: =SUM(E97:AH97) -> 158.5 | AN97: =COUNTIF(E97:AI97,"ОТ") -> 0 | AO97: =IF(ГОД=YEAR(TODAY()),IF(MONTH(TODAY())<$C$94,0,IF(MONTH(TODAY())>$C$94,AN97,COUNTIF(OFFSET(#REF!,0,0,,DAY(TODAY())),"ОТ"))),0) -> 0 | AQ97: =D97 -> Борисов В.В. | AR97: 16 | AS97: 0 | AT97: 0 | AU97: 0 | AV97: 0 | AW97: 0 | AX97: 0 | AY97: 0 | AZ97: 0 | BA97: 0 | BB97: 0
A98: 2025-05-01 | B98: 4Б | C98: 3 | D98: Володин В.В. | E98: 13.5 | F98: 8 | G98: В | H98: В | I98: 13.5 | J98: 8 | K98: В | L98: В | M98: 13.5 | N98: 8 | O98: В | P98: В | Q98: 13.5 | R98: 8 | S98: В | T98: В | U98: 13.5 | V98: 8 | W98: В | X98: В | Y98: 13.5 | Z98: 8 | AA98: В | AB98: В | AC98: 13.5 | AD98: 8 | AE98: В | AF98: В | AG98: 13.5 | AH98: 8 | AI98: В | AK98: =SUM(- - ISTEXT(E98:AH98)) -> 14 | AL98: 16 | AM98: 172 | AN98: 0 | AO98: =IF(ГОД=YEAR(TODAY()),IF(MONTH(TODAY())<$C$94,0,IF(MONTH(TODAY())>$C$94,AN98,COUNTIF(OFFSET(#REF!,0,0,,DAY(TODAY())),"ОТ"))),0) -> 0 | AQ98: Володин В.В. | AR98: 15 | AS98: 0 | AT98: 0 | AU98: 0 | AV98: 0 | AW98: 0 | AX98: 0 | AY98: 0 | AZ98: 0 | BA98: 0 | BB98: 0
A99: 2025-05-01 | B99: 4Б | C99: 4 | D99: Гаврилов Г.Г. | E99: 13.5 | F99: 8 | G99: В | H99: В | I99: 13.5 | J99: 8 | K99: В | L99: В | M99: 13.5 | N99: 8 | O99: В | P99: В | Q99: 13.5 | R99: 8 | S99: В | T99: В | U99: 13.5 | V99: 8 | W99: В | X99: В | Y99: 13.5 | Z99: 8 | AA99: В | AB99: В | AC99: 13.5 | AD99: 8 | AE99: В | AF99: В | AG99: 13.5 | AH99: 8 | AI99: В | AK99: =SUM(- - ISTEXT(E99:AH99)) -> 14 | AL99: 16 | AM99: 172 | AN99: 0 | AO99: =IF(ГОД=YEAR(TODAY()),IF(MONTH(TODAY())<$C$94,0,IF(MONTH(TODAY())>$C$94,AN99,COUNTIF(OFFSET(#REF!,0,0,,DAY(TODAY())),"ОТ"))),0) -> 0 | AQ99: Гаврилов Г.Г. | AR99: 15 | AS99: 0 | AT99: 0 | AU99: 0 | AV99: 0 | AW99: 0 | AX99: 0 | AY99: 0 | AZ99: 0 | BA99: 0 | BB99: 0
A100: 2025-05-01 | B100: 4В | C100: 5 | D100: Данилов Д.Д. | E100: В | F100: 13.5 | G100: 8 | H100: В | I100: В | J100: 13.5 | K100: 8 | L100: В | M100: В | N100: 13.5 | O100: 8 | P100: В | Q100: В | R100: 13.5 | S100: 8 | T100: В | U100: В | V100: 13.5 | W100: 8 | X100: В | Y100: В | Z100: 13.5 | AA100: 8 | AB100: В | AC100: В | AD100: 13.5 | AE100: 8 | AF100: В | AG100: В | AH100: 13.5 | AI100: 8 | AK100: =SUM(- - ISTEXT(E100:AH100)) -> 15 | AL100: 15 | AM100: 164 | AN100: 0 | AO100: =IF(ГОД=YEAR(TODAY()),IF(MONTH(TODAY())<$C$94,0,IF(MONTH(TODAY())>$C$94,AN100,COUNTIF(OFFSET(#REF!,0,0,,DAY(TODAY())),"ОТ"))),0) -> 0 | AQ100: Данилов Д.Д. | AR100: 15 | AS100: 0 | AT100: 0 | AU100: 0 | AV100: 0 | AW100: 0 | AX100: 0 | AY100: 0 | AZ100: 0 | BA100: 0 | BB100: 0
A101: 2025-05-01 | B101: 4В | C101: 6 | D101: Ежов Е.Е. | E101: В | F101: 13.5 | G101: 8 | H101: В | I101: В | J101: 13.5 | K101: 8 | L101: В | M101: В | N101: 13.5 | O101: 8 | P101: В | Q101: В | R101: 13.5 | S101: 8 | T101: В | U101: В | V101: 13.5 | W101: 8 | X101: В | Y101: В | Z101: 13.5 | AA101: 8 | AB101: В | AC101: В | AD101: 13.5 | AE101: 8 | AF101: В | AG101: В | AH101: ОТ | AI101: ОТ | AK101: =SUM(- - ISTEXT(E101:AH101)) -> 16 | AL101: 14 | AM101: 150.5 | AN101: 2 | AO101: =IF(ГОД=YEAR(TODAY()),IF(MONTH(TODAY())<$C$94,0,IF(MONTH(TODAY())>$C$94,AN101,COUNTIF(OFFSET(#REF!,0,0,,DAY(TODAY())),"ОТ"))),0) -> 0 | AQ101: Ежов Е.Е. | AR101: 15 | AS101: 2 | AT101: 0 | AU101: 0 | AV101: 0 | AW101: 0 | AX101: 0 | AY101: 0 | AZ101: 0 | BA101: 0 | BB101: 0
A102: 2025-05-01 | B102: 4Г | C102: 7 | D102: Зуев З.З. | E102: В | F102: В | G102: 13.5 | H102: 8 | I102: В | J102: В | K102: 13.5 | L102: 8 | M102: В | N102: В | O102: 13.5 | P102: 8 | Q102: В | R102: В | S102: 13.5 | T102: 8 | U102: В | V102: В | W102: 13.5 | X102: 8 | Y102: В | Z102: В | AA102: 13.5 | AB102: 8 | AC102: В | AD102: В | AE102: 13.5 | AF102: 8 | AG102: В | AH102: В | AI102: 13.5 | AK102: =SUM(- - ISTEXT(E102:AH102)) -> 16 | AL102: 14 | AM102: 150.5 | AN102: 0 | AO102: =IF(ГОД=YEAR(TODAY()),IF(MONTH(TODAY())<$C$94,0,IF(MONTH(TODAY())>$C$94,AN102,COUNTIF(OFFSET(#REF!,0,0,,DAY(TODAY())),"ОТ"))),0) -> 0 | AQ102: Зуев З.З. | AR102: 16 | AS102: 0 | AT102: 0 | AU102: 0 | AV102: 0 | AW102: 0 | AX102: 0 | AY102: 0 | AZ102: 0 | BA102: 0 | BB102: 0
A103: 2025-05-01 | B103: 4Г | C103: 8 | D103: Иванов И.И. | E103: В | F103: В | G103: 13.5 | H103: 8 | I103: В | J103: В | K103: 13.5 | L103: 8 | M103: В | N103: В | O103: 13.5 | P103: 8 | Q103: В | R103: В | S103: 13.5 | T103: 8 | U103: В | V103: В | W103: 13.5 | X103: 8 | Y103: В | Z103: В | AA103: 13.5 | AB103: 8 | AC103: В | AD103: В | AE103: 13.5 | AF103: 8 | AG103: В | AH103: В | AI103: 13.5 | AK103: =SUM(- - ISTEXT(E103:AH103)) -> 16 | AL103: 14 | AM103: 150.5 | AN103: 0 | AO103: =IF(ГОД=YEAR(TODAY()),IF(MONTH(TODAY())<$C$94,0,IF(MONTH(TODAY())>$C$94,AN103,COUNTIF(OFFSET(#REF!,0,0,,DAY(TODAY())),"ОТ"))),0) -> 0 | AQ103: Иванов И.И. | AR103: 16 | AS103: 0 | AT103: 0 | AU103: 0 | AV103: 0 | AW103: 0 | AX103: 0 | AY103: 0 | AZ103: 0 | BA103: 0 | BB103: 0
A104: 2025-05-01 | B104: 1 | C104: 9 | D104: Козлов К.К. | E104: В | F104: В | G104: В | H104: В | I104: 8.25 | J104: 8.25 | K104: 8.25 | L104: В | M104: В | N104: В | O104: В | P104: 8.25 | Q104: 8.25 | R104: 8.25 | S104: 8.25 | T104: 7 | U104: В | V104: В | W104: 8.25 | X104: 8.25 | Y104: 8.25 | Z104: 8.25 | AA104: 7 | AB104: В | AC104: В | AD104: 8.25 | AE104: 8.25 | AF104: 8.25 | AG104: 8.25 | AH104: 7 | AI104: В | AK104: =SUM(- - ISTEXT(E104:AH104)) -> 12 | AL104: 18 | AM104: 144.75 | AN104: 0 | AO104: =IF(ГОД=YEAR(TODAY()),IF(MONTH(TODAY())<$C$94,0,IF(MONTH(TODAY())>$C$94,AN104,COUNTIF(OFFSET(#REF!,0,0,,DAY(TODAY())),"ОТ"))),0) -> 0 | AQ104: Козлов К.К. | AR104: 13 | AS104: 0 | AT104: 0 | AU104: 0 | AV104: 0 | AW104: 0 | AX104: 0 | AY104: 0 | AZ104: 0 | BA104: 0 | BB104: 0
A105: 2025-05-01 | B105: 1 | C105: 10 | D105: Львов Л.Л. | E105: В | F105: В | G105: В | H105: В | I105: 8.25 | J105: 8.25 | K105: 8.25 | L105: В | M105: В | N105: В | O105: В | P105: 8.25 | Q105: 8.25 | R105: 8.25 | S105: 8.25 | T105: 7 | U105: В | V105: В | W105: 8.25 | X105: 8.25 | Y105: 8.25 | Z105: 8.25 | AA105: 7 | AB105: В | AC105: В | AD105: 8.25 | AE105: 8.25 | AF105: 8.25 | AG105: 8.25 | AH105: 7 | AI105: В | AK105: =SUM(- - ISTEXT(E105:AH105)) -> 12 | AL105: 18 | AM105: 144.75 | AN105: 0 | AO105: =IF(ГОД=YEAR(TODAY()),IF(MONTH(TODAY())<$C$94,0,IF(MONTH(TODAY())>$C$94,AN105,COUNTIF(OFFSET(#REF!,0,0,,DAY(TODAY())),"ОТ"))),0) -> 0 | AQ105: Львов Л.Л. | AR105: 13 | AS105: 0 | AT105: 0 | AU105: 0 | AV105: 0 | AW105: 0 | AX105: 0 | AY105: 0 | AZ105: 0 | BA105: 0 | BB105: 0
A106: 2025-05-01 | B106: 1 | C106: 11 | D106: Мишин М.М. | E106: В | F106: В | G106: В | H106: В | I106: 8.25 | J106: 8.25 | K106: 8.25 | L106: В | M106: В | N106: В | O106: В | P106: 8.25 | Q106: 8.25 | R106: 8.25 | S106: 8.25 | T106: 7 | U106: В | V106: В | W106: 8.25 | X106: 8.25 | Y106: 8.25 | Z106: 8.25 | AA106: 7 | AB106: В | AC106: В | AD106: 8.25 | AE106: 8.25 | AF106: 8.25 | AG106: 8.25 | AH106: 7 | AI106: В | AK106: =SUM(- - ISTEXT(E106:AH106)) -> 12 | AL106: 18 | AM106: 144.75 | AN106: 0 | AO106: =IF(ГОД=YEAR(TODAY()),IF(MONTH(TODAY())<$C$94,0,IF(MONTH(TODAY())>$C$94,AN106,COUNTIF(OFFSET(#REF!,0,0,,DAY(TODAY())),"ОТ"))),0) -> 0 | AQ106: Мишин М.М. | AR106: 13 | AS106: 0 | AT106: 0 | AU106: 0 | AV106: 0 | AW106: 0 | AX106: 0 | AY106: 0 | AZ106: 0 | BA106: 0 | BB106: 0
A107: 2025-05-01 | B107: 1 | C107: 12 | D107: Носов Н.Н. | E107: В | F107: В | G107: В | H107: В | I107: 8.25 | J107: 8.25 | K107: 8.25 | L107: В | M107: В | N107: В | O107: В | P107: 8.25 | Q107: 8.25 | R107: 8.25 | S107: 8.25 | T107: 7 | U107: В | V107: В | W107: 8.25 | X107: 8.25 | Y107: 8.25 | Z107: 8.25 | AA107: 7 | AB107: В | AC107: В | AD107: 8.25 | AE107: 8.25 | AF107: 8.25 | AG107: 8.25 | AH107: 7 | AI107: В | AK107: =SUM(- - ISTEXT(E107:AH107)) -> 12 | AL107: 18 | AM107: 144.75 | AN107: 0 | AO107: =IF(ГОД=YEAR(TODAY()),IF(MONTH(TODAY())<$C$94,0,IF(MONTH(TODAY())>$C$94,AN107,COUNTIF(OFFSET(#REF!,0,0,,DAY(TODAY())),"ОТ"))),0) -> 0 | AQ107: Носов Н.Н. | AR107: 13 | AS107: 0 | AT107: 0 | AU107: 0 | AV107: 0 | AW107: 0 | AX107: 0 | AY107: 0 | AZ107: 0 | BA107: 0 | BB107: 0
A108: 2025-05-01 | B108: 1 | C108: 13 | D108: Осин О.О. | E108: В | F108: В | G108: В | H108: В | I108: 8.25 | J108: 8.25 | K108: 8.25 | L108: В | M108: В | N108: В | O108: В | P108: 8.25 | Q108: 8.25 | R108: 8.25 | S108: 8.25 | T108: 7 | U108: В | V108: В | W108: 8.25 | X108: 8.25 | Y108: 8.25 | Z108: 8.25 | AA108: 7 | AB108: В | AC108: В | AD108: 8.25 | AE108: 8.25 | AF108: 8.25 | AG108: 8.25 | AH108: 7 | AI108: В | AK108: =SUM(- - ISTEXT(E108:AH108)) -> 12 | AL108: =COUNT(E108:AH108) -> 18 | AM108: =SUM(E108:AH108) -> 144.75 | AN108: 0 | AO108: =IF(ГОД=YEAR(TODAY()),IF(MONTH(TODAY())<$C$94,0,IF(MONTH(TODAY())>$C$94,AN108,COUNTIF(OFFSET(#REF!,0,0,,DAY(TODAY())),"ОТ"))),0) -> 0 | AQ108: Осин О.О. | AR108: 13 | AS108: 0 | AT108: 0 | AU108: 0 | AV108: 0 | AW108: 0 | AX108: 0 | AY108: 0 | AZ108: 0 | BA108: 0 | BB108: 0
A109: 2025-05-01 | B109: 1 | C109: 14 | D109: Попов П.П. | E109: В | F109: В | G109: В | H109: В | I109: 8.25 | J109: 8.25 | K109: 8.25 | L109: В | M109: В | N109: В | O109: В | P109: 8.25 | Q109: 8.25 | R109: 8.25 | S109: 8.25 | T109: 7 | U109: В | V109: В | W109: 8.25 | X109: 8.25 | Y109: 8.25 | Z109: 8.25 | AA109: 7 | AB109: В | AC109: В | AD109: 8.25 | AE109: 8.25 | AF109: 8.25 | AG109: 8.25 | AH109: 7 | AI109: В | AK109: =SUM(- - ISTEXT(E109:AH109)) -> 12 | AL109: =COUNT(E109:AH109) -> 18 | AM109: =SUM(E109:AH109) -> 144.75 | AN109: 0 | AO109: =IF(ГОД=YEAR(TODAY()),IF(MONTH(TODAY())<$C$94,0,IF(MONTH(TODAY())>$C$94,AN109,COUNTIF(OFFSET(#REF!,0,0,,DAY(TODAY())),"ОТ"))),0) -> 0 | AQ109: Попов П.П. | AR109: 13 | AS109: 0 | AT109: 0 | AU109: 0 | AV109: 0 | AW109: 0 | AX109: 0 | AY109: 0 | AZ109: 0 | BA109: 0 | BB109: 0
A110: 2025-05-01 | B110: 1 | C110: 15 | AK110: =SUM(- - ISTEXT(E110:AH110)) -> 0 | AL110: =COUNT(E110:AH110) -> 0 | AM110: =SUM(E110:AH110) -> 0 | AN110: =COUNTIF(E110:AI110,"ОТ") -> 0 | AO110: =IF(ГОД=YEAR(TODAY()),IF(MONTH(TODAY())<$C$94,0,IF(MONTH(TODAY())>$C$94,AN110,COUNTIF(OFFSET(#REF!,0,0,,DAY(TODAY())),"ОТ"))),0) -> 0 | AQ110: =D110 -> 0 | AR110: 0 | AS110: 0 | AT110: 0 | AU110: 0 | AV110: 0 | AW110: 0 | AX110: 0 | AY110: 0 | AZ110: 0 | BA110: 0 | BB110: 0
A111: 2025-05-01 | B111: 1 | C111: 16 | AK111: =SUM(- - ISTEXT(E111:AH111)) -> 0 | AL111: =COUNT(E111:AH111) -> 0 | AM111: =SUM(E111:AH111) -> 0 | AN111: =COUNTIF(E111:AI111,"ОТ") -> 0 | AO111: =IF(ГОД=YEAR(TODAY()),IF(MONTH(TODAY())<$C$94,0,IF(MONTH(TODAY())>$C$94,AN111,COUNTIF(OFFSET(E111,0,0,,DAY(TODAY())),"ОТ"))),0) -> 0 | AQ111: 0 | AR111: 0 | AS111: 0 | AT111: 0 | AU111: 0 | AV111: 0 | AW111: 0 | AX111: 0 | AY111: 0 | AZ111: 0 | BA111: 0 | BB111: 0
A112: 2025-05-01 | B112: 1 | C112: 17 | AK112: =SUM(- - ISTEXT(E112:AI112)) -> 0 | AL112: =COUNT(E112:AI112) -> 0 | AM112: =SUM(E112:AI112) -> 0 | AN112: 0 | AO112: =IF(ГОД=YEAR(TODAY()),IF(MONTH(TODAY())<$C$94,0,IF(MONTH(TODAY())>$C$94,AN112,COUNTIF(OFFSET(E112,0,0,,DAY(TODAY())),"ОТ"))),0) -> 0 | AQ112: 0 | AR112: 0 | AS112: 0 | AT112: 0 | AU112: 0 | AV112: 0 | AW112: 0 | AX112: 0 | AY112: 0 | AZ112: 0 | BA112: 0 | BB112: 0
A113: 2025-05-01 | B113: 1 | C113: 18 | AK113: =SUM(- - ISTEXT(E113:AI113)) -> 0 | AL113: =COUNT(E113:AI113) -> 0 | AM113: =SUM(E113:AI113) -> 0 | AN113: 0 | AO113: =IF(ГОД=YEAR(TODAY()),IF(MONTH(TODAY())<$C$94,0,IF(MONTH(TODAY())>$C$94,AN113,COUNTIF(OFFSET(E113,0,0,,DAY(TODAY())),"ОТ"))),0) -> 0 | AQ113: 0 | AR113: 0 | AS113: 0 | AT113: 0 | AU113: 0 | AV113: 0 | AW113: 0 | AX113: 0 | AY113: 0 | AZ113: 0 | BA113: 0 | BB113: 0
A114: 2025-05-01 | B114: 1 | C114: 19 | AK114: =SUM(- - ISTEXT(E114:AI114)) -> 0 | AL114: =COUNT(E114:AI114) -> 0 | AM114: =SUM(E114:AI114) -> 0 | AN114: 0 | AO114: =IF(ГОД=YEAR(TODAY()),IF(MONTH(TODAY())<$C$94,0,IF(MONTH(TODAY())>$C$94,AN114,COUNTIF(OFFSET(E114,0,0,,DAY(TODAY())),"ОТ"))),0) -> 0 | AQ114: 0 | AR114: 0 | AS114: 0 | AT114: 0 | AU114: 0 | AV114: 0 | AW114: 0 | AX114: 0 | AY114: 0 | AZ114: 0 | BA114: 0 | BB114: 0
A115: 2025-05-01 | B115: 1 | C115: 20 | AK115: =SUM(- - ISTEXT(E115:AI115)) -> 0 | AL115: =COUNT(E115:AI115) -> 0 | AM115: =SUM(E115:AI115) -> 0 | AN115: 0 | AO115: =IF(ГОД=YEAR(TODAY()),IF(MONTH(TODAY())<$C$94,0,IF(MONTH(TODAY())>$C$94,AN115,COUNTIF(OFFSET(E115,0,0,,DAY(TODAY())),"ОТ"))),0) -> 0 | AQ115: 0 | AR115: 0 | AS115: 0 | AT115: 0 | AU115: 0 | AV115: 0 | AW115: 0 | AX115: 0 | AY115: 0 | AZ115: 0 | BA115: 0 | BB115: 0
E116: =IF(E117=TODAY(),МЕТКА,"") -> 
B117: График | C117: 6 | D117: =DATE(ГОД,C117,1) -> 2025-06-01 | E117: =DATE(ГОД,C117,DAY(D117)) -> 2025-06-01 | F117: =IF(N(E117),IF(MONTH(E117+1)=$C117,E117+1,""),"") -> 2025-06-02 | G117: 2025-06-03 | H117: 2025-06-04 | I117: 2025-06-05 | J117: 2025-06-06 | K117: 2025-06-07 | L117: 2025-06-08 | M117: 2025-06-09 | N117: 2025-06-10 | O117: 2025-06-11 | P117: 2025-06-12 | Q117: 2025-06-13 | R117: 2025-06-14 | S117: 2025-06-15 | T117: 2025-06-16 | U117: 2025-06-17 | V117: 2025-06-18 | W117: 2025-06-19 | X117: 2025-06-20 | Y117: 2025-06-21 | Z117: 2025-06-22 | AA117: 2025-06-23 | AB117: 2025-06-24 | AC117: 2025-06-25 | AD117: 2025-06-26 | AE117: 2025-06-27 | AF117: 2025-06-28 | AG117: 2025-06-29 | AH117: 2025-06-30 | AI117: =IF(N(AH117),IF(MONTH(AH117+1)=$C117,AH117+1,""),"") ->  | AK117: =AK$2 -> Не раб. дней | AL117: =AL$2 -> Раб. дней | AM117: =AM$2 -> Раб. час | AN117: =AN$2 -> Отпуск ПЛАН | AO117: =AO$2 -> Отгуляно на СЕГОДНЯ | AQ117: =$AQ$1 -> ОТЧЁТ за месяц
A118: =DATE(ГОД,C117,1) -> 2025-06-01 | E118: =E117 -> 2025-06-01 | F118: 2025-06-02 | G118: 2025-06-03 | H118: 2025-06-04 | I118: 2025-06-05 | J118: 2025-06-06 | K118: 2025-06-07 | L118: 2025-06-08 | M118: 2025-06-09 | N118: 2025-06-10 | O118: 2025-06-11 | P118: 2025-06-12 | Q118: 2025-06-13 | R118: 2025-06-14 | S118: 2025-06-15 | T118: 2025-06-16 | U118: 2025-06-17 | V118: 2025-06-18 | W118: 2025-06-19 | X118: 2025-06-20 | Y118: 2025-06-21 | Z118: 2025-06-22 | AA118: 2025-06-23 | AB118: 2025-06-24 | AC118: 2025-06-25 | AD118: 2025-06-26 | AE118: 2025-06-27 | AF118: 2025-06-28 | AG118: =AG117 -> 2025-06-29 | AH118: =AH117 -> 2025-06-30 | AI118: =AI117 ->  | AQ118: =DATE(ГОД,C117,1) -> 2025-06-01 | AR118: =M$306 -> В | AS118: ОТ | AT118: ДО | AU118: Б | AV118: НН | AW118: ПР | AX118: К | AY118: НОД | AZ118: У | BA118: ОЗ | BB118: Г
A119: =OFFSET(A119,-1,0) -> 2025-06-01 | B119: 4А | C119: =N(OFFSET(C119,-1,0))+1 -> 1 | D119: Алёхин А.А. | E119: 13.5 | F119: 8 | G119: В | H119: В | I119: 13.5 | J119: 8 | K119: В | L119: В | M119: 13.5 | N119: 8 | O119: В | P119: В | Q119: 13.5 | R119: 8 | S119: В | T119: В | U119: ОТ | V119: ОТ | W119: ОТ | X119: ОТ | Y119: ОТ | Z119: ОТ | AA119: В | AB119: В | AC119: 13.5 | AD119: 8 | AE119: В | AF119: В | AG119: 13.5 | AH119: 8 | AK119: =SUM(- - ISTEXT(E119:AH119)) -> 18 | AL119: =COUNT(E119:AH119) -> 12 | AM119: =SUM(E119:AH119) -> 129 | AN119: =COUNTIF(E119:AI119,"ОТ") -> 6 | AO119: =IF(ГОД=YEAR(TODAY()),IF(MONTH(TODAY())<$C$117,0,IF(MONTH(TODAY())>$C$117,AN119,COUNTIF(OFFSET(E119,0,0,,DAY(TODAY())),"ОТ"))),0) -> 0 | AQ119: =D119 -> Алёхин А.А. | AR119: =COUNTIF($E119:$AI119,M$306) -> 12 | AS119: 6 | AT119: 0 | AU119: 0 | AV119: 0 | AW119: 0 | AX119: 0 | AY119: 0 | AZ119: 0 | BA119: 0 | BB119: 0
A120: =OFFSET(A120,-1,0) -> 2025-06-01 | B120: 4А | C120: =N(OFFSET(C120,-1,0))+1 -> 2 | D120: Борисов В.В. | E120: 13.5 | F120: 8 | G120: В | H120: В | I120: 13.5 | J120: 8 | K120: В | L120: В | M120: 13.5 | N120: 8 | O120: В | P120: В | Q120: 13.5 | R120: 8 | S120: В | T120: В | U120: 13.5 | V120: 8 | W120: В | X120: В | Y120: 13.5 | Z120: 8 | AA120: В | AB120: В | AC120: 13.5 | AD120: 8 | AE120: В | AF120: В | AG120: ОТ | AH120: ОТ | AK120: =SUM(- - ISTEXT(E120:AH120)) -> 16 | AL120: 14 | AM120: 150.5 | AN120: 2 | AO120: 0 | AQ120: =D120 -> Борисов В.В. | AR120: 14 | AS120: 2 | AT120: 0 | AU120: 0 | AV120: 0 | AW120: 0 | AX120: 0 | AY120: 0 | AZ120: 0 | BA120: 0 | BB120: 0
A121: 2025-06-01 | B121: 4Б | C121: 3 | D121: Володин В.В. | E121: В | F121: 13.5 | G121: 8 | H121: В | I121: В | J121: 13.5 | K121: 8 | L121: В | M121: В | N121: 13.5 | O121: 8 | P121: В | Q121: В | R121: 13.5 | S121: 8 | T121: В | U121: В | V121: 13.5 | W121: 8 | X121: В | Y121: В | Z121: 13.5 | AA121: 8 | AB121: В | AC121: В | AD121: 13.5 | AE121: 8 | AF121: В | AG121: В | AH121: 13.5 | AK121: =SUM(- - ISTEXT(E121:AH121)) -> 15 | AL121: 15 | AM121: 164 | AN121: 0 | AO121: 0 | AQ121: Володин В.В. | AR121: 15 | AS121: 0 | AT121: 0 | AU121: 0 | AV121: 0 | AW121: 0 | AX121: 0 | AY121: 0 | AZ121: 0 | BA121: 0 | BB121: 0
A122: 2025-06-01 | B122: 4Б | C122: 4 | D122: Гаврилов Г.Г. | E122: В | F122: 13.5 | G122: 8 | H122: В | I122: В | J122: 13.5 | K122: 8 | L122: В | M122: В | N122: 13.5 | O122: 8 | P122: В | Q122: В | R122: 13.5 | S122: 8 | T122: В | U122: В | V122: 13.5 | W122: 8 | X122: В | Y122: В | Z122: 13.5 | AA122: 8 | AB122: В | AC122: В | AD122: ОТ | AE122: ОТ | AF122: ОТ | AG122: ОТ | AH122: ОТ | AK122: =SUM(- - ISTEXT(E122:AH122)) -> 18 | AL122: 12 | AM122: 129 | AN122: 5 | AO122: 0 | AQ122: Гаврилов Г.Г. | AR122: 13 | AS122: 5 | AT122: 0 | AU122: 0 | AV122: 0 | AW122: 0 | AX122: 0 | AY122: 0 | AZ122: 0 | BA122: 0 | BB122: 0
A123: 2025-06-01 | B123: 4В | C123: 5 | D123: Данилов Д.Д. | E123: В | F123: В | G123: ОТ | H123: ОТ | I123: ОТ | J123: ОТ | K123: ОТ | L123: ОТ | M123: ОТ | N123: ОТ | O123: ОТ | P123: ОТ | Q123: ОТ | R123: ОТ | S123: ОТ | T123: ОТ | U123: В | V123: В | W123: 13.5 | X123: 8 | Y123: В | Z123: В | AA123: 13.5 | AB123: 8 | AC123: В | AD123: В | AE123: 13.5 | AF123: 8 | AG123: В | AH123: В | AK123: =SUM(- - ISTEXT(E123:AH123)) -> 24 | AL123: 6 | AM123: 64.5 | AN123: 14 | AO123: 0 | AQ123: Данилов Д.Д. | AR123: 10 | AS123: 14 | AT123: 0 | AU123: 0 | AV123: 0 | AW123: 0 | AX123: 0 | AY123: 0 | AZ123: 0 | BA123: 0 | BB123: 0
A124: 2025-06-01 | B124: 4В | C124: 6 | D124: Ежов Е.Е. | E124: В | F124: В | G124: 13.5 | H124: 8 | I124: В | J124: В | K124: 13.5 | L124: 8 | M124: В | N124: В | O124: 13.5 | P124: 8 | Q124: В | R124: В | S124: 13.5 | T124: 8 | U124: В | V124: В | W124: 13.5 | X124: 8 | Y124: В | Z124: В | AA124: 13.5 | AB124: 8 | AC124: В | AD124: В | AE124: ОТ | AF124: ОТ | AG124: В | AH124: В | AK124: =SUM(- - ISTEXT(E124:AH124)) -> 18 | AL124: 12 | AM124: 129 | AN124: 2 | AO124: 0 | AQ124: Ежов Е.Е. | AR124: 16 | AS124: 2 | AT124: 0 | AU124: 0 | AV124: 0 | AW124: 0 | AX124: 0 | AY124: 0 | AZ124: 0 | BA124: 0 | BB124: 0
A125: 2025-06-01 | B125: 4Г | C125: 7 | D125: Зуев З.З. | E125: 8 | F125: В | G125: В | H125: 13.5 | I125: 8 | J125: В | K125: В | L125: 13.5 | M125: 8 | N125: В | O125: В | P125: 13.5 | Q125: 8 | R125: В | S125: В | T125: 13.5 | U125: 8 | V125: ОТ | W125: ОТ | X125: ОТ | Y125: ОТ | Z125: ОТ | AA125: ОТ | AB125: ОТ | AC125: ОТ | AD125: В | AE125: В | AF125: 13.5 | AG125: 8 | AH125: В | AK125: =SUM(- - ISTEXT(E125:AH125)) -> 19 | AL125: 11 | AM125: 115.5 | AN125: 8 | AO125: 0 | AQ125: Зуев З.З. | AR125: 11 | AS125: 8 | AT125: 0 | AU125: 0 | AV125: 0 | AW125: 0 | AX125: 0 | AY125: 0 | AZ125: 0 | BA125: 0 | BB125: 0
A126: 2025-06-01 | B126: 4Г | C126: 8 | D126: Иванов И.И. | E126: 8 | F126: В | G126: В | H126: ОТ | I126: ОТ | J126: ОТ | K126: ОТ | L126: ОТ | M126: ОТ | N126: В | O126: В | P126: 13.5 | Q126: 8 | R126: В | S126: В | T126: 13.5 | U126: 8 | V126: В | W126: В | X126: 13.5 | Y126: 8 | Z126: В | AA126: В | AB126: 13.5 | AC126: 8 | AD126: В | AE126: В | AF126: 13.5 | AG126: 8 | AH126: В | AK126: =SUM(- - ISTEXT(E126:AH126)) -> 19 | AL126: 11 | AM126: 115.5 | AN126: 6 | AO126: 0 | AQ126: Иванов И.И. | AR126: 13 | AS126: 6 | AT126: 0 | AU126: 0 | AV126: 0 | AW126: 0 | AX126: 0 | AY126: 0 | AZ126: 0 | BA126: 0 | BB126: 0
A127: 2025-06-01 | B127: 1 | C127: 9 | D127: Козлов К.К. | E127: В | F127: 8.25 | G127: 8.25 | H127: 8.25 | I127: 8.25 | J127: 7 | K127: В | L127: В | M127: 8.25 | N127: 8.25 | O127: 7.25 | P127: В | Q127: В | R127: В | S127: В | T127: 8.25 | U127: 8.25 | V127: 8.25 | W127: 8.25 | X127: 7 | Y127: В | Z127: В | AA127: 8.25 | AB127: 8.25 | AC127: 8.25 | AD127: 8.25 | AE127: 7 | AF127: В | AG127: В | AH127: 8.25 | AK127: =SUM(- - ISTEXT(E127:AH127)) -> 11 | AL127: 19 | AM127: 152 | AN127: 0 | AO127: 0 | AQ127: Козлов К.К. | AR127: 11 | AS127: 0 | AT127: 0 | AU127: 0 | AV127: 0 | AW127: 0 | AX127: 0 | AY127: 0 | AZ127: 0 | BA127: 0 | BB127: 0
A128: 2025-06-01 | B128: 1 | C128: 10 | D128: Львов Л.Л. | E128: В | F128: 8.25 | G128: 8.25 | H128: 8.25 | I128: 8.25 | J128: 7 | K128: В | L128: В | M128: 8.25 | N128: 8.25 | O128: 7.25 | P128: В | Q128: В | R128: В | S128: В | T128: 8.25 | U128: 8.25 | V128: 8.25 | W128: 8.25 | X128: 7 | Y128: В | Z128: В | AA128: 8.25 | AB128: 8.25 | AC128: 8.25 | AD128: 8.25 | AE128: 7 | AF128: В | AG128: В | AH128: 8.25 | AK128: =SUM(- - ISTEXT(E128:AH128)) -> 11 | AL128: 19 | AM128: 152 | AN128: 0 | AO128: 0 | AQ128: Львов Л.Л. | AR128: 11 | AS128: 0 | AT128: 0 | AU128: 0 | AV128: 0 | AW128: 0 | AX128: 0 | AY128: 0 | AZ128: 0 | BA128: 0 | BB128: 0
A129: 2025-06-01 | B129: 1 | C129: 11 | D129: Мишин М.М. | E129: В | F129: 8.25 | G129: 8.25 | H129: 8.25 | I129: 8.25 | J129: 7 | K129: В | L129: В | M129: ОТ | N129: ОТ | O129: ОТ | P129: В | Q129: В | R129: В | S129: В | T129: 8.25 | U129: 8.25 | V129: 8.25 | W129: 8.25 | X129: 7 | Y129: В | Z129: В | AA129: 8.25 | AB129: 8.25 | AC129: 8.25 | AD129: 8.25 | AE129: 7 | AF129: В | AG129: В | AH129: 8.25 | AK129: =SUM(- - ISTEXT(E129:AH129)) -> 14 | AL129: 16 | AM129: 128.25 | AN129: 3 | AO129: 0 | AQ129: Мишин М.М. | AR129: 11 | AS129: 3 | AT129: 0 | AU129: 0 | AV129: 0 | AW129: 0 | AX129: 0 | AY129: 0 | AZ129: 0 | BA129: 0 | BB129: 0
A130: 2025-06-01 | B130: 1 | C130: 12 | D130: Носов Н.Н. | E130: В | F130: 8.25 | G130: 8.25 | H130: 8.25 | I130: 8.25 | J130: 7 | K130: В | L130: В | M130: 8.25 | N130: 8.25 | O130: 7.25 | P130: В | Q130: В | R130: В | S130: В | T130: 8.25 | U130: 8.25 | V130: 8.25 | W130: 8.25 | X130: 7 | Y130: В | Z130: В | AA130: 8.25 | AB130: 8.25 | AC130: 8.25 | AD130: 8.25 | AE130: 7 | AF130: В | AG130: В | AH130: 8.25 | AK130: =SUM(- - ISTEXT(E130:AH130)) -> 11 | AL130: 19 | AM130: 152 | AN130: 0 | AO130: 0 | AQ130: Носов Н.Н. | AR130: 11 | AS130: 0 | AT130: 0 | AU130: 0 | AV130: 0 | AW130: 0 | AX130: 0 | AY130: 0 | AZ130: 0 | BA130: 0 | BB130: 0
A131: 2025-06-01 | B131: 1 | C131: 13 | D131: Осин О.О. | E131: В | F131: 8.25 | G131: 8.25 | H131: 8.25 | I131: 8.25 | J131: 7 | K131: В | L131: В | M131: 8.25 | N131: 8.25 | O131: 7.25 | P131: В | Q131: В | R131: В | S131: В | T131: 8.25 | U131: 8.25 | V131: 8.25 | W131: 8.25 | X131: 7 | Y131: В | Z131: В | AA131: 8.25 | AB131: 8.25 | AC131: 8.25 | AD131: 8.25 | AE131: 7 | AF131: В | AG131: В | AH131: 8.25 | AK131: =SUM(- - ISTEXT(E131:AH131)) -> 11 | AL131: 19 | AM131: 152 | AN131: 0 | AO131: 0 | AQ131: Осин О.О. | AR131: 11 | AS131: 0 | AT131: 0 | AU131: 0 | AV131: 0 | AW131: 0 | AX131: 0 | AY131: 0 | AZ131: 0 | BA131: 0 | BB131: 0
A132: 2025-06-01 | B132: 1 | C132: 14 | D132: Попов П.П. | E132: В | F132: 8.25 | G132: 8.25 | H132: 8.25 | I132: 8.25 | J132: 7 | K132: В | L132: В | M132: 8.25 | N132: 8.25 | O132: 7.25 | P132: В | Q132: В | R132: В | S132: В | T132: 8.25 | U132: 8.25 | V132: 8.25 | W132: 8.25 | X132: 7 | Y132: В | Z132: В | AA132: 8.25 | AB132: 8.25 | AC132: 8.25 | AD132: 8.25 | AE132: 7 | AF132: В | AG132: В | AH132: 8.25 | AK132: =SUM(- - ISTEXT(E132:AH132)) -> 11 | AL132: 19 | AM132: 152 | AN132: 0 | AO132: 0 | AQ132: Попов П.П. | AR132: 11 | AS132: 0 | AT132: 0 | AU132: 0 | AV132: 0 | AW132: 0 | AX132: 0 | AY132: 0 | AZ132: 0 | BA132: 0 | BB132: 0
A133: 2025-06-01 | B133: 1 | C133: 15 | AK133: =SUM(- - ISTEXT(E133:AH133)) -> 0 | AL133: 0 | AM133: 0 | AN133: =COUNTIF(E133:AI133,"ОТ") -> 0 | AO133: 0 | AQ133: =D133 -> 0 | AR133: 0 | AS133: 0 | AT133: 0 | AU133: 0 | AV133: 0 | AW133: 0 | AX133: 0 | AY133: 0 | AZ133: 0 | BA133: 0 | BB133: 0
A134: 2025-06-01 | B134: 1 | C134: 16 | AK134: =SUM(- - ISTEXT(E134:AH134)) -> 0 | AL134: 0 | AM134: 0 | AN134: 0 | AO134: 0 | AQ134: 0 | AR134: 0 | AS134: 0 | AT134: 0 | AU134: 0 | AV134: 0 | AW134: 0 | AX134: 0 | AY134: 0 | AZ134: 0 | BA134: 0 | BB134: 0
A135: 2025-06-01 | B135: 1 | C135: 17 | AK135: =SUM(- - ISTEXT(E135:AH135)) -> 0 | AL135: 0 | AM135: 0 | AN135: 0 | AO135: 0 | AQ135: 0 | AR135: 0 | AS135: 0 | AT135: 0 | AU135: 0 | AV135: 0 | AW135: 0 | AX135: 0 | AY135: 0 | AZ135: 0 | BA135: 0 | BB135: 0
A136: 2025-06-01 | B136: 1 | C136: 18 | AK136: =SUM(- - ISTEXT(E136:AI136)) -> 0 | AL136: =COUNT(E136:AI136) -> 0 | AM136: =SUM(E136:AI136) -> 0 | AN136: 0 | AO136: 0 | AQ136: 0 | AR136: 0 | AS136: 0 | AT136: 0 | AU136: 0 | AV136: 0 | AW136: 0 | AX136: 0 | AY136: 0 | AZ136: 0 | BA136: 0 | BB136: 0
A137: 2025-06-01 | B137: 1 | C137: 19 | AK137: =SUM(- - ISTEXT(E137:AI137)) -> 0 | AL137: =COUNT(E137:AI137) -> 0 | AM137: =SUM(E137:AI137) -> 0 | AN137: 0 | AO137: 0 | AQ137: 0 | AR137: 0 | AS137: 0 | AT137: 0 | AU137: 0 | AV137: 0 | AW137: 0 | AX137: 0 | AY137: 0 | AZ137: 0 | BA137: 0 | BB137: 0
A138: 2025-06-01 | B138: 1 | C138: 20 | AK138: =SUM(- - ISTEXT(E138:AI138)) -> 0 | AL138: =COUNT(E138:AI138) -> 0 | AM138: =SUM(E138:AI138) -> 0 | AN138: 0 | AO138: 0 | AQ138: 0 | AR138: 0 | AS138: 0 | AT138: 0 | AU138: 0 | AV138: 0 | AW138: 0 | AX138: 0 | AY138: 0 | AZ138: 0 | BA138: 0 | BB138: 0
E139: =IF(E140=TODAY(),МЕТКА,"") -> 
B140: График | C140: 7 | D140: =DATE(ГОД,C140,1) -> 2025-07-01 | E140: =DATE(ГОД,C140,DAY(D140)) -> 2025-07-01 | F140: =IF(N(E140),IF(MONTH(E140+1)=$C140,E140+1,""),"") -> 2025-07-02 | G140: 2025-07-03 | H140: 2025-07-04 | I140: 2025-07-05 | J140: 2025-07-06 | K140: 2025-07-07 | L140: 2025-07-08 | M140: 2025-07-09 | N140: 2025-07-10 | O140: 2025-07-11 | P140: 2025-07-12 | Q140: 2025-07-13 | R140: 2025-07-14 | S140: 2025-07-15 | T140: 2025-07-16 | U140: 2025-07-17 | V140: 2025-07-18 | W140: 2025-07-19 | X140: 2025-07-20 | Y140: 2025-07-21 | Z140: 2025-07-22 | AA140: 2025-07-23 | AB140: 2025-07-24 | AC140: 2025-07-25 | AD140: 2025-07-26 | AE140: 2025-07-27 | AF140: 2025-07-28 | AG140: 2025-07-29 | AH140: 2025-07-30 | AI140: =IF(N(AH140),IF(MONTH(AH140+1)=$C140,AH140+1,""),"") -> 2025-07-31 | AK140: =AK$2 -> Не раб. дней | AL140: =AL$2 -> Раб. дней | AM140: =AM$2 -> Раб. час | AN140: =AN$2 -> Отпуск ПЛАН | AO140: =AO$2 -> Отгуляно на СЕГОДНЯ | AQ140: =$AQ$1 -> ОТЧЁТ за месяц
A141: =DATE(ГОД,C140,1) -> 2025-07-01 | E141: =E140 -> 2025-07-01 | F141: 2025-07-02 | G141: 2025-07-03 | H141: 2025-07-04 | I141: 2025-07-05 | J141: 2025-07-06 | K141: 2025-07-07 | L141: 2025-07-08 | M141: 2025-07-09 | N141: 2025-07-10 | O141: 2025-07-11 | P141: 2025-07-12 | Q141: 2025-07-13 | R141: 2025-07-14 | S141: 2025-07-15 | T141: 2025-07-16 | U141: 2025-07-17 | V141: 2025-07-18 | W141: 2025-07-19 | X141: 2025-07-20 | Y141: 2025-07-21 | Z141: 2025-07-22 | AA141: 2025-07-23 | AB141: 2025-07-24 | AC141: 2025-07-25 | AD141: 2025-07-26 | AE141: 2025-07-27 | AF141: 2025-07-28 | AG141: =AG140 -> 2025-07-29 | AH141: =AH140 -> 2025-07-30 | AI141: =AI140 -> 2025-07-31 | AQ141: =DATE(ГОД,C140,1) -> 2025-07-01 | AR141: =M$306 -> В | AS141: ОТ | AT141: ДО | AU141: Б | AV141: НН | AW141: ПР | AX141: К | AY141: НОД | AZ141: У | BA141: ОЗ | BB141: Г
A142: =OFFSET(A142,-1,0) -> 2025-07-01 | B142: 4А | C142: =N(OFFSET(C142,-1,0))+1 -> 1 | D142: Алёхин А.А. | E142: В | F142: В | G142: 13.5 | H142: 8 | I142: В | J142: В | K142: 13.5 | L142: 8 | M142: В | N142: В | O142: 13.5 | P142: 8 | Q142: В | R142: В | S142: 13.5 | T142: 8 | U142: В | V142: В | W142: 13.5 | X142: 8 | Y142: В | Z142: В | AA142: 13.5 | AB142: 8 | AC142: В | AD142: В | AE142: ОТ | AF142: ОТ | AG142: ОТ | AH142: ОТ | AI142: 13.5 | AK142: =SUM(- - ISTEXT(E142:AH142)) -> 18 | AL142: =COUNT(E142:AH142) -> 12 | AM142: =SUM(E142:AH142) -> 129 | AN142: =COUNTIF(E142:AI142,"ОТ") -> 4 | AO142: =IF(ГОД=YEAR(TODAY()),IF(MONTH(TODAY())<$C$117,0,IF(MONTH(TODAY())>$C$117,AN142,COUNTIF(OFFSET(E142,0,0,,DAY(TODAY())),"ОТ"))),0) -> 0 | AQ142: =D142 -> Алёхин А.А. | AR142: =COUNTIF($E142:$AG142,M$306) -> 14 | AS142: 3 | AT142: 0 | AU142: 0 | AV142: 0 | AW142: 0 | AX142: 0 | AY142: 0 | AZ142: 0 | BA142: 0 | BB142: =COUNTIF($E142:$AI142,W$306) -> 0
A143: =OFFSET(A143,-1,0) -> 2025-07-01 | B143: 4А | C143: =N(OFFSET(C143,-1,0))+1 -> 2 | D143: Борисов В.В. | E143: В | F143: В | G143: 13.5 | H143: 8 | I143: В | J143: В | K143: 13.5 | L143: 8 | M143: В | N143: В | O143: ОТ | P143: ОТ | Q143: ОТ | R143: ОТ | S143: ОТ | T143: ОТ | U143: ОТ | V143: ОТ | W143: ОТ | X143: ОТ | Y143: ОТ | Z143: ОТ | AA143: ОТ | AB143: ОТ | AC143: В | AD143: В | AE143: 13.5 | AF143: 8 | AG143: В | AH143: В | AI143: 13.5 | AK143: =SUM(- - ISTEXT(E143:AH143)) -> 24 | AL143: =COUNT(E143:AH143) -> 6 | AM143: =SUM(E143:AH143) -> 64.5 | AN143: =COUNTIF(E143:AI143,"ОТ") -> 14 | AO143: 0 | AQ143: =D143 -> Борисов В.В. | AR143: 9 | AS143: 14 | AT143: 0 | AU143: 0 | AV143: 0 | AW143: 0 | AX143: 0 | AY143: 0 | AZ143: 0 | BA143: 0 | BB143: 0
A144: 2025-07-01 | B144: 4Б | C144: 3 | D144: Володин В.В. | E144: 8 | F144: В | G144: В | H144: 13.5 | I144: 8 | J144: В | K144: В | L144: 13.5 | M144: 8 | N144: В | O144: В | P144: 13.5 | Q144: 8 | R144: В | S144: В | T144: 13.5 | U144: 8 | V144: В | W144: В | X144: 13.5 | Y144: 8 | Z144: В | AA144: В | AB144: 13.5 | AC144: 8 | AD144: В | AE144: В | AF144: 13.5 | AG144: 8 | AH144: В | AI144: В | AK144: =SUM(- - ISTEXT(E144:AH144)) -> 15 | AL144: =COUNT(E144:AH144) -> 15 | AM144: =SUM(E144:AH144) -> 158.5 | AN144: =COUNTIF(E144:AI144,"ОТ") -> 0 | AO144: 0 | AQ144: Володин В.В. | AR144: =COUNTIF($E144:$AI144,M$306) -> 16 | AS144: 0 | AT144: 0 | AU144: 0 | AV144: 0 | AW144: 0 | AX144: 0 | AY144: 0 | AZ144: 0 | BA144: 0 | BB144: 0
A145: 2025-07-01 | B145: 4Б | C145: 4 | D145: Гаврилов Г.Г. | E145: ОТ | F145: ОТ | G145: ОТ | H145: ОТ | I145: ОТ | J145: ОТ | K145: ОТ | L145: ОТ | M145: ОТ | N145: ОТ | O145: ОТ | P145: 13.5 | Q145: 8 | R145: В | S145: В | T145: 13.5 | U145: 8 | V145: В | W145: В | X145: 13.5 | Y145: 8 | Z145: В | AA145: В | AB145: 13.5 | AC145: 8 | AD145: В | AE145: В | AF145: 13.5 | AG145: 8 | AH145: В | AI145: В | AK145: =SUM(- - ISTEXT(E145:AB145)) -> 17 | AL145: =COUNT(E145:AB145) -> 7 | AM145: =SUM(E145:AB145) -> 78 | AN145: =COUNTIF(E145:AI145,"ОТ") -> 11 | AO145: 0 | AQ145: Гаврилов Г.Г. | AR145: 10 | AS145: 11 | AT145: 0 | AU145: 0 | AV145: 0 | AW145: 0 | AX145: 0 | AY145: 0 | AZ145: 0 | BA145: 0 | BB145: 0
A146: 2025-07-01 | B146: 4В | C146: 5 | D146: Данилов Д.Д. | E146: 13.5 | F146: 8 | G146: В | H146: В | I146: 13.5 | J146: 8 | K146: В | L146: В | M146: 13.5 | N146: 8 | O146: В | P146: В | Q146: 13.5 | R146: 8 | S146: В | T146: В | U146: 13.5 | V146: 8 | W146: В | X146: В | Y146: 13.5 | Z146: 8 | AA146: В | AB146: В | AC146: 13.5 | AD146: 8 | AE146: В | AF146: В | AG146: 13.5 | AH146: 8 | AI146: В | AK146: =SUM(- - ISTEXT(E146:AH146)) -> 14 | AL146: =COUNT(E146:AH146) -> 16 | AM146: =SUM(E146:AH146) -> 172 | AN146: =COUNTIF(E146:AI146,"ОТ") -> 0 | AO146: 0 | AQ146: Данилов Д.Д. | AR146: 15 | AS146: 0 | AT146: 0 | AU146: 0 | AV146: 0 | AW146: 0 | AX146: 0 | AY146: 0 | AZ146: 0 | BA146: 0 | BB146: 0
A147: 2025-07-01 | B147: 4В | C147: 6 | D147: Ежов Е.Е. | E147: 13.5 | F147: 8 | G147: В | H147: В | I147: 13.5 | J147: 8 | K147: В | L147: В | M147: 13.5 | N147: 8 | O147: В | P147: В | Q147: 13.5 | R147: 8 | S147: В | T147: В | U147: 13.5 | V147: 8 | W147: В | X147: В | Y147: 13.5 | Z147: 8 | AA147: В | AB147: В | AC147: 13.5 | AD147: 8 | AE147: В | AF147: В | AG147: ОТ | AH147: ОТ | AI147: В | AK147: =SUM(- - ISTEXT(E147:AH147)) -> 16 | AL147: 14 | AM147: 150.5 | AN147: 2 | AO147: 0 | AQ147: Ежов Е.Е. | AR147: 15 | AS147: 2 | AT147: 0 | AU147: 0 | AV147: 0 | AW147: 0 | AX147: 0 | AY147: 0 | AZ147: 0 | BA147: 0 | BB147: 0
A148: 2025-07-01 | B148: 4Г | C148: 7 | D148: Зуев З.З. | E148: В | F148: 13.5 | G148: 8 | H148: В | I148: В | J148: 13.5 | K148: 8 | L148: В | M148: В | N148: 13.5 | O148: 8 | P148: В | Q148: В | R148: 13.5 | S148: 8 | T148: В | U148: В | V148: 13.5 | W148: 8 | X148: ОТ | Y148: ОТ | Z148: ОТ | AA148: ОТ | AB148: ОТ | AC148: ОТ | AD148: ОТ | AE148: ОТ | AF148: ОТ | AG148: ОТ | AH148: ОТ | AI148: ОТ | AK148: =SUM(- - ISTEXT(E148:AH148)) -> 20 | AL148: 10 | AM148: 107.5 | AN148: 12 | AO148: 0 | AQ148: Зуев З.З. | AR148: 9 | AS148: 12 | AT148: 0 | AU148: 0 | AV148: 0 | AW148: 0 | AX148: 0 | AY148: 0 | AZ148: 0 | BA148: 0 | BB148: 0
A149: 2025-07-01 | B149: 4Г | C149: 8 | D149: Иванов И.И. | E149: В | F149: 13.5 | G149: 8 | H149: В | I149: В | J149: ОТ | K149: ОТ | L149: ОТ | M149: ОТ | N149: ОТ | O149: ОТ | P149: ОТ | Q149: ОТ | R149: ОТ | S149: ОТ | T149: ОТ | U149: ОТ | V149: ОТ | W149: ОТ | X149: В | Y149: В | Z149: 13.5 | AA149: 8 | AB149: В | AC149: В | AD149: 13.5 | AE149: 8 | AF149: В | AG149: В | AH149: 13.5 | AI149: 8 | AK149: =SUM(- - ISTEXT(E149:AH149)) -> 23 | AL149: 7 | AM149: 78 | AN149: 14 | AO149: 0 | AQ149: Иванов И.И. | AR149: 9 | AS149: 14 | AT149: 0 | AU149: 0 | AV149: 0 | AW149: 0 | AX149: 0 | AY149: 0 | AZ149: 0 | BA149: 0 | BB149: 0
A150: 2025-07-01 | B150: 1 | C150: 9 | D150: Козлов К.К. | E150: 8.25 | F150: 8.25 | G150: 8.25 | H150: 7 | I150: В | J150: В | K150: 8.25 | L150: 8.25 | M150: 8.25 | N150: 8.25 | O150: 7 | P150: В | Q150: В | R150: 8.25 | S150: 8.25 | T150: 8.25 | U150: 8.25 | V150: 7 | W150: В | X150: В | Y150: 8.25 | Z150: 8.25 | AA150: 8.25 | AB150: 8.25 | AC150: 7 | AD150: В | AE150: В | AF150: 8.25 | AG150: 8.25 | AH150: 8.25 | AI150: 8.25 | AK150: =SUM(- - ISTEXT(E150:AH150)) -> 8 | AL150: 22 | AM150: 176.5 | AN150: 0 | AO150: 0 | AQ150: Козлов К.К. | AR150: 8 | AS150: 0 | AT150: 0 | AU150: 0 | AV150: 0 | AW150: 0 | AX150: 0 | AY150: 0 | AZ150: 0 | BA150: 0 | BB150: 0
A151: 2025-07-01 | B151: 1 | C151: 10 | D151: Львов Л.Л. | E151: 8.25 | F151: 8.25 | G151: 8.25 | H151: 7 | I151: В | J151: В | K151: 8.25 | L151: 8.25 | M151: 8.25 | N151: 8.25 | O151: 7 | P151: В | Q151: В | R151: 8.25 | S151: 8.25 | T151: 8.25 | U151: 8.25 | V151: 7 | W151: В | X151: В | Y151: 8.25 | Z151: 8.25 | AA151: 8.25 | AB151: 8.25 | AC151: 7 | AD151: В | AE151: В | AF151: 8.25 | AG151: 8.25 | AH151: 8.25 | AI151: 8.25 | AK151: =SUM(- - ISTEXT(E151:AH151)) -> 8 | AL151: 22 | AM151: 176.5 | AN151: 0 | AO151: 0 | AQ151: Львов Л.Л. | AR151: 8 | AS151: 0 | AT151: 0 | AU151: 0 | AV151: 0 | AW151: 0 | AX151: 0 | AY151: 0 | AZ151: 0 | BA151: 0 | BB151: 0
A152: 2025-07-01 | B152: 1 | C152: 11 | D152: Мишин М.М. | E152: 8.25 | F152: 8.25 | G152: 8.25 | H152: 7 | I152: В | J152: В | K152: 8.25 | L152: 8.25 | M152: 8.25 | N152: 8.25 | O152: 7 | P152: В | Q152: В | R152: ОТ | S152: ОТ | T152: ОТ | U152: ОТ | V152: ОТ | W152: ОТ | X152: ОТ | Y152: ОТ | Z152: ОТ | AA152: ОТ | AB152: ОТ | AC152: ОТ | AD152: ОТ | AE152: ОТ | AF152: ОТ | AG152: 8.25 | AH152: 8.25 | AI152: 8.25 | AK152: =SUM(- - ISTEXT(E152:AH152)) -> 19 | AL152: 11 | AM152: 88.25 | AN152: 15 | AO152: 0 | AQ152: Мишин М.М. | AR152: 4 | AS152: 15 | AT152: 0 | AU152: 0 | AV152: 0 | AW152: 0 | AX152: 0 | AY152: 0 | AZ152: 0 | BA152: 0 | BB152: 0
A153: 2025-07-01 | B153: 1 | C153: 12 | D153: Носов Н.Н. | E153: 8.25 | F153: 8.25 | G153: 8.25 | H153: 7 | I153: В | J153: В | K153: ОТ | L153: ОТ | M153: ОТ | N153: ОТ | O153: ОТ | P153: В | Q153: В | R153: 8.25 | S153: 8.25 | T153: 8.25 | U153: 8.25 | V153: 7 | W153: В | X153: В | Y153: 8.25 | Z153: 8.25 | AA153: 8.25 | AB153: 8.25 | AC153: 7 | AD153: В | AE153: В | AF153: 8.25 | AG153: 8.25 | AH153: 8.25 | AI153: 8.25 | AK153: =SUM(- - ISTEXT(E153:AH153)) -> 13 | AL153: 17 | AM153: 136.5 | AN153: 5 | AO153: 0 | AQ153: Носов Н.Н. | AR153: 8 | AS153: 5 | AT153: 0 | AU153: 0 | AV153: 0 | AW153: 0 | AX153: 0 | AY153: 0 | AZ153: 0 | BA153: 0 | BB153: 0
A154: 2025-07-01 | B154: 1 | C154: 13 | D154: Осин О.О. | E154: 8.25 | F154: 8.25 | G154: 8.25 | H154: 7 | I154: В | J154: В | K154: 8.25 | L154: 8.25 | M154: 8.25 | N154: 8.25 | O154: 7 | P154: В | Q154: В | R154: ОТ | S154: ОТ | T154: ОТ | U154: ОТ | V154: ОТ | W154: ОТ | X154: ОТ | Y154: ОТ | Z154: ОТ | AA154: ОТ | AB154: ОТ | AC154: ОТ | AD154: ОТ | AE154: ОТ | AF154: 8.25 | AG154: 8.25 | AH154: 8.25 | AI154: 8.25 | AK154: =SUM(- - ISTEXT(E154:AH154)) -> 18 | AL154: 12 | AM154: 96.5 | AN154: 14 | AO154: 0 | AQ154: Осин О.О. | AR154: 4 | AS154: 14 | AT154: 0 | AU154: 0 | AV154: 0 | AW154: 0 | AX154: 0 | AY154: 0 | AZ154: 0 | BA154: 0 | BB154: 0
A155: 2025-07-01 | B155: 1 | C155: 14 | D155: Попов П.П. | E155: 8.25 | F155: 8.25 | G155: 8.25 | H155: 7 | I155: В | J155: В | K155: 8.25 | L155: 8.25 | M155: 8.25 | N155: 8.25 | O155: 7 | P155: В | Q155: В | R155: 8.25 | S155: 8.25 | T155: 8.25 | U155: 8.25 | V155: 7 | W155: В | X155: В | Y155: 8.25 | Z155: 8.25 | AA155: 8.25 | AB155: 8.25 | AC155: 7 | AD155: В | AE155: В | AF155: 8.25 | AG155: 8.25 | AH155: 8.25 | AI155: 8.25 | AK155: =SUM(- - ISTEXT(E155:AH155)) -> 8 | AL155: 22 | AM155: 176.5 | AN155: 0 | AO155: 0 | AQ155: Попов П.П. | AR155: 8 | AS155: 0 | AT155: 0 | AU155: 0 | AV155: 0 | AW155: 0 | AX155: 0 | AY155: 0 | AZ155: 0 | BA155: 0 | BB155: 0
A156: 2025-07-01 | B156: 1 | C156: 15 | AK156: =SUM(- - ISTEXT(E156:AH156)) -> 0 | AL156: =COUNT(E156:AH156) -> 0 | AM156: =SUM(E156:AH156) -> 0 | AN156: =COUNTIF(E156:AI156,"ОТ") -> 0 | AO156: 0 | AQ156: =D156 -> 0 | AR156: 0 | AS156: 0 | AT156: 0 | AU156: 0 | AV156: 0 | AW156: 0 | AX156: 0 | AY156: 0 | AZ156: 0 | BA156: 0 | BB156: 0
A157: 2025-07-01 | B157: 1 | C157: 16 | AK157: =SUM(- - ISTEXT(E157:AH157)) -> 0 | AL157: 0 | AM157: 0 | AN157: 0 | AO157: 0 | AQ157: 0 | AR157: 0 | AS157: 0 | AT157: 0 | AU157: 0 | AV157: 0 | AW157: 0 | AX157: 0 | AY157: 0 | AZ157: 0 | BA157: 0 | BB157: 0
A158: 2025-07-01 | B158: 1 | C158: 17 | AK158: =SUM(- - ISTEXT(E158:AH158)) -> 0 | AL158: 0 | AM158: 0 | AN158: 0 | AO158: 0 | AQ158: 0 | AR158: 0 | AS158: 0 | AT158: 0 | AU158: 0 | AV158: 0 | AW158: 0 | AX158: 0 | AY158: 0 | AZ158: 0 | BA158: 0 | BB158: 0
A159: 2025-07-01 | B159: 1 | C159: 18 | AK159: =SUM(- - ISTEXT(E159:AH159)) -> 0 | AL159: 0 | AM159: 0 | AN159: 0 | AO159: 0 | AQ159: 0 | AR159: 0 | AS159: 0 | AT159: 0 | AU159: 0 | AV159: 0 | AW159: 0 | AX159: 0 | AY159: 0 | AZ159: 0 | BA159: 0 | BB159: 0
A160: 2025-07-01 | B160: 1 | C160: 19 | AK160: =SUM(- - ISTEXT(E160:AH160)) -> 0 | AL160: 0 | AM160: 0 | AN160: 0 | AO160: 0 | AQ160: 0 | AR160: =COUNTIF($E160:$AI160,M$306) -> 0 | AS160: 0 | AT160: 0 | AU160: 0 | AV160: 0 | AW160: 0 | AX160: 0 | AY160: 0 | AZ160: 0 | BA160: 0 | BB160: 0
A161: 2025-07-01 | B161: 1 | C161: 20 | AK161: =SUM(- - ISTEXT(E161:AH161)) -> 0 | AL161: 0 | AM161: 0 | AN161: 0 | AO161: 0 | AQ161: 0 | AR161: 0 | AS161: 0 | AT161: 0 | AU161: 0 | AV161: 0 | AW161: 0 | AX161: 0 | AY161: 0 | AZ161: 0 | BA161: 0 | BB161: 0
E162: =IF(E163=TODAY(),МЕТКА,"") -> 
B163: График | C163: 8 | D163: =DATE(ГОД,C163,1) -> 2025-08-01 | E163: =DATE(ГОД,C163,DAY(D163)) -> 2025-08-01 | F163: =IF(N(E163),IF(MONTH(E163+1)=$C163,E163+1,""),"") -> 2025-08-02 | G163: 2025-08-03 | H163: 2025-08-04 | I163: 2025-08-05 | J163: 2025-08-06 | K163: 2025-08-07 | L163: 2025-08-08 | M163: 2025-08-09 | N163: 2025-08-10 | O163: 2025-08-11 | P163: 2025-08-12 | Q163: 2025-08-13 | R163: 2025-08-14 | S163: 2025-08-15 | T163: 2025-08-16 | U163: 2025-08-17 | V163: 2025-08-18 | W163: 2025-08-19 | X163: 2025-08-20 | Y163: 2025-08-21 | Z163: 2025-08-22 | AA163: 2025-08-23 | AB163: 2025-08-24 | AC163: 2025-08-25 | AD163: 2025-08-26 | AE163: 2025-08-27 | AF163: 2025-08-28 | AG163: 2025-08-29 | AH163: 2025-08-30 | AI163: =IF(N(AH163),IF(MONTH(AH163+1)=$C163,AH163+1,""),"") -> 2025-08-31 | AK163: =AK$2 -> Не раб. дней | AL163: =AL$2 -> Раб. дней | AM163: =AM$2 -> Раб. час | AN163: =AN$2 -> Отпуск ПЛАН | AO163: =AO$2 -> Отгуляно на СЕГОДНЯ | AQ163: =$AQ$1 -> ОТЧЁТ за месяц
A164: =DATE(ГОД,C163,1) -> 2025-08-01 | E164: =E163 -> 2025-08-01 | F164: 2025-08-02 | G164: 2025-08-03 | H164: 2025-08-04 | I164: 2025-08-05 | J164: 2025-08-06 | K164: 2025-08-07 | L164: 2025-08-08 | M164: 2025-08-09 | N164: 2025-08-10 | O164: 2025-08-11 | P164: 2025-08-12 | Q164: 2025-08-13 | R164: 2025-08-14 | S164: 2025-08-15 | T164: 2025-08-16 | U164: 2025-08-17 | V164: 2025-08-18 | W164: 2025-08-19 | X164: 2025-08-20 | Y164: 2025-08-21 | Z164: 2025-08-22 | AA164: 2025-08-23 | AB164: 2025-08-24 | AC164: 2025-08-25 | AD164: 2025-08-26 | AE164: 2025-08-27 | AF164: 2025-08-28 | AG164: =AG163 -> 2025-08-29 | AH164: =AH163 -> 2025-08-30 | AI164: =AI163 -> 2025-08-31 | AQ164: =DATE(ГОД,C163,1) -> 2025-08-01 | AR164: =M$306 -> В | AS164: ОТ | AT164: ДО | AU164: Б | AV164: НН | AW164: ПР | AX164: К | AY164: НОД | AZ164: У | BA164: ОЗ | BB164: Г
A165: =OFFSET(A165,-1,0) -> 2025-08-01 | B165: 4А | C165: =N(OFFSET(C165,-1,0))+1 -> 1 | D165: Алёхин А.А. | E165: 8 | F165: В | G165: В | H165: 13.5 | I165: 8 | J165: В | K165: В | L165: 13.5 | M165: 8 | N165: В | O165: В | P165: ОТ | Q165: ОТ | R165: ОТ | S165: ОТ | T165: 13.5 | U165: 8 | V165: В | W165: В | X165: 13.5 | Y165: 8 | Z165: В | AA165: В | AB165: 13.5 | AC165: 8 | AD165: В | AE165: В | AF165: 13.5 | AG165: 8 | AH165: В | AI165: В | AK165: =SUM(- - ISTEXT(E165:AH165)) -> 17 | AL165: =COUNT(E165:AH165) -> 13 | AM165: =SUM(E165:AH165) -> 137 | AN165: =COUNTIF(E165:AI165,"ОТ") -> 4 | AO165: =IF(ГОД=YEAR(TODAY()),IF(MONTH(TODAY())<$C$117,0,IF(MONTH(TODAY())>$C$117,AN165,COUNTIF(OFFSET(E165,0,0,,DAY(TODAY())),"ОТ"))),0) -> 0 | AQ165: =D165 -> Алёхин А.А. | AR165: =COUNTIF($E165:$AI165,M$306) -> 14 | AS165: 4 | AT165: 0 | AU165: 0 | AV165: 0 | AW165: 0 | AX165: 0 | AY165: 0 | AZ165: 0 | BA165: 0 | BB165: 0
A166: =OFFSET(A166,-1,0) -> 2025-08-01 | B166: 4А | C166: =N(OFFSET(C166,-1,0))+1 -> 2 | D166: Борисов В.В. | E166: 8 | F166: В | G166: В | H166: 13.5 | I166: 8 | J166: В | K166: В | L166: ОТ | M166: ОТ | N166: В | O166: В | P166: 13.5 | Q166: 8 | R166: В | S166: В | T166: ОТ | U166: ОТ | V166: В | W166: В | X166: 13.5 | Y166: 8 | Z166: В | AA166: В | AB166: 13.5 | AC166: 8 | AD166: В | AE166: В | AF166: 13.5 | AG166: 8 | AH166: В | AI166: В | AK166: =SUM(- - ISTEXT(E166:AH166)) -> 19 | AL166: =COUNT(E166:AH166) -> 11 | AM166: =SUM(E166:AH166) -> 115.5 | AN166: =COUNTIF(E166:AI166,"ОТ") -> 4 | AO166: 0 | AQ166: =D166 -> Борисов В.В. | AR166: 16 | AS166: 4 | AT166: 0 | AU166: 0 | AV166: 0 | AW166: 0 | AX166: 0 | AY166: 0 | AZ166: 0 | BA166: 0 | BB166: 0
A167: 2025-08-01 | B167: 4Б | C167: 3 | D167: Володин В.В. | E167: 13.5 | F167: 8 | G167: В | H167: В | I167: 13.5 | J167: 8 | K167: В | L167: В | M167: 13.5 | N167: 8 | O167: В | P167: В | Q167: 13.5 | R167: 8 | S167: В | T167: В | U167: ОТ | V167: ОТ | W167: ОТ | X167: ОТ | Y167: ОТ | Z167: ОТ | AA167: ОТ | AB167: ОТ | AC167: ОТ | AD167: ОТ | AE167: ОТ | AF167: ОТ | AG167: ОТ | AH167: ОТ | AI167: В | AK167: =SUM(- - ISTEXT(E167:AH167)) -> 22 | AL167: =COUNT(E167:AH167) -> 8 | AM167: =SUM(E167:AH167) -> 86 | AN167: =COUNTIF(E167:AI167,"ОТ") -> 14 | AO167: 0 | AQ167: Володин В.В. | AR167: 9 | AS167: 14 | AT167: 0 | AU167: 0 | AV167: 0 | AW167: 0 | AX167: 0 | AY167: 0 | AZ167: 0 | BA167: 0 | BB167: 0
A168: 2025-08-01 | B168: 4Б | C168: 4 | D168: Гаврилов Г.Г. | E168: ОТ | F168: ОТ | G168: ОТ | H168: ОТ | I168: ОТ | J168: ОТ | K168: ОТ | L168: ОТ | M168: 13.5 | N168: 8 | O168: В | P168: В | Q168: 13.5 | R168: 8 | S168: В | T168: В | U168: 13.5 | V168: 8 | W168: В | X168: В | Y168: 13.5 | Z168: 8 | AA168: В | AB168: В | AC168: 13.5 | AD168: 8 | AE168: В | AF168: В | AG168: 13.5 | AH168: 8 | AI168: В | AK168: =SUM(- - ISTEXT(E168:AH168)) -> 18 | AL168: =COUNT(E168:AH168) -> 12 | AM168: =SUM(E168:AH168) -> 129 | AN168: =COUNTIF(E168:AI168,"ОТ") -> 8 | AO168: 0 | AQ168: Гаврилов Г.Г. | AR168: 11 | AS168: 8 | AT168: 0 | AU168: 0 | AV168: 0 | AW168: 0 | AX168: 0 | AY168: 0 | AZ168: 0 | BA168: 0 | BB168: 0
A169: 2025-08-01 | B169: 4В | C169: 5 | D169: Данилов Д.Д. | E169: В | F169: 13.5 | G169: 8 | H169: В | I169: В | J169: 13.5 | K169: 8 | L169: В | M169: В | N169: 13.5 | O169: 8 | P169: В | Q169: В | R169: 13.5 | S169: 8 | T169: В | U169: В | V169: 13.5 | W169: 8 | X169: В | Y169: В | Z169: 13.5 | AA169: 8 | AB169: В | AC169: В | AD169: 13.5 | AE169: 8 | AF169: В | AG169: В | AH169: 13.5 | AI169: 8 | AK169: =SUM(- - ISTEXT(E169:AH169)) -> 15 | AL169: =COUNT(E169:AH169) -> 15 | AM169: =SUM(E169:AH169) -> 164 | AN169: =COUNTIF(E169:AI169,"ОТ") -> 0 | AO169: 0 | AQ169: Данилов Д.Д. | AR169: 15 | AS169: 0 | AT169: 0 | AU169: 0 | AV169: 0 | AW169: 0 | AX169: 0 | AY169: 0 | AZ169: 0 | BA169: 0 | BB169: 0
A170: 2025-08-01 | B170: 4В | C170: 6 | D170: Ежов Е.Е. | E170: В | F170: 13.5 | G170: 8 | H170: В | I170: В | J170: 13.5 | K170: 8 | L170: В | M170: В | N170: ОТ | O170: ОТ | P170: ОТ | Q170: ОТ | R170: ОТ | S170: ОТ | T170: ОТ | U170: ОТ | V170: ОТ | W170: ОТ | X170: ОТ | Y170: ОТ | Z170: ОТ | AA170: ОТ | AB170: ОТ | AC170: ОТ | AD170: ОТ | AE170: ОТ | AF170: ОТ | AG170: ОТ | AH170: ОТ | AI170: ОТ | AK170: =SUM(- - ISTEXT(E170:AH170)) -> 26 | AL170: 4 | AM170: 43 | AN170: 22 | AO170: 0 | AQ170: Ежов Е.Е. | AR170: 5 | AS170: 22 | AT170: 0 | AU170: 0 | AV170: 0 | AW170: 0 | AX170: 0 | AY170: 0 | AZ170: 0 | BA170: 0 | BB170: 0
A171: 2025-08-01 | B171: 4Г | C171: 7 | D171: Зуев З.З. | E171: ОТ | F171: ОТ | G171: 13.5 | H171: 8 | I171: В | J171: В | K171: 13.5 | L171: 8 | M171: В | N171: В | O171: 13.5 | P171: 8 | Q171: В | R171: В | S171: 13.5 | T171: 8 | U171: В | V171: В | W171: 13.5 | X171: 8 | Y171: В | Z171: В | AA171: 13.5 | AB171: 8 | AC171: В | AD171: В | AE171: 13.5 | AF171: 8 | AG171: В | AH171: В | AI171: 13.5 | AK171: =SUM(- - ISTEXT(E171:AH171)) -> 16 | AL171: 14 | AM171: 150.5 | AN171: 2 | AO171: 0 | AQ171: Зуев З.З. | AR171: 14 | AS171: 2 | AT171: 0 | AU171: 0 | AV171: 0 | AW171: 0 | AX171: 0 | AY171: 0 | AZ171: 0 | BA171: 0 | BB171: 0
A172: 2025-08-01 | B172: 4Г | C172: 8 | D172: Иванов И.И. | E172: В | F172: В | G172: ОТ | H172: ОТ | I172: В | J172: В | K172: 13.5 | L172: 8 | M172: В | N172: В | O172: 13.5 | P172: 8 | Q172: В | R172: В | S172: 13.5 | T172: 8 | U172: В | V172: В | W172: 13.5 | X172: 8 | Y172: В | Z172: В | AA172: 13.5 | AB172: 8 | AC172: В | AD172: В | AE172: 13.5 | AF172: 8 | AG172: В | AH172: В | AI172: ОТ | AK172: =SUM(- - ISTEXT(E172:AH172)) -> 18 | AL172: 12 | AM172: 129 | AN172: 3 | AO172: 0 | AQ172: Иванов И.И. | AR172: 16 | AS172: 3 | AT172: 0 | AU172: 0 | AV172: 0 | AW172: 0 | AX172: 0 | AY172: 0 | AZ172: 0 | BA172: 0 | BB172: 0
A173: 2025-08-01 | B173: 1 | C173: 9 | D173: Козлов К.К. | E173: 7 | F173: В | G173: В | H173: 8.25 | I173: 8.25 | J173: 8.25 | K173: 8.25 | L173: 7 | M173: В | N173: В | O173: 8.25 | P173: 8.25 | Q173: 8.25 | R173: 8.25 | S173: 7 | T173: В | U173: В | V173: 8.25 | W173: 8.25 | X173: 8.25 | Y173: 8.25 | Z173: 7 | AA173: В | AB173: В | AC173: 8.25 | AD173: 8.25 | AE173: 8.25 | AF173: 8.25 | AG173: 7 | AH173: В | AI173: В | AK173: =SUM(- - ISTEXT(E173:AH173)) -> 9 | AL173: 21 | AM173: 167 | AN173: 0 | AO173: 0 | AQ173: Козлов К.К. | AR173: 10 | AS173: 0 | AT173: 0 | AU173: 0 | AV173: 0 | AW173: 0 | AX173: 0 | AY173: 0 | AZ173: 0 | BA173: 0 | BB173: 0
A174: 2025-08-01 | B174: 1 | C174: 10 | D174: Львов Л.Л. | E174: 7 | F174: В | G174: В | H174: 8.25 | I174: 8.25 | J174: 8.25 | K174: 8.25 | L174: 7 | M174: В | N174: В | O174: 8.25 | P174: 8.25 | Q174: 8.25 | R174: 8.25 | S174: 7 | T174: В | U174: В | V174: 8.25 | W174: 8.25 | X174: 8.25 | Y174: 8.25 | Z174: 7 | AA174: В | AB174: В | AC174: 8.25 | AD174: 8.25 | AE174: 8.25 | AF174: 8.25 | AG174: 7 | AH174: В | AI174: В | AK174: =SUM(- - ISTEXT(E174:AH174)) -> 9 | AL174: 21 | AM174: 167 | AN174: 0 | AO174: 0 | AQ174: Львов Л.Л. | AR174: 10 | AS174: 0 | AT174: 0 | AU174: 0 | AV174: 0 | AW174: 0 | AX174: 0 | AY174: 0 | AZ174: 0 | BA174: 0 | BB174: 0
A175: 2025-08-01 | B175: 1 | C175: 11 | D175: Мишин М.М. | E175: 7 | F175: В | G175: В | H175: 8.25 | I175: 8.25 | J175: 8.25 | K175: 8.25 | L175: 7 | M175: В | N175: В | O175: 8.25 | P175: 8.25 | Q175: 8.25 | R175: 8.25 | S175: 7 | T175: В | U175: В | V175: 8.25 | W175: 8.25 | X175: 8.25 | Y175: 8.25 | Z175: 7 | AA175: В | AB175: В | AC175: 8.25 | AD175: 8.25 | AE175: 8.25 | AF175: 8.25 | AG175: 7 | AH175: В | AI175: В | AK175: =SUM(- - ISTEXT(E175:AH175)) -> 9 | AL175: 21 | AM175: 167 | AN175: 0 | AO175: 0 | AQ175: Мишин М.М. | AR175: 10 | AS175: 0 | AT175: 0 | AU175: 0 | AV175: 0 | AW175: 0 | AX175: 0 | AY175: 0 | AZ175: 0 | BA175: 0 | BB175: 0
A176: 2025-08-01 | B176: 1 | C176: 12 | D176: Носов Н.Н. | E176: 7 | F176: В | G176: В | H176: 8.25 | I176: 8.25 | J176: 8.25 | K176: 8.25 | L176: 7 | M176: В | N176: В | O176: 8.25 | P176: 8.25 | Q176: 8.25 | R176: 8.25 | S176: 7 | T176: В | U176: В | V176: 8.25 | W176: 8.25 | X176: 8.25 | Y176: 8.25 | Z176: 7 | AA176: В | AB176: В | AC176: 8.25 | AD176: 8.25 | AE176: 8.25 | AF176: 8.25 | AG176: 7 | AH176: В | AI176: В | AK176: =SUM(- - ISTEXT(E176:AH176)) -> 9 | AL176: 21 | AM176: 167 | AN176: 0 | AO176: 0 | AQ176: Носов Н.Н. | AR176: 10 | AS176: 0 | AT176: 0 | AU176: 0 | AV176: 0 | AW176: 0 | AX176: 0 | AY176: 0 | AZ176: 0 | BA176: 0 | BB176: 0
A177: 2025-08-01 | B177: 1 | C177: 13 | D177: Осин О.О. | E177: 7 | F177: В | G177: В | H177: 8.25 | I177: 8.25 | J177: 8.25 | K177: 8.25 | L177: 7 | M177: В | N177: В | O177: 8.25 | P177: 8.25 | Q177: 8.25 | R177: 8.25 | S177: 7 | T177: В | U177: В | V177: 8.25 | W177: 8.25 | X177: 8.25 | Y177: 8.25 | Z177: 7 | AA177: В | AB177: В | AC177: 8.25 | AD177: 8.25 | AE177: 8.25 | AF177: 8.25 | AG177: 7 | AH177: В | AI177: В | AK177: =SUM(- - ISTEXT(E177:AH177)) -> 9 | AL177: 21 | AM177: 167 | AN177: 0 | AO177: 0 | AQ177: Осин О.О. | AR177: 10 | AS177: 0 | AT177: 0 | AU177: 0 | AV177: 0 | AW177: 0 | AX177: 0 | AY177: 0 | AZ177: 0 | BA177: 0 | BB177: 0
A178: 2025-08-01 | B178: 1 | C178: 14 | D178: Попов П.П. | E178: 7 | F178: В | G178: В | H178: 8.25 | I178: 8.25 | J178: 8.25 | K178: 8.25 | L178: 7 | M178: В | N178: В | O178: 8.25 | P178: 8.25 | Q178: 8.25 | R178: 8.25 | S178: 7 | T178: В | U178: В | V178: 8.25 | W178: 8.25 | X178: 8.25 | Y178: 8.25 | Z178: 7 | AA178: В | AB178: В | AC178: 8.25 | AD178: 8.25 | AE178: 8.25 | AF178: 8.25 | AG178: 7 | AH178: В | AI178: В | AK178: =SUM(- - ISTEXT(E178:AH178)) -> 9 | AL178: 21 | AM178: 167 | AN178: 0 | AO178: 0 | AQ178: Попов П.П. | AR178: 10 | AS178: 0 | AT178: 0 | AU178: 0 | AV178: 0 | AW178: 0 | AX178: 0 | AY178: 0 | AZ178: 0 | BA178: 0 | BB178: 0
A179: 2025-08-01 | B179: 1 | C179: 15 | AK179: =SUM(- - ISTEXT(E179:AH179)) -> 0 | AL179: =COUNT(E179:AH179) -> 0 | AM179: =SUM(E179:AH179) -> 0 | AN179: =COUNTIF(E179:AI179,"ОТ") -> 0 | AO179: 0 | AQ179: =D179 -> 0 | AR179: 0 | AS179: 0 | AT179: 0 | AU179: 0 | AV179: 0 | AW179: 0 | AX179: 0 | AY179: 0 | AZ179: 0 | BA179: 0 | BB179: 0
A180: 2025-08-01 | B180: 1 | C180: 16 | AK180: =SUM(- - ISTEXT(E180:AH180)) -> 0 | AL180: =COUNT(E180:AH180) -> 0 | AM180: =SUM(E180:AH180) -> 0 | AN180: =COUNTIF(E180:AI180,"ОТ") -> 0 | AO180: 0 | AQ180: =D180 -> 0 | AR180: 0 | AS180: 0 | AT180: 0 | AU180: 0 | AV180: 0 | AW180: 0 | AX180: 0 | AY180: 0 | AZ180: 0 | BA180: 0 | BB180: 0
A181: 2025-08-01 | B181: 1 | AK181: =SUM(- - ISTEXT(E181:AI181)) -> 0 | AL181: =COUNT(E181:AI181) -> 0 | AM181: =SUM(E181:AI181) -> 0 | AN181: =COUNTIF(E181:AI181,"ОТ") -> 0 | AO181: 0 | AQ181: =D181 -> 0 | AR181: 0 | AS181: 0 | AT181: 0 | AU181: 0 | AV181: 0 | AW181: 0 | AX181: 0 | AY181: 0 | AZ181: 0 | BA181: 0 | BB181: 0
A182: 2025-08-01 | B182: 1 | C182: 1 | BB182: =COUNTIF($E182:$AI182,W$306) -> 0
A183: 2025-08-01 | B183: 1 | C183: 2 | AK183: =SUM(- - ISTEXT(E183:AI183)) -> 0 | AL183: =COUNT(E183:AI183) -> 0 | AM183: =SUM(E183:AI183) -> 0 | AN183: =COUNTIF(E183:AI183,"ОТ") -> 0 | AO183: =IF(ГОД=YEAR(TODAY()),IF(MONTH(TODAY())<$C$117,0,IF(MONTH(TODAY())>$C$117,AN183,COUNTIF(OFFSET(E183,0,0,,DAY(TODAY())),"ОТ"))),0) -> 0 | AQ183: =D183 -> 0 | AR183: =COUNTIF($E183:$AI183,M$306) -> 0 | AS183: 0 | AT183: 0 | AU183: 0 | AV183: 0 | AW183: 0 | AX183: 0 | AY183: 0 | AZ183: 0 | BA183: 0 | BB183: 0
A184: =OFFSET(A183,-1,0) -> 2025-08-01 | B184: 1 | C184: 3 | AK184: =SUM(- - ISTEXT(E184:AI184)) -> 0 | AL184: =COUNT(E184:AI184) -> 0 | AM184: =SUM(E184:AI184) -> 0 | AN184: =COUNTIF(E184:AI184,"ОТ") -> 0 | AO184: =IF(ГОД=YEAR(TODAY()),IF(MONTH(TODAY())<$C$117,0,IF(MONTH(TODAY())>$C$117,AN184,COUNTIF(OFFSET(E184,0,0,,DAY(TODAY())),"ОТ"))),0) -> 0 | AQ184: =D184 -> 0 | AR184: 0 | AS184: 0 | AT184: 0 | AU184: 0 | AV184: 0 | AW184: 0 | AX184: 0 | AY184: 0 | AZ184: 0 | BA184: 0 | BB184: 0
E185: =IF(E186=TODAY(),МЕТКА,"") -> 
B186: График | C186: 9 | D186: =DATE(ГОД,C186,1) -> 2025-09-01 | E186: =DATE(ГОД,C186,DAY(D186)) -> 2025-09-01 | F186: =IF(N(E186),IF(MONTH(E186+1)=$C186,E186+1,""),"") -> 2025-09-02 | G186: 2025-09-03 | H186: 2025-09-04 | I186: 2025-09-05 | J186: 2025-09-06 | K186: 2025-09-07 | L186: 2025-09-08 | M186: 2025-09-09 | N186: 2025-09-10 | O186: 2025-09-11 | P186: 2025-09-12 | Q186: 2025-09-13 | R186: 2025-09-14 | S186: 2025-09-15 | T186: 2025-09-16 | U186: 2025-09-17 | V186: 2025-09-18 | W186: 2025-09-19 | X186: 2025-09-20 | Y186: 2025-09-21 | Z186: 2025-09-22 | AA186: 2025-09-23 | AB186: 2025-09-24 | AC186: 2025-09-25 | AD186: 2025-09-26 | AE186: 2025-09-27 | AF186: 2025-09-28 | AG186: 2025-09-29 | AH186: 2025-09-30 | AI186: =IF(N(AH186),IF(MONTH(AH186+1)=$C186,AH186+1,""),"") ->  | AK186: =AK$2 -> Не раб. дней | AL186: =AL$2 -> Раб. дней | AM186: =AM$2 -> Раб. час | AN186: =AN$2 -> Отпуск ПЛАН | AO186: =AO$2 -> Отгуляно на СЕГОДНЯ | AQ186: =$AQ$1 -> ОТЧЁТ за месяц
A187: =DATE(ГОД,C186,1) -> 2025-09-01 | E187: =E186 -> 2025-09-01 | F187: 2025-09-02 | G187: 2025-09-03 | H187: 2025-09-04 | I187: 2025-09-05 | J187: 2025-09-06 | K187: 2025-09-07 | L187: 2025-09-08 | M187: 2025-09-09 | N187: 2025-09-10 | O187: 2025-09-11 | P187: 2025-09-12 | Q187: 2025-09-13 | R187: 2025-09-14 | S187: 2025-09-15 | T187: 2025-09-16 | U187: 2025-09-17 | V187: 2025-09-18 | W187: 2025-09-19 | X187: 2025-09-20 | Y187: 2025-09-21 | Z187: 2025-09-22 | AA187: 2025-09-23 | AB187: 2025-09-24 | AC187: 2025-09-25 | AD187: 2025-09-26 | AE187: 2025-09-27 | AF187: 2025-09-28 | AG187: =AG186 -> 2025-09-29 | AH187: =AH186 -> 2025-09-30 | AI187: =AI186 ->  | AQ187: =DATE(ГОД,C186,1) -> 2025-09-01 | AR187: =M$306 -> В | AS187: ОТ | AT187: ДО | AU187: Б | AV187: НН | AW187: ПР | AX187: К | AY187: НОД | AZ187: У | BA187: ОЗ | BB187: Г
A188: =OFFSET(A188,-1,0) -> 2025-09-01 | B188: 4А | C188: =N(OFFSET(C188,-1,0))+1 -> 1 | D188: Алёхин А.А. | E188: 13.5 | F188: 8 | G188: В | H188: В | I188: 13.5 | J188: 8 | K188: В | L188: В | M188: 13.5 | N188: 8 | O188: В | P188: В | Q188: 13.5 | R188: 8 | S188: В | T188: В | U188: 13.5 | V188: 8 | W188: В | X188: В | Y188: 13.5 | Z188: 8 | AA188: В | AB188: В | AC188: 13.5 | AD188: 8 | AE188: В | AF188: В | AG188: 13.5 | AH188: 8 | AK188: =SUM(- - ISTEXT(E188:AH188)) -> 14 | AL188: =COUNT(E188:AH188) -> 16 | AM188: =SUM(E188:AH188) -> 172 | AN188: =COUNTIF(E188:AI188,"ОТ") -> 0 | AO188: =IF(ГОД=YEAR(TODAY()),IF(MONTH(TODAY())<$C$117,0,IF(MONTH(TODAY())>$C$117,AN188,COUNTIF(OFFSET(E188,0,0,,DAY(TODAY())),"ОТ"))),0) -> 0 | AQ188: =D188 -> Алёхин А.А. | AR188: =COUNTIF($E188:$AI188,M$306) -> 14 | AS188: 0 | AT188: 0 | AU188: 0 | AV188: 0 | AW188: 0 | AX188: 0 | AY188: 0 | AZ188: 0 | BA188: 0 | BB188: 0
A189: =OFFSET(A189,-1,0) -> 2025-09-01 | B189: 4А | C189: =N(OFFSET(C189,-1,0))+1 -> 2 | D189: Борисов В.В. | E189: 13.5 | F189: 8 | G189: В | H189: В | I189: 13.5 | J189: 8 | K189: В | L189: В | M189: ОТ | N189: ОТ | O189: ОТ | P189: ОТ | Q189: ОТ | R189: ОТ | S189: В | T189: В | U189: 13.5 | V189: 8 | W189: В | X189: В | Y189: 13.5 | Z189: 8 | AA189: В | AB189: В | AC189: 13.5 | AD189: 8 | AE189: В | AF189: В | AG189: 13.5 | AH189: 8 | AK189: =SUM(- - ISTEXT(E189:AH189)) -> 18 | AL189: 12 | AM189: 129 | AN189: 6 | AO189: 0 | AQ189: =D189 -> Борисов В.В. | AR189: 12 | AS189: 6 | AT189: 0 | AU189: 0 | AV189: 0 | AW189: 0 | AX189: 0 | AY189: 0 | AZ189: 0 | BA189: 0 | BB189: 0
A190: 2025-09-01 | B190: 4Б | C190: 3 | D190: Володин В.В. | E190: В | F190: 13.5 | G190: 8 | H190: В | I190: В | J190: 13.5 | K190: 8 | L190: В | M190: В | N190: 13.5 | O190: 8 | P190: В | Q190: В | R190: 13.5 | S190: 8 | T190: В | U190: В | V190: 13.5 | W190: 8 | X190: В | Y190: В | Z190: 13.5 | AA190: 8 | AB190: В | AC190: В | AD190: 13.5 | AE190: 8 | AF190: В | AG190: В | AH190: 13.5 | AK190: =SUM(- - ISTEXT(E190:AH190)) -> 15 | AL190: 15 | AM190: 164 | AN190: 0 | AO190: 0 | AQ190: Володин В.В. | AR190: 15 | AS190: 0 | AT190: 0 | AU190: 0 | AV190: 0 | AW190: 0 | AX190: 0 | AY190: 0 | AZ190: 0 | BA190: 0 | BB190: 0
A191: 2025-09-01 | B191: 4Б | C191: 4 | D191: Гаврилов Г.Г. | E191: В | F191: 13.5 | G191: 8 | H191: В | I191: В | J191: 13.5 | K191: 8 | L191: В | M191: В | N191: 13.5 | O191: 8 | P191: В | Q191: В | R191: 13.5 | S191: 8 | T191: В | U191: В | V191: 13.5 | W191: 8 | X191: В | Y191: В | Z191: 13.5 | AA191: 8 | AB191: В | AC191: В | AD191: 13.5 | AE191: 8 | AF191: В | AG191: В | AH191: 13.5 | AK191: =SUM(- - ISTEXT(E191:AH191)) -> 15 | AL191: 15 | AM191: 164 | AN191: 0 | AO191: 0 | AQ191: Гаврилов Г.Г. | AR191: 15 | AS191: 0 | AT191: 0 | AU191: 0 | AV191: 0 | AW191: 0 | AX191: 0 | AY191: 0 | AZ191: 0 | BA191: 0 | BB191: 0
A192: 2025-09-01 | B192: 4В | C192: 5 | D192: Данилов Д.Д. | E192: В | F192: В | G192: ОТ | H192: ОТ | I192: ОТ | J192: ОТ | K192: ОТ | L192: ОТ | M192: ОТ | N192: ОТ | O192: ОТ | P192: ОТ | Q192: ОТ | R192: ОТ | S192: ОТ | T192: ОТ | U192: В | V192: В | W192: 13.5 | X192: 8 | Y192: В | Z192: В | AA192: 13.5 | AB192: 8 | AC192: В | AD192: В | AE192: 13.5 | AF192: 8 | AG192: В | AH192: В | AK192: =SUM(- - ISTEXT(E192:AH192)) -> 24 | AL192: 6 | AM192: 64.5 | AN192: 14 | AO192: 0 | AQ192: Данилов Д.Д. | AR192: 10 | AS192: 14 | AT192: 0 | AU192: 0 | AV192: 0 | AW192: 0 | AX192: 0 | AY192: 0 | AZ192: 0 | BA192: 0 | BB192: 0
A193: 2025-09-01 | B193: 4В | C193: 6 | D193: Ежов Е.Е. | E193: В | F193: В | G193: 13.5 | H193: 8 | I193: В | J193: В | K193: 13.5 | L193: 8 | M193: В | N193: В | O193: 13.5 | P193: 8 | Q193: В | R193: В | S193: 13.5 | T193: 8 | U193: В | V193: В | W193: 13.5 | X193: 8 | Y193: В | Z193: В | AA193: 13.5 | AB193: 8 | AC193: В | AD193: В | AE193: 13.5 | AF193: 8 | AG193: В | AH193: В | AK193: =SUM(- - ISTEXT(E193:AH193)) -> 16 | AL193: 14 | AM193: 150.5 | AN193: 0 | AO193: 0 | AQ193: Ежов Е.Е. | AR193: 16 | AS193: 0 | AT193: 0 | AU193: 0 | AV193: 0 | AW193: 0 | AX193: 0 | AY193: 0 | AZ193: 0 | BA193: 0 | BB193: 0
A194: 2025-09-01 | B194: 4Г | C194: 7 | D194: Зуев З.З. | E194: 8 | F194: В | G194: В | H194: 13.5 | I194: 8 | J194: В | K194: В | L194: 13.5 | M194: 8 | N194: В | O194: В | P194: 13.5 | Q194: 8 | R194: В | S194: В | T194: 13.5 | U194: 8 | V194: В | W194: В | X194: 13.5 | Y194: 8 | Z194: ОТ | AA194: ОТ | AB194: ОТ | AC194: ОТ | AD194: ОТ | AE194: ОТ | AF194: 13.5 | AG194: 8 | AH194: В | AK194: =SUM(- - ISTEXT(E194:AH194)) -> 17 | AL194: 13 | AM194: 137 | AN194: 6 | AO194: 0 | AQ194: Зуев З.З. | AR194: 11 | AS194: 6 | AT194: 0 | AU194: 0 | AV194: 0 | AW194: 0 | AX194: 0 | AY194: 0 | AZ194: 0 | BA194: 0 | BB194: 0
A195: 2025-09-01 | B195: 4Г | C195: 8 | D195: Иванов И.И. | E195: ОТ | F195: ОТ | G195: ОТ | H195: ОТ | I195: ОТ | J195: В | K195: В | L195: 13.5 | M195: 8 | N195: В | O195: В | P195: 13.5 | Q195: 8 | R195: В | S195: В | T195: 13.5 | U195: 8 | V195: В | W195: В | X195: 13.5 | Y195: 8 | Z195: В | AA195: В | AB195: 13.5 | AC195: 8 | AD195: В | AE195: В | AF195: 13.5 | AG195: 8 | AH195: В | AK195: =SUM(- - ISTEXT(E195:AH195)) -> 18 | AL195: 12 | AM195: 129 | AN195: 5 | AO195: 0 | AQ195: Иванов И.И. | AR195: 13 | AS195: 5 | AT195: 0 | AU195: 0 | AV195: 0 | AW195: 0 | AX195: 0 | AY195: 0 | AZ195: 0 | BA195: 0 | BB195: 0
A196: 2025-09-01 | B196: 1 | C196: 9 | D196: Козлов К.К. | E196: 8.25 | F196: 8.25 | G196: 8.25 | H196: 8.25 | I196: 7 | J196: В | K196: В | L196: 8.25 | M196: 8.25 | N196: 8.25 | O196: 8.25 | P196: 7 | Q196: В | R196: В | S196: 8.25 | T196: 8.25 | U196: 8.25 | V196: 8.25 | W196: 7 | X196: В | Y196: В | Z196: 8.25 | AA196: 8.25 | AB196: 8.25 | AC196: 8.25 | AD196: 7 | AE196: В | AF196: В | AG196: 8.25 | AH196: 8.25 | AK196: =SUM(- - ISTEXT(E196:AH196)) -> 8 | AL196: 22 | AM196: 176.5 | AN196: 0 | AO196: 0 | AQ196: Козлов К.К. | AR196: 8 | AS196: 0 | AT196: 0 | AU196: 0 | AV196: 0 | AW196: 0 | AX196: 0 | AY196: 0 | AZ196: 0 | BA196: 0 | BB196: 0
A197: 2025-09-01 | B197: 1 | C197: 10 | D197: Львов Л.Л. | E197: 8.25 | F197: 8.25 | G197: 8.25 | H197: 8.25 | I197: 7 | J197: В | K197: В | L197: 8.25 | M197: 8.25 | N197: 8.25 | O197: 8.25 | P197: 7 | Q197: В | R197: В | S197: 8.25 | T197: 8.25 | U197: 8.25 | V197: 8.25 | W197: 7 | X197: В | Y197: В | Z197: 8.25 | AA197: 8.25 | AB197: 8.25 | AC197: 8.25 | AD197: 7 | AE197: В | AF197: В | AG197: 8.25 | AH197: 8.25 | AK197: =SUM(- - ISTEXT(E197:AH197)) -> 8 | AL197: 22 | AM197: 176.5 | AN197: 0 | AO197: 0 | AQ197: Львов Л.Л. | AR197: 8 | AS197: 0 | AT197: 0 | AU197: 0 | AV197: 0 | AW197: 0 | AX197: 0 | AY197: 0 | AZ197: 0 | BA197: 0 | BB197: 0
A198: 2025-09-01 | B198: 1 | C198: 11 | D198: Мишин М.М. | E198: 8.25 | F198: 8.25 | G198: 8.25 | H198: 8.25 | I198: 7 | J198: В | K198: В | L198: ОТ | M198: ОТ | N198: ОТ | O198: ОТ | P198: ОТ | Q198: В | R198: В | S198: ОТ | T198: ОТ | U198: ОТ | V198: ОТ | W198: ОТ | X198: В | Y198: В | Z198: 8.25 | AA198: 8.25 | AB198: 8.25 | AC198: 8.25 | AD198: 7 | AE198: В | AF198: В | AG198: 8.25 | AH198: 8.25 | AK198: =SUM(- - ISTEXT(E198:AH198)) -> 18 | AL198: 12 | AM198: 96.5 | AN198: 10 | AO198: 0 | AQ198: Мишин М.М. | AR198: 8 | AS198: 10 | AT198: 0 | AU198: 0 | AV198: 0 | AW198: 0 | AX198: 0 | AY198: 0 | AZ198: 0 | BA198: 0 | BB198: 0
A199: 2025-09-01 | B199: 1 | C199: 12 | D199: Носов Н.Н. | E199: 8.25 | F199: 8.25 | G199: 8.25 | H199: 8.25 | I199: 7 | J199: В | K199: В | L199: 8.25 | M199: 8.25 | N199: 8.25 | O199: 8.25 | P199: 7 | Q199: В | R199: В | S199: 8.25 | T199: 8.25 | U199: 8.25 | V199: 8.25 | W199: 7 | X199: В | Y199: В | Z199: 8.25 | AA199: 8.25 | AB199: 8.25 | AC199: ОТ | AD199: ОТ | AE199: В | AF199: В | AG199: ОТ | AH199: ОТ | AK199: =SUM(- - ISTEXT(E199:AH199)) -> 12 | AL199: 18 | AM199: 144.75 | AN199: 4 | AO199: 0 | AQ199: Носов Н.Н. | AR199: 8 | AS199: 4 | AT199: 0 | AU199: 0 | AV199: 0 | AW199: 0 | AX199: 0 | AY199: 0 | AZ199: 0 | BA199: 0 | BB199: 0
A200: 2025-09-01 | B200: 1 | C200: 13 | D200: Осин О.О. | E200: 8.25 | F200: 8.25 | G200: 8.25 | H200: 8.25 | I200: 7 | J200: В | K200: В | L200: 8.25 | M200: 8.25 | N200: 8.25 | O200: 8.25 | P200: 7 | Q200: В | R200: В | S200: 8.25 | T200: 8.25 | U200: 8.25 | V200: 8.25 | W200: 7 | X200: В | Y200: В | Z200: 8.25 | AA200: 8.25 | AB200: 8.25 | AC200: 8.25 | AD200: 7 | AE200: В | AF200: В | AG200: 8.25 | AH200: 8.25 | AK200: =SUM(- - ISTEXT(E200:AH200)) -> 8 | AL200: 22 | AM200: 176.5 | AN200: 0 | AO200: 0 | AQ200: Осин О.О. | AR200: 8 | AS200: 0 | AT200: 0 | AU200: 0 | AV200: 0 | AW200: 0 | AX200: 0 | AY200: 0 | AZ200: 0 | BA200: 0 | BB200: 0
... 123 more rows

Sheet Календарь
A1: Праздники | C1: Причина ВЫХОДНЫХ | D1: Черные | F1: Причина РАБОЧИХ | H1: Профессиональные календари | K1: Производственный календарь
A2: 2024-01-01 | B2: =IF(A2,A2,"") -> 2024-01-01 | C2: Новогодние каникулы | E2: =IF(D2,D2,"") ->  | G2: 2024-01-01 | H2: Новогодние каникулы | I2: 2024г.
A3: 2024-01-02 | B3: 2024-01-02 | C3: Новогодние каникулы | G3: 2024-01-02 | H3: Новогодние каникулы | J3: 1, 2, 3, 4, 5, 6 и 8 января - Новогодние каникулы
A4: 2024-01-03 | B4: 2024-01-03 | C4: Новогодние каникулы | G4: 2024-01-03 | H4: Новогодние каникулы | J4: 7 января - Рождество Христово
A5: 2024-01-04 | B5: 2024-01-04 | C5: Новогодние каникулы | G5: 2024-01-04 | H5: Новогодние каникулы | J5: 23 февраля - День защитника Отечества
A6: 2024-01-05 | B6: 2024-01-05 | C6: Новогодние каникулы | G6: 2024-01-05 | H6: Новогодние каникулы | J6: 8 марта - Международный женский день
A7: 2024-01-06 | B7: 2024-01-06 | C7: Новогодние каникулы | G7: 2024-01-06 | H7: Новогодние каникулы | J7: 1 мая - Праздник Весны и Труда
A8: 2024-01-07 | B8: 2024-01-07 | C8: Рождество Христово | G8: 2024-01-07 | H8: Рождество Христово | J8: 9 мая - День Победы
A9: 2024-01-08 | B9: 2024-01-08 | C9: Новогодние каникулы | G9: 2024-01-08 | H9: Новогодние каникулы | J9: 12 июня - День России
A10: 2024-02-23 | B10: 2024-02-23 | C10: День защитника Отечества | G10: 2024-02-23 | H10: День защитника Отечества | J10: 4 ноября - День народного единства
A11: 2024-03-08 | B11: =IF(A11,A11,"") -> 2024-03-08 | C11: Международный женский день | E11: =IF(D11,D11,"") ->  | G11: 2024-03-08 | H11: Международный женский день | K11: 2024-02-22 | L11: — | M11: предпраздничный день
A12: 2024-05-01 | B12: 2024-05-01 | C12: Праздник Весны и Труда | G12: 2024-05-01 | H12: Праздник Весны и Труда | K12: 2024-03-07 | L12: — | M12: предпраздничный день
A13: 2024-05-09 | B13: 2024-05-09 | C13: День Победы | G13: 2024-05-09 | H13: День Победы | K13: 2024-05-08 | L13: — | M13: предпраздничный день
A14: 2024-06-12 | B14: 2024-06-12 | C14: День России | G14: 2024-06-12 | H14: День России | K14: 2024-06-11 | L14: — | M14: предпраздничный день
A15: 2024-11-04 | B15: 2024-11-04 | C15: День народного единства | G15: 2024-11-04 | H15: День народного единства
A16: 2024-05-10 | B16: =IF(A16,A16,"") -> 2024-05-10 | C16: за 06.01.2024 | J16: Перенос выходных: | K16: 2024-01-06 | L16: → | M16: 2024-05-10
A17: 2024-12-31 | B17: 2024-12-31 | C17: за 07.01.2024 | J17: Перенос выходных: | K17: 2024-01-07 | L17: → | M17: 2024-12-31
A18: 2024-04-29 | B18: 2024-04-29 | C18: за 27.04.2024 | D18: 2024-04-27 | E18: 2024-04-27 | F18: перенос на 29.04.2024 | J18: Перенос выходных: | K18: 2024-04-27 | L18: → | M18: 2024-04-29
A19: 2024-04-30 | B19: 2024-04-30 | C19: за 02.11.2024 | D19: 2024-11-02 | E19: 2024-11-02 | F19: перенос на 30.04.2024 | J19: Перенос выходных: | K19: 2024-11-02 | L19: → | M19: 2024-04-30
A20: 2024-12-30 | B20: 2024-12-30 | C20: за 28.12.2024 | D20: 2024-12-28 | E20: 2024-12-28 | F20: перенос на 30.12.2024 | J20: Перенос выходных: | K20: 2024-12-28 | L20: → | M20: 2024-12-30
A21: 2025-01-01 | B21: 2025-01-01 | C21: Новогодние каникулы | G21: 2025-01-01 | H21: Новогодние каникулы | I21: 2025г.
A22: 2025-01-02 | B22: 2025-01-02 | C22: Новогодние каникулы | G22: 2025-01-02 | H22: Новогодние каникулы | J22: 1, 2, 3, 4, 5, 6 и 8 января - Новогодние каникулы
A23: 2025-01-03 | B23: 2025-01-03 | C23: Новогодние каникулы | G23: 2025-01-03 | H23: Новогодние каникулы | J23: 7 января - Рождество Христово
A24: 2025-01-04 | B24: 2025-01-04 | C24: Новогодние каникулы | G24: 2025-01-04 | H24: Новогодние каникулы | J24: 23 февраля - День защитника Отечества
A25: 2025-01-05 | B25: 2025-01-05 | C25: Новогодние каникулы | G25: 2025-01-05 | H25: Новогодние каникулы | J25: 8 марта - Международный женский день
A26: 2025-01-06 | B26: 2025-01-06 | C26: Новогодние каникулы | G26: 2025-01-06 | H26: Новогодние каникулы | J26: 1 мая - Праздник Весны и Труда
A27: 2025-01-07 | B27: 2025-01-07 | C27: Рождество Христово | G27: 2025-01-07 | H27: Рождество Христово | J27: 9 мая - День Победы
A28: 2025-01-08 | B28: 2025-01-08 | C28: Новогодние каникулы | G28: 2025-01-08 | H28: Новогодние каникулы | J28: 12 июня - День России
A29: 2025-02-23 | B29: 2025-02-23 | C29: День защитника Отечества | G29: 2025-02-23 | H29: День защитника Отечества | J29: 4 ноября - День народного единства
A30: 2025-03-08 | B30: =IF(A30,A30,"") -> 2025-03-08 | C30: Международный женский день | E30: =IF(D30,D30,"") ->  | G30: 2025-03-08 | H30: Международный женский день | K30: 2025-03-07 | L30: — | M30: предпраздничный день
A31: 2025-05-01 | B31: =IF(A31,A31,"") -> 2025-05-01 | C31: Праздник Весны и Труда | E31: =IF(D31,D31,"") ->  | G31: 2025-05-01 | H31: Праздник Весны и Труда | K31: 2025-04-30 | L31: — | M31: предпраздничный день
A32: 2025-05-09 | B32: =IF(A32,A32,"") -> 2025-05-09 | C32: День Победы | E32: =IF(D32,D32,"") ->  | G32: 2025-05-09 | H32: День Победы | K32: 2025-06-11 | L32: — | M32: предпраздничный день
A33: 2025-06-12 | B33: =IF(A33,A33,"") -> 2025-06-12 | C33: День России | E33: =IF(D33,D33,"") ->  | G33: 2025-06-12 | H33: День России | K33: 2025-11-01 | L33: — | M33: предпраздничный день
A34: 2025-11-04 | B34: =IF(A34,A34,"") -> 2025-11-04 | C34: День народного единства | E34: =IF(D34,D34,"") ->  | G34: 2025-11-04 | H34: День народного единства
A35: 2025-05-02 | B35: 2025-05-02 | C35: за 04.01.2025 | J35: Перенос выходных: | K35: 2025-01-04 | L35: → | M35: 2025-05-02
A36: 2025-05-08 | B36: 2025-05-08 | C36: за 23.02.2025 | J36: Перенос выходных: | K36: 2025-02-23 | L36: → | M36: 2025-05-08
A37: 2025-06-13 | B37: 2025-06-13 | C37: за 08.03.2025 | J37: Перенос выходных: | K37: 2025-03-08 | L37: → | M37: 2025-06-13
A38: 2025-11-03 | B38: 2025-11-03 | C38: за 01.01.2025 | D38: 2025-11-01 | E38: 2025-11-01 | F38: перенос на 03.11.2025 | J38: Перенос выходных: | K38: 2025-11-01 | L38: → | M38: 2025-11-03
A39: 2025-12-31 | B39: 2025-12-31 | C39: за 05.01.2025 | J39: Перенос выходных: | K39: 2025-01-05 | L39: → | M39: 2025-12-31
A40: 2026-01-01 | B40: 2026-01-01 | C40: Новогодние каникулы | G40: 2026-01-01 | H40: Новогодние каникулы | I40: 2026г.
A41: 2026-01-02 | B41: 2026-01-02 | C41: Новогодние каникулы | G41: 2026-01-02 | H41: Новогодние каникулы | J41: 1, 2, 3, 4, 5, 6 и 8 января - Новогодние каникулы
A42: 2026-01-03 | B42: =IF(A42,A42,"") -> 2026-01-03 | C42: Новогодние каникулы | G42: 2026-01-03 | H42: Новогодние каникулы | J42: 7 января - Рождество Христово
A43: 2026-01-04 | B43: 2026-01-04 | C43: Новогодние каникулы | G43: 2026-01-04 | H43: Новогодние каникулы | J43: 23 февраля - День защитника Отечества
A44: 2026-01-05 | B44: 2026-01-05 | C44: Новогодние каникулы | E44: =IF(D44,D44,"") ->  | G44: 2026-01-05 | H44: Новогодние каникулы | J44: 8 марта - Международный женский день
A45: 2026-01-06 | B45: 2026-01-06 | C45: Новогодние каникулы | G45: 2026-01-06 | H45: Новогодние каникулы | J45: 1 мая - Праздник Весны и Труда
A46: 2026-01-07 | B46: 2026-01-07 | C46: Рождество Христово | G46: 2026-01-07 | H46: Рождество Христово | J46: 9 мая - День Победы
A47: 2026-01-08 | B47: 2026-01-08 | C47: Новогодние каникулы | G47: 2026-01-08 | H47: Новогодние каникулы | J47: 12 июня - День России
A48: 2026-02-23 | B48: 2026-02-23 | C48: День защитника Отечества | G48: 2026-02-23 | H48: День защитника Отечества | J48: 4 ноября - День народного единства
A49: 2026-03-08 | B49: 2026-03-08 | C49: Международный женский день | G49: 2026-03-08 | H49: Международный женский день
A50: 2026-05-01 | B50: 2026-05-01 | C50: Праздник Весны и Труда | G50: 2026-05-01 | H50: Праздник Весны и Труда
A51: 2026-05-09 | B51: 2026-05-09 | C51: День Победы | G51: 2026-05-09 | H51: День Победы
A52: 2026-06-12 | B52: 2026-06-12 | C52: День России | G52: 2026-06-12 | H52: День России
A53: 2026-11-04 | B53: 2026-11-04 | C53: День народного единства | G53: 2026-11-04 | H53: День народного единства
B66: =IF(A66,A66,"") -> 

Sheet Names
A1: ГОД | B1: =Табель!$D$1
A2: ИТОГИ | B2: =Табель!$AK$1
A3: КОДЫ | B3: =СМЕЩ(Коды!$A$1;1;0;СЧЁТЗ(Коды!$A$1:$A$20)-1;1)
A4: КОДЫ_ЗНАЧ | B4: =СМЕЩ(Коды!$D$1;2;0;СЧЁТЗ(Коды!$D$1:$D$50)-2;3)
A5: Конец_года | B5: =Табель!$BE$277
A6: МЕТКА | B6: =Табель!$BE$1
A7: НЕ_раб_дни | B7: =СМЕЩ(ИТОГИ;1;0;СТРОКА(Конец_года)-СТРОКА(ГОД))
A8: Отгуляно | B8: =СМЕЩ(ИТОГИ;1;4;СТРОКА(Конец_года)-СТРОКА(ГОД))
A9: Отпуск_Всего | B9: =СМЕЩ(ИТОГИ;1;3;СТРОКА(Конец_года)-СТРОКА(ГОД))
A10: ПРАЗДН_2024 | B10: =Календарь!$G$2:$G$15
A11: ПРАЗДН_2025 | B11: =Календарь!$G$21:$G$34
A12: ПРАЗДН_2026 | B12: =Календарь!$G$40:$G$53
A13: Праздники | B13: =СМЕЩ(Календарь!$A$1;1;0;СЧЁТЗ(Календарь!$A$1:$A$889)-1;1)
A14: Раб_дни | B14: =СМЕЩ(ИТОГИ;1;1;СТРОКА(Конец_года)-СТРОКА(ГОД))
A15: Учёт | B15: =СМЕЩ(ГОД;1;39;СТРОКА(Конец_года)-СТРОКА(ГОД);11)
A16: ФИО | B16: =СМЕЩ(ГОД;1;0;СТРОКА(Конец_года)-СТРОКА(ГОД))
A17: Черные | B17: =СМЕЩ(Праздники;;3)

Sheet Коды
A1: КОД | D1: КОД | F1: Расшифровка
A2: Я | B2: раб | D2: ШИФР | E2: НОМЕР
A3: РВ | B3: раб | D3: Я | E3: 01 | F3: Продолжительность работы в дневное время
A4: В | B4: отс | D4: Н | E4: 02 | F4: Продолжительность работы в ночное время
A5: ОТ | B5: отс | D5: РВ | E5: 03 | F5: Продолжительность работы в выходные и нерабочие праздничные дни
A6: ДО | B6: отс | D6: С | E6: 04 | F6: Продолжительность сверхурочной работы
A7: Б | B7: отс | D7: ВМ | E7: 05 | F7: Продолжительность работы вахтовым методом
A8: К | B8: отс | D8: К | E8: 06 | F8: Служебная командировка
A9: НН | B9: отс | D9: ПК | E9: 07 | F9: Повышение квалификации с отрывом от работы
A10: ПР | B10: отс | D10: ПМ | E10: 08 | F10: Повышение квалификации с отрывом от работы в другой местности
A11: У | B11: отс | D11: ОТ | E11: 09 | F11: Ежегодный основной оплачиваемый отпуск
A12: ОЗ | B12: отс | D12: ОД | E12: 10 | F12: Ежегодный дополнительный оплачиваемый отпуск
A13: НОД | B13: отс | D13: У | E13: 11 | F13: Дополнительный отпуск в связи с обучением с сохранением среднего заработка работникам, совмещающим работу с обучением
A14: Г | B14: отс | D14: УВ | E14: 12 | F14: Сокращенная продолжительность рабочего времени для обучающихся без отрыва от производства с частичным сохранением заработной платы
D15: УД | E15: 13 | F15: Дополнительный отпуск в связи с обучением без сохранения заработной платы
D16: Р | E16: 14 | F16: Отпуск по беременности и родам (отпуск в связи с усыновлением новорожденного ребенка)
D17: ОЖ | E17: 15 | F17: Отпуск по уходу за ребенком до достижения им возраста трех лет
D18: ДО | E18: 16 | F18: Отпуск без сохранения заработной платы, предоставленный работнику по разрешению работодателя
D19: ОЗ | E19: 17 | F19: Отпуск без сохранения заработной платы при условиях, предусмотренных действующим законодательством Российской Федерации
D20: ДБ | E20: 18 | F20: Ежегодный дополнительный отпуск без сохранения заработной платы
D21: Б | E21: 19 | F21: Временная нетрудоспособность (кроме случаев, предусмотренных кодом "Т") с назначением пособия согласно законодательству
D22: Т | E22: 20 | F22: Временная нетрудоспособность без назначения пособия в случаях, предусмотренных законодательством
D23: ЛЧ | E23: 21 | F23: Сокращенная продолжительность рабочего времени против нормальной продолжительности рабочего дня в случаях, предусмотренных законодательством
D24: ПВ | E24: 22 | F24: Время вынужденного прогула в случае признания увольнения, перевода на другую работу или отстранения от работы незаконными с восстановлением на прежней работе
D25: Г | E25: 23 | F25: Невыходы на время исполнения государственных или общественных обязанностей согласно законодательству
D26: ПР | E26: 24 | F26: Прогулы (отсутствие на рабочем месте без уважительных причин в течение времени, установленного законодательством)
D27: НС | E27: 25 | F27: Продолжительность работы в режиме неполного рабочего времени по инициативе работодателя в случаях, предусмотренных законодательством
D28: В | E28: 26 | F28: Выходные дни (еженедельный отпуск) и нерабочие праздничные дни
D29: ОВ | E29: 27 | F29: Дополнительные выходные дни (оплачиваемые)
D30: НВ | E30: 28 | F30: Дополнительные выходные дни (без сохранения заработной платы)
D31: ЗБ | E31: 29 | F31: Забастовка (при условиях и в порядке, предусмотренных законом)
D32: НН | E32: 30 | F32: Неявки по невыясненным причинам (до выяснения обстоятельств)
D33: РП | E33: 31 | F33: Время простоя по вине работодателя
D34: НП | E34: 32 | F34: Время простоя по причинам, не зависящим от работодателя и работника
D35: ВП | E35: 33 | F35: Время простоя по вине работника
D36: НО | E36: 34 | F36: Отстранение от работы (недопущение к работе) с оплатой (пособием) в соответствии с законодательством
D37: НБ | E37: 35 | F37: Отстранение от работы (недопущение к работе) по причинам, предусмотренным законодательством, без начисления заработной платы
D38: НЗ | E38: 36 | F38: Время приостановки работы в случае задержки выплаты заработной платы
D39: НОД | F39: Нерабочий оплачиваемый день по причинам, предусмотренным законодательством, с начислением заработной платы
